{"text_format":"1","workbook":"xlsx","n_sheets":2,"sheets":["Plan1","Dados"],"not_rendered":{"charts":0,"images":0,"macros":0,"external_links":0,"defined_names":0,"comments":0,"pivot_tables":0},"unopened":[],"bounds":{"document_bytes":16777216,"sheet_cells":100000,"rows_first":2000,"rows_last":500,"rows_between":2000,"halvings":0,"cell_chars":16384,"cell_head_chars":4096},"cells_cut":0,"cells_raw":0,"read":"whole","date_system":"1900"}

{"sheet":"Plan1","index":0,"n_rows":200,"n_cols":29,"rows_kept":200,"cut":false,"hidden":false,"merged":[]}
[null,null,null,null,null,null,null,null,null,null,null,null,null,null,null,null,null,null,null,null,null,null,null,null,null,null,null,null,"2015-01-01"]
[null,null,null,null,null,null,null,null,null,null,null,null,null,null,null,null,null,null,null,null,null,null,null,null,null,null,null,null,"2015-02-01"]
[null,null,null,null,null,{"$f":"IFERROR(INDEX(Dados!$A$2:$A$1000,MATCH(ROW(A1),Dados!$X$2:$X$1000,0)),\"\")","v":"2015-06-02"},null,"2015-06-01",null,2015,null,null,null,null,null,null,null,null,null,null,null,null,null,null,null,null,null,null,"2015-03-01"]
[null,null,null,null,null,{"$f":"IFERROR(INDEX(Dados!$A$2:$A$1000,MATCH(ROW(A2),Dados!$X$2:$X$1000,0)),\"\")","v":"2015-06-03"},null,null,null,null,null,null,null,null,null,null,null,null,null,null,null,null,null,null,null,null,null,null,"2015-04-01"]
[null,null,null,null,null,{"$f":"IFERROR(INDEX(Dados!$A$2:$A$1000,MATCH(ROW(A3),Dados!$X$2:$X$1000,0)),\"\")","v":"2015-06-04"},"  **AS BORDAS SÃO COLOCADAS AUTOMATICAMENTE CONFORME O NÚMERO DE LINHAS UTILIZADOS",null,null,null,null,null,null,null,null,null,null,null,null,null,null,null,null,null,null,null,null,null,"2015-05-01"]
[null,null,null,null,null,{"$f":"IFERROR(INDEX(Dados!$A$2:$A$1000,MATCH(ROW(A4),Dados!$X$2:$X$1000,0)),\"\")","v":"2015-06-05"},"  **PARA TESTAR SELECIONE OUTRO MÊS OU OUTRO ANO, OU OS DOIS",null,null,null,null,null,null,null,null,null,null,null,null,null,null,null,null,null,null,null,null,null,"2015-06-01"]
[null,null,null,null,null,{"$f":"IFERROR(INDEX(Dados!$A$2:$A$1000,MATCH(ROW(A5),Dados!$X$2:$X$1000,0)),\"\")","v":"2015-06-06"},null,null,null,null,null,null,null,null,null,null,null,null,null,null,null,null,null,null,null,null,null,null,"2015-07-01"]
[null,null,null,null,null,{"$f":"IFERROR(INDEX(Dados!$A$2:$A$1000,MATCH(ROW(A6),Dados!$X$2:$X$1000,0)),\"\")","v":"2015-06-07"},null,null,null,null,null,null,null,null,null,null,null,null,null,null,null,null,null,null,null,null,null,null,"2015-08-01"]
[null,null,null,null,null,{"$f":"IFERROR(INDEX(Dados!$A$2:$A$1000,MATCH(ROW(A7),Dados!$X$2:$X$1000,0)),\"\")","v":"2015-06-08"},null,null,null,null,null,null,null,null,null,null,null,null,null,null,null,null,null,null,null,null,null,null,"2015-09-01"]
[null,null,null,null,null,{"$f":"IFERROR(INDEX(Dados!$A$2:$A$1000,MATCH(ROW(A8),Dados!$X$2:$X$1000,0)),\"\")","v":"2015-06-09"},null,null,null,null,null,null,null,null,null,null,null,null,null,null,null,null,null,null,null,null,null,null,"2015-10-01"]
[null,null,null,null,null,{"$f":"IFERROR(INDEX(Dados!$A$2:$A$1000,MATCH(ROW(A9),Dados!$X$2:$X$1000,0)),\"\")","v":"2015-06-10"},null,null,null,null,null,null,null,null,null,null,null,null,null,null,null,null,null,null,null,null,null,null,"2015-11-01"]
[null,null,null,null,null,{"$f":"IFERROR(INDEX(Dados!$A$2:$A$1000,MATCH(ROW(A10),Dados!$X$2:$X$1000,0)),\"\")","v":"2015-06-11"},null,null,null,null,null,null,null,null,null,null,null,null,null,null,null,null,null,null,null,null,null,null,"2015-12-01"]
[null,null,null,null,null,{"$f":"IFERROR(INDEX(Dados!$A$2:$A$1000,MATCH(ROW(A11),Dados!$X$2:$X$1000,0)),\"\")","v":"2015-06-12"},null,null,null,null,null,null,null,null,null,null,null,null,null,null,null,null,null,null,null,null,null,null,"2016-01-01"]
[null,null,null,null,null,{"$f":"IFERROR(INDEX(Dados!$A$2:$A$1000,MATCH(ROW(A12),Dados!$X$2:$X$1000,0)),\"\")","v":"2015-06-13"},null,null,null,null,null,null,null,null,null,null,null,null,null,null,null,null,null,null,null,null,null,null,"2016-02-01"]
[null,null,null,null,null,{"$f":"IFERROR(INDEX(Dados!$A$2:$A$1000,MATCH(ROW(A13),Dados!$X$2:$X$1000,0)),\"\")","v":"2015-06-14"},null,null,null,null,null,null,null,null,null,null,null,null,null,null,null,null,null,null,null,null,null,null,"2016-03-01"]
[null,null,null,null,null,{"$f":"IFERROR(INDEX(Dados!$A$2:$A$1000,MATCH(ROW(A14),Dados!$X$2:$X$1000,0)),\"\")","v":"2015-06-15"},null,null,null,null,null,null,null,null,null,null,null,null,null,null,null,null,null,null,null,null,null,null,"2016-04-01"]
[null,null,null,null,null,{"$f":"IFERROR(INDEX(Dados!$A$2:$A$1000,MATCH(ROW(A15),Dados!$X$2:$X$1000,0)),\"\")","v":"2015-06-16"},null,null,null,null,null,null,null,null,null,null,null,null,null,null,null,null,null,null,null,null,null,null,"2016-05-01"]
[null,null,null,null,null,{"$f":"IFERROR(INDEX(Dados!$A$2:$A$1000,MATCH(ROW(A16),Dados!$X$2:$X$1000,0)),\"\")","v":"2015-06-17"},null,null,null,null,null,null,null,null,null,null,null,null,null,null,null,null,null,null,null,null,null,null,"2016-06-01"]
[null,null,null,null,null,{"$f":"IFERROR(INDEX(Dados!$A$2:$A$1000,MATCH(ROW(A17),Dados!$X$2:$X$1000,0)),\"\")","v":"2015-06-18"},null,null,null,null,null,null,null,null,null,null,null,null,null,null,null,null,null,null,null,null,null,null,"2016-07-01"]
[null,null,null,null,null,{"$f":"IFERROR(INDEX(Dados!$A$2:$A$1000,MATCH(ROW(A18),Dados!$X$2:$X$1000,0)),\"\")","v":"2015-06-19"},null,null,null,null,null,null,null,null,null,null,null,null,null,null,null,null,null,null,null,null,null,null,"2016-08-01"]
[null,null,null,null,null,{"$f":"IFERROR(INDEX(Dados!$A$2:$A$1000,MATCH(ROW(A19),Dados!$X$2:$X$1000,0)),\"\")","v":"2015-06-20"},null,null,null,null,null,null,null,null,null,null,null,null,null,null,null,null,null,null,null,null,null,null,"2016-09-01"]
[null,null,null,null,null,{"$f":"IFERROR(INDEX(Dados!$A$2:$A$1000,MATCH(ROW(A20),Dados!$X$2:$X$1000,0)),\"\")","v":"2015-06-21"},null,null,null,null,null,null,null,null,null,null,null,null,null,null,null,null,null,null,null,null,null,null,"2016-10-01"]
[null,null,null,null,null,{"$f":"IFERROR(INDEX(Dados!$A$2:$A$1000,MATCH(ROW(A21),Dados!$X$2:$X$1000,0)),\"\")","v":"2015-06-22"},null,null,null,null,null,null,null,null,null,null,null,null,null,null,null,null,null,null,null,null,null,null,"2016-11-01"]
[null,null,null,null,null,{"$f":"IFERROR(INDEX(Dados!$A$2:$A$1000,MATCH(ROW(A22),Dados!$X$2:$X$1000,0)),\"\")","v":"2015-06-23"},null,null,null,null,null,null,null,null,null,null,null,null,null,null,null,null,null,null,null,null,null,null,"2016-12-01"]
[null,null,null,null,null,{"$f":"IFERROR(INDEX(Dados!$A$2:$A$1000,MATCH(ROW(A23),Dados!$X$2:$X$1000,0)),\"\")","v":"2015-06-24"},null,null,null,null,null,null,null,null,null,null,null,null,null,null,null,null,null,null,null,null,null,null,"2017-01-01"]
[null,null,null,null,null,{"$f":"IFERROR(INDEX(Dados!$A$2:$A$1000,MATCH(ROW(A24),Dados!$X$2:$X$1000,0)),\"\")","v":"2015-06-25"},null,null,null,null,null,null,null,null,null,null,null,null,null,null,null,null,null,null,null,null,null,null,"2017-02-01"]
[null,null,null,null,null,{"$f":"IFERROR(INDEX(Dados!$A$2:$A$1000,MATCH(ROW(A25),Dados!$X$2:$X$1000,0)),\"\")","v":"2015-06-26"},null,null,null,null,null,null,null,null,null,null,null,null,null,null,null,null,null,null,null,null,null,null,"2017-03-01"]
[null,null,null,null,null,{"$f":"IFERROR(INDEX(Dados!$A$2:$A$1000,MATCH(ROW(A26),Dados!$X$2:$X$1000,0)),\"\")","v":"2015-06-27"},null,null,null,null,null,null,null,null,null,null,null,null,null,null,null,null,null,null,null,null,null,null,"2017-04-01"]
[null,null,null,null,null,{"$f":"IFERROR(INDEX(Dados!$A$2:$A$1000,MATCH(ROW(A27),Dados!$X$2:$X$1000,0)),\"\")","v":"2015-06-28"},null,null,null,null,null,null,null,null,null,null,null,null,null,null,null,null,null,null,null,null,null,null,"2017-05-01"]
[null,null,null,null,null,{"$f":"IFERROR(INDEX(Dados!$A$2:$A$1000,MATCH(ROW(A28),Dados!$X$2:$X$1000,0)),\"\")","v":"2015-06-29"},null,null,null,null,null,null,null,null,null,null,null,null,null,null,null,null,null,null,null,null,null,null,"2017-06-01"]
[null,null,null,null,null,{"$f":"IFERROR(INDEX(Dados!$A$2:$A$1000,MATCH(ROW(A29),Dados!$X$2:$X$1000,0)),\"\")","v":"2015-06-30"},null,null,null,null,null,null,null,null,null,null,null,null,null,null,null,null,null,null,null,null,null,null,"2017-07-01"]
[null,null,null,null,null,{"$f":"IFERROR(INDEX(Dados!$A$2:$A$1000,MATCH(ROW(A30),Dados!$X$2:$X$1000,0)),\"\")","v":""},null,null,null,null,null,null,null,null,null,null,null,null,null,null,null,null,null,null,null,null,null,null,"2017-08-01"]
[null,null,null,null,null,{"$f":"IFERROR(INDEX(Dados!$A$2:$A$1000,MATCH(ROW(A31),Dados!$X$2:$X$1000,0)),\"\")","v":""},null,null,null,null,null,null,null,null,null,null,null,null,null,null,null,null,null,null,null,null,null,null,"2017-09-01"]
[null,null,null,null,null,{"$f":"IFERROR(INDEX(Dados!$A$2:$A$1000,MATCH(ROW(A32),Dados!$X$2:$X$1000,0)),\"\")","v":""},null,null,null,null,null,null,null,null,null,null,null,null,null,null,null,null,null,null,null,null,null,null,"2017-10-01"]
[null,null,null,null,null,{"$f":"IFERROR(INDEX(Dados!$A$2:$A$1000,MATCH(ROW(A33),Dados!$X$2:$X$1000,0)),\"\")","v":""},null,null,null,null,null,null,null,null,null,null,null,null,null,null,null,null,null,null,null,null,null,null,"2017-11-01"]
[null,null,null,null,null,{"$f":"IFERROR(INDEX(Dados!$A$2:$A$1000,MATCH(ROW(A34),Dados!$X$2:$X$1000,0)),\"\")","v":""},null,null,null,null,null,null,null,null,null,null,null,null,null,null,null,null,null,null,null,null,null,null,"2017-12-01"]
[null,null,null,null,null,{"$f":"IFERROR(INDEX(Dados!$A$2:$A$1000,MATCH(ROW(A35),Dados!$X$2:$X$1000,0)),\"\")","v":""}]
[null,null,null,null,null,{"$f":"IFERROR(INDEX(Dados!$A$2:$A$1000,MATCH(ROW(A36),Dados!$X$2:$X$1000,0)),\"\")","v":""}]
[null,null,null,null,null,{"$f":"IFERROR(INDEX(Dados!$A$2:$A$1000,MATCH(ROW(A37),Dados!$X$2:$X$1000,0)),\"\")","v":""}]
[null,null,null,null,null,{"$f":"IFERROR(INDEX(Dados!$A$2:$A$1000,MATCH(ROW(A38),Dados!$X$2:$X$1000,0)),\"\")","v":""}]
[null,null,null,null,null,{"$f":"IFERROR(INDEX(Dados!$A$2:$A$1000,MATCH(ROW(A39),Dados!$X$2:$X$1000,0)),\"\")","v":""}]
[null,null,null,null,null,{"$f":"IFERROR(INDEX(Dados!$A$2:$A$1000,MATCH(ROW(A40),Dados!$X$2:$X$1000,0)),\"\")","v":""}]
[null,null,null,null,null,{"$f":"IFERROR(INDEX(Dados!$A$2:$A$1000,MATCH(ROW(A41),Dados!$X$2:$X$1000,0)),\"\")","v":""}]
[null,null,null,null,null,{"$f":"IFERROR(INDEX(Dados!$A$2:$A$1000,MATCH(ROW(A42),Dados!$X$2:$X$1000,0)),\"\")","v":""}]
[null,null,null,null,null,{"$f":"IFERROR(INDEX(Dados!$A$2:$A$1000,MATCH(ROW(A43),Dados!$X$2:$X$1000,0)),\"\")","v":""}]
[null,null,null,null,null,{"$f":"IFERROR(INDEX(Dados!$A$2:$A$1000,MATCH(ROW(A44),Dados!$X$2:$X$1000,0)),\"\")","v":""}]
[null,null,null,null,null,{"$f":"IFERROR(INDEX(Dados!$A$2:$A$1000,MATCH(ROW(A45),Dados!$X$2:$X$1000,0)),\"\")","v":""}]
[null,null,null,null,null,{"$f":"IFERROR(INDEX(Dados!$A$2:$A$1000,MATCH(ROW(A46),Dados!$X$2:$X$1000,0)),\"\")","v":""}]
[null,null,null,null,null,{"$f":"IFERROR(INDEX(Dados!$A$2:$A$1000,MATCH(ROW(A47),Dados!$X$2:$X$1000,0)),\"\")","v":""}]
[null,null,null,null,null,{"$f":"IFERROR(INDEX(Dados!$A$2:$A$1000,MATCH(ROW(A48),Dados!$X$2:$X$1000,0)),\"\")","v":""}]
[null,null,null,null,null,{"$f":"IFERROR(INDEX(Dados!$A$2:$A$1000,MATCH(ROW(A49),Dados!$X$2:$X$1000,0)),\"\")","v":""}]
[null,null,null,null,null,{"$f":"IFERROR(INDEX(Dados!$A$2:$A$1000,MATCH(ROW(A50),Dados!$X$2:$X$1000,0)),\"\")","v":""}]
[null,null,null,null,null,{"$f":"IFERROR(INDEX(Dados!$A$2:$A$1000,MATCH(ROW(A51),Dados!$X$2:$X$1000,0)),\"\")","v":""}]
[null,null,null,null,null,{"$f":"IFERROR(INDEX(Dados!$A$2:$A$1000,MATCH(ROW(A52),Dados!$X$2:$X$1000,0)),\"\")","v":""}]
[null,null,null,null,null,{"$f":"IFERROR(INDEX(Dados!$A$2:$A$1000,MATCH(ROW(A53),Dados!$X$2:$X$1000,0)),\"\")","v":""}]
[null,null,null,null,null,{"$f":"IFERROR(INDEX(Dados!$A$2:$A$1000,MATCH(ROW(A54),Dados!$X$2:$X$1000,0)),\"\")","v":""}]
[null,null,null,null,null,{"$f":"IFERROR(INDEX(Dados!$A$2:$A$1000,MATCH(ROW(A55),Dados!$X$2:$X$1000,0)),\"\")","v":""}]
[null,null,null,null,null,{"$f":"IFERROR(INDEX(Dados!$A$2:$A$1000,MATCH(ROW(A56),Dados!$X$2:$X$1000,0)),\"\")","v":""}]
[null,null,null,null,null,{"$f":"IFERROR(INDEX(Dados!$A$2:$A$1000,MATCH(ROW(A57),Dados!$X$2:$X$1000,0)),\"\")","v":""}]
[null,null,null,null,null,{"$f":"IFERROR(INDEX(Dados!$A$2:$A$1000,MATCH(ROW(A58),Dados!$X$2:$X$1000,0)),\"\")","v":""}]
[null,null,null,null,null,{"$f":"IFERROR(INDEX(Dados!$A$2:$A$1000,MATCH(ROW(A59),Dados!$X$2:$X$1000,0)),\"\")","v":""}]
[null,null,null,null,null,{"$f":"IFERROR(INDEX(Dados!$A$2:$A$1000,MATCH(ROW(A60),Dados!$X$2:$X$1000,0)),\"\")","v":""}]
[null,null,null,null,null,{"$f":"IFERROR(INDEX(Dados!$A$2:$A$1000,MATCH(ROW(A61),Dados!$X$2:$X$1000,0)),\"\")","v":""}]
[null,null,null,null,null,{"$f":"IFERROR(INDEX(Dados!$A$2:$A$1000,MATCH(ROW(A62),Dados!$X$2:$X$1000,0)),\"\")","v":""}]
[null,null,null,null,null,{"$f":"IFERROR(INDEX(Dados!$A$2:$A$1000,MATCH(ROW(A63),Dados!$X$2:$X$1000,0)),\"\")","v":""}]
[null,null,null,null,null,{"$f":"IFERROR(INDEX(Dados!$A$2:$A$1000,MATCH(ROW(A64),Dados!$X$2:$X$1000,0)),\"\")","v":""}]
[null,null,null,null,null,{"$f":"IFERROR(INDEX(Dados!$A$2:$A$1000,MATCH(ROW(A65),Dados!$X$2:$X$1000,0)),\"\")","v":""}]
[null,null,null,null,null,{"$f":"IFERROR(INDEX(Dados!$A$2:$A$1000,MATCH(ROW(A66),Dados!$X$2:$X$1000,0)),\"\")","v":""}]
[null,null,null,null,null,{"$f":"IFERROR(INDEX(Dados!$A$2:$A$1000,MATCH(ROW(A67),Dados!$X$2:$X$1000,0)),\"\")","v":""}]
[null,null,null,null,null,{"$f":"IFERROR(INDEX(Dados!$A$2:$A$1000,MATCH(ROW(A68),Dados!$X$2:$X$1000,0)),\"\")","v":""}]
[null,null,null,null,null,{"$f":"IFERROR(INDEX(Dados!$A$2:$A$1000,MATCH(ROW(A69),Dados!$X$2:$X$1000,0)),\"\")","v":""}]
[null,null,null,null,null,{"$f":"IFERROR(INDEX(Dados!$A$2:$A$1000,MATCH(ROW(A70),Dados!$X$2:$X$1000,0)),\"\")","v":""}]
[null,null,null,null,null,{"$f":"IFERROR(INDEX(Dados!$A$2:$A$1000,MATCH(ROW(A71),Dados!$X$2:$X$1000,0)),\"\")","v":""}]
[null,null,null,null,null,{"$f":"IFERROR(INDEX(Dados!$A$2:$A$1000,MATCH(ROW(A72),Dados!$X$2:$X$1000,0)),\"\")","v":""}]
[null,null,null,null,null,{"$f":"IFERROR(INDEX(Dados!$A$2:$A$1000,MATCH(ROW(A73),Dados!$X$2:$X$1000,0)),\"\")","v":""}]
[null,null,null,null,null,{"$f":"IFERROR(INDEX(Dados!$A$2:$A$1000,MATCH(ROW(A74),Dados!$X$2:$X$1000,0)),\"\")","v":""}]
[null,null,null,null,null,{"$f":"IFERROR(INDEX(Dados!$A$2:$A$1000,MATCH(ROW(A75),Dados!$X$2:$X$1000,0)),\"\")","v":""}]
[null,null,null,null,null,{"$f":"IFERROR(INDEX(Dados!$A$2:$A$1000,MATCH(ROW(A76),Dados!$X$2:$X$1000,0)),\"\")","v":""}]
[null,null,null,null,null,{"$f":"IFERROR(INDEX(Dados!$A$2:$A$1000,MATCH(ROW(A77),Dados!$X$2:$X$1000,0)),\"\")","v":""}]
[null,null,null,null,null,{"$f":"IFERROR(INDEX(Dados!$A$2:$A$1000,MATCH(ROW(A78),Dados!$X$2:$X$1000,0)),\"\")","v":""}]
[null,null,null,null,null,{"$f":"IFERROR(INDEX(Dados!$A$2:$A$1000,MATCH(ROW(A79),Dados!$X$2:$X$1000,0)),\"\")","v":""}]
[null,null,null,null,null,{"$f":"IFERROR(INDEX(Dados!$A$2:$A$1000,MATCH(ROW(A80),Dados!$X$2:$X$1000,0)),\"\")","v":""}]
[null,null,null,null,null,{"$f":"IFERROR(INDEX(Dados!$A$2:$A$1000,MATCH(ROW(A81),Dados!$X$2:$X$1000,0)),\"\")","v":""}]
[null,null,null,null,null,{"$f":"IFERROR(INDEX(Dados!$A$2:$A$1000,MATCH(ROW(A82),Dados!$X$2:$X$1000,0)),\"\")","v":""}]
[null,null,null,null,null,{"$f":"IFERROR(INDEX(Dados!$A$2:$A$1000,MATCH(ROW(A83),Dados!$X$2:$X$1000,0)),\"\")","v":""}]
[null,null,null,null,null,{"$f":"IFERROR(INDEX(Dados!$A$2:$A$1000,MATCH(ROW(A84),Dados!$X$2:$X$1000,0)),\"\")","v":""}]
[null,null,null,null,null,{"$f":"IFERROR(INDEX(Dados!$A$2:$A$1000,MATCH(ROW(A85),Dados!$X$2:$X$1000,0)),\"\")","v":""}]
[null,null,null,null,null,{"$f":"IFERROR(INDEX(Dados!$A$2:$A$1000,MATCH(ROW(A86),Dados!$X$2:$X$1000,0)),\"\")","v":""}]
[null,null,null,null,null,{"$f":"IFERROR(INDEX(Dados!$A$2:$A$1000,MATCH(ROW(A87),Dados!$X$2:$X$1000,0)),\"\")","v":""}]
[null,null,null,null,null,{"$f":"IFERROR(INDEX(Dados!$A$2:$A$1000,MATCH(ROW(A88),Dados!$X$2:$X$1000,0)),\"\")","v":""}]
[null,null,null,null,null,{"$f":"IFERROR(INDEX(Dados!$A$2:$A$1000,MATCH(ROW(A89),Dados!$X$2:$X$1000,0)),\"\")","v":""}]
[null,null,null,null,null,{"$f":"IFERROR(INDEX(Dados!$A$2:$A$1000,MATCH(ROW(A90),Dados!$X$2:$X$1000,0)),\"\")","v":""}]
[null,null,null,null,null,{"$f":"IFERROR(INDEX(Dados!$A$2:$A$1000,MATCH(ROW(A91),Dados!$X$2:$X$1000,0)),\"\")","v":""}]
[null,null,null,null,null,{"$f":"IFERROR(INDEX(Dados!$A$2:$A$1000,MATCH(ROW(A92),Dados!$X$2:$X$1000,0)),\"\")","v":""}]
[null,null,null,null,null,{"$f":"IFERROR(INDEX(Dados!$A$2:$A$1000,MATCH(ROW(A93),Dados!$X$2:$X$1000,0)),\"\")","v":""}]
[null,null,null,null,null,{"$f":"IFERROR(INDEX(Dados!$A$2:$A$1000,MATCH(ROW(A94),Dados!$X$2:$X$1000,0)),\"\")","v":""}]
[null,null,null,null,null,{"$f":"IFERROR(INDEX(Dados!$A$2:$A$1000,MATCH(ROW(A95),Dados!$X$2:$X$1000,0)),\"\")","v":""}]
[null,null,null,null,null,{"$f":"IFERROR(INDEX(Dados!$A$2:$A$1000,MATCH(ROW(A96),Dados!$X$2:$X$1000,0)),\"\")","v":""}]
[null,null,null,null,null,{"$f":"IFERROR(INDEX(Dados!$A$2:$A$1000,MATCH(ROW(A97),Dados!$X$2:$X$1000,0)),\"\")","v":""}]
[null,null,null,null,null,{"$f":"IFERROR(INDEX(Dados!$A$2:$A$1000,MATCH(ROW(A98),Dados!$X$2:$X$1000,0)),\"\")","v":""}]
[null,null,null,null,null,{"$f":"IFERROR(INDEX(Dados!$A$2:$A$1000,MATCH(ROW(A99),Dados!$X$2:$X$1000,0)),\"\")","v":""}]
[null,null,null,null,null,{"$f":"IFERROR(INDEX(Dados!$A$2:$A$1000,MATCH(ROW(A100),Dados!$X$2:$X$1000,0)),\"\")","v":""}]
[null,null,null,null,null,{"$f":"IFERROR(INDEX(Dados!$A$2:$A$1000,MATCH(ROW(A101),Dados!$X$2:$X$1000,0)),\"\")","v":""}]
[null,null,null,null,null,{"$f":"IFERROR(INDEX(Dados!$A$2:$A$1000,MATCH(ROW(A102),Dados!$X$2:$X$1000,0)),\"\")","v":""}]
[null,null,null,null,null,{"$f":"IFERROR(INDEX(Dados!$A$2:$A$1000,MATCH(ROW(A103),Dados!$X$2:$X$1000,0)),\"\")","v":""}]
[null,null,null,null,null,{"$f":"IFERROR(INDEX(Dados!$A$2:$A$1000,MATCH(ROW(A104),Dados!$X$2:$X$1000,0)),\"\")","v":""}]
[null,null,null,null,null,{"$f":"IFERROR(INDEX(Dados!$A$2:$A$1000,MATCH(ROW(A105),Dados!$X$2:$X$1000,0)),\"\")","v":""}]
[null,null,null,null,null,{"$f":"IFERROR(INDEX(Dados!$A$2:$A$1000,MATCH(ROW(A106),Dados!$X$2:$X$1000,0)),\"\")","v":""}]
[null,null,null,null,null,{"$f":"IFERROR(INDEX(Dados!$A$2:$A$1000,MATCH(ROW(A107),Dados!$X$2:$X$1000,0)),\"\")","v":""}]
[null,null,null,null,null,{"$f":"IFERROR(INDEX(Dados!$A$2:$A$1000,MATCH(ROW(A108),Dados!$X$2:$X$1000,0)),\"\")","v":""}]
[null,null,null,null,null,{"$f":"IFERROR(INDEX(Dados!$A$2:$A$1000,MATCH(ROW(A109),Dados!$X$2:$X$1000,0)),\"\")","v":""}]
[null,null,null,null,null,{"$f":"IFERROR(INDEX(Dados!$A$2:$A$1000,MATCH(ROW(A110),Dados!$X$2:$X$1000,0)),\"\")","v":""}]
[null,null,null,null,null,{"$f":"IFERROR(INDEX(Dados!$A$2:$A$1000,MATCH(ROW(A111),Dados!$X$2:$X$1000,0)),\"\")","v":""}]
[null,null,null,null,null,{"$f":"IFERROR(INDEX(Dados!$A$2:$A$1000,MATCH(ROW(A112),Dados!$X$2:$X$1000,0)),\"\")","v":""}]
[null,null,null,null,null,{"$f":"IFERROR(INDEX(Dados!$A$2:$A$1000,MATCH(ROW(A113),Dados!$X$2:$X$1000,0)),\"\")","v":""}]
[null,null,null,null,null,{"$f":"IFERROR(INDEX(Dados!$A$2:$A$1000,MATCH(ROW(A114),Dados!$X$2:$X$1000,0)),\"\")","v":""}]
[null,null,null,null,null,{"$f":"IFERROR(INDEX(Dados!$A$2:$A$1000,MATCH(ROW(A115),Dados!$X$2:$X$1000,0)),\"\")","v":""}]
[null,null,null,null,null,{"$f":"IFERROR(INDEX(Dados!$A$2:$A$1000,MATCH(ROW(A116),Dados!$X$2:$X$1000,0)),\"\")","v":""}]
[null,null,null,null,null,{"$f":"IFERROR(INDEX(Dados!$A$2:$A$1000,MATCH(ROW(A117),Dados!$X$2:$X$1000,0)),\"\")","v":""}]
[null,null,null,null,null,{"$f":"IFERROR(INDEX(Dados!$A$2:$A$1000,MATCH(ROW(A118),Dados!$X$2:$X$1000,0)),\"\")","v":""}]
[null,null,null,null,null,{"$f":"IFERROR(INDEX(Dados!$A$2:$A$1000,MATCH(ROW(A119),Dados!$X$2:$X$1000,0)),\"\")","v":""}]
[null,null,null,null,null,{"$f":"IFERROR(INDEX(Dados!$A$2:$A$1000,MATCH(ROW(A120),Dados!$X$2:$X$1000,0)),\"\")","v":""}]
[null,null,null,null,null,{"$f":"IFERROR(INDEX(Dados!$A$2:$A$1000,MATCH(ROW(A121),Dados!$X$2:$X$1000,0)),\"\")","v":""}]
[null,null,null,null,null,{"$f":"IFERROR(INDEX(Dados!$A$2:$A$1000,MATCH(ROW(A122),Dados!$X$2:$X$1000,0)),\"\")","v":""}]
[null,null,null,null,null,{"$f":"IFERROR(INDEX(Dados!$A$2:$A$1000,MATCH(ROW(A123),Dados!$X$2:$X$1000,0)),\"\")","v":""}]
[null,null,null,null,null,{"$f":"IFERROR(INDEX(Dados!$A$2:$A$1000,MATCH(ROW(A124),Dados!$X$2:$X$1000,0)),\"\")","v":""}]
[null,null,null,null,null,{"$f":"IFERROR(INDEX(Dados!$A$2:$A$1000,MATCH(ROW(A125),Dados!$X$2:$X$1000,0)),\"\")","v":""}]
[null,null,null,null,null,{"$f":"IFERROR(INDEX(Dados!$A$2:$A$1000,MATCH(ROW(A126),Dados!$X$2:$X$1000,0)),\"\")","v":""}]
[null,null,null,null,null,{"$f":"IFERROR(INDEX(Dados!$A$2:$A$1000,MATCH(ROW(A127),Dados!$X$2:$X$1000,0)),\"\")","v":""}]
[null,null,null,null,null,{"$f":"IFERROR(INDEX(Dados!$A$2:$A$1000,MATCH(ROW(A128),Dados!$X$2:$X$1000,0)),\"\")","v":""}]
[null,null,null,null,null,{"$f":"IFERROR(INDEX(Dados!$A$2:$A$1000,MATCH(ROW(A129),Dados!$X$2:$X$1000,0)),\"\")","v":""}]
[null,null,null,null,null,{"$f":"IFERROR(INDEX(Dados!$A$2:$A$1000,MATCH(ROW(A130),Dados!$X$2:$X$1000,0)),\"\")","v":""}]
[null,null,null,null,null,{"$f":"IFERROR(INDEX(Dados!$A$2:$A$1000,MATCH(ROW(A131),Dados!$X$2:$X$1000,0)),\"\")","v":""}]
[null,null,null,null,null,{"$f":"IFERROR(INDEX(Dados!$A$2:$A$1000,MATCH(ROW(A132),Dados!$X$2:$X$1000,0)),\"\")","v":""}]
[null,null,null,null,null,{"$f":"IFERROR(INDEX(Dados!$A$2:$A$1000,MATCH(ROW(A133),Dados!$X$2:$X$1000,0)),\"\")","v":""}]
[null,null,null,null,null,{"$f":"IFERROR(INDEX(Dados!$A$2:$A$1000,MATCH(ROW(A134),Dados!$X$2:$X$1000,0)),\"\")","v":""}]
[null,null,null,null,null,{"$f":"IFERROR(INDEX(Dados!$A$2:$A$1000,MATCH(ROW(A135),Dados!$X$2:$X$1000,0)),\"\")","v":""}]
[null,null,null,null,null,{"$f":"IFERROR(INDEX(Dados!$A$2:$A$1000,MATCH(ROW(A136),Dados!$X$2:$X$1000,0)),\"\")","v":""}]
[null,null,null,null,null,{"$f":"IFERROR(INDEX(Dados!$A$2:$A$1000,MATCH(ROW(A137),Dados!$X$2:$X$1000,0)),\"\")","v":""}]
[null,null,null,null,null,{"$f":"IFERROR(INDEX(Dados!$A$2:$A$1000,MATCH(ROW(A138),Dados!$X$2:$X$1000,0)),\"\")","v":""}]
[null,null,null,null,null,{"$f":"IFERROR(INDEX(Dados!$A$2:$A$1000,MATCH(ROW(A139),Dados!$X$2:$X$1000,0)),\"\")","v":""}]
[null,null,null,null,null,{"$f":"IFERROR(INDEX(Dados!$A$2:$A$1000,MATCH(ROW(A140),Dados!$X$2:$X$1000,0)),\"\")","v":""}]
[null,null,null,null,null,{"$f":"IFERROR(INDEX(Dados!$A$2:$A$1000,MATCH(ROW(A141),Dados!$X$2:$X$1000,0)),\"\")","v":""}]
[null,null,null,null,null,{"$f":"IFERROR(INDEX(Dados!$A$2:$A$1000,MATCH(ROW(A142),Dados!$X$2:$X$1000,0)),\"\")","v":""}]
[null,null,null,null,null,{"$f":"IFERROR(INDEX(Dados!$A$2:$A$1000,MATCH(ROW(A143),Dados!$X$2:$X$1000,0)),\"\")","v":""}]
[null,null,null,null,null,{"$f":"IFERROR(INDEX(Dados!$A$2:$A$1000,MATCH(ROW(A144),Dados!$X$2:$X$1000,0)),\"\")","v":""}]
[null,null,null,null,null,{"$f":"IFERROR(INDEX(Dados!$A$2:$A$1000,MATCH(ROW(A145),Dados!$X$2:$X$1000,0)),\"\")","v":""}]
[null,null,null,null,null,{"$f":"IFERROR(INDEX(Dados!$A$2:$A$1000,MATCH(ROW(A146),Dados!$X$2:$X$1000,0)),\"\")","v":""}]
[null,null,null,null,null,{"$f":"IFERROR(INDEX(Dados!$A$2:$A$1000,MATCH(ROW(A147),Dados!$X$2:$X$1000,0)),\"\")","v":""}]
[null,null,null,null,null,{"$f":"IFERROR(INDEX(Dados!$A$2:$A$1000,MATCH(ROW(A148),Dados!$X$2:$X$1000,0)),\"\")","v":""}]
[null,null,null,null,null,{"$f":"IFERROR(INDEX(Dados!$A$2:$A$1000,MATCH(ROW(A149),Dados!$X$2:$X$1000,0)),\"\")","v":""}]
[null,null,null,null,null,{"$f":"IFERROR(INDEX(Dados!$A$2:$A$1000,MATCH(ROW(A150),Dados!$X$2:$X$1000,0)),\"\")","v":""}]
[null,null,null,null,null,{"$f":"IFERROR(INDEX(Dados!$A$2:$A$1000,MATCH(ROW(A151),Dados!$X$2:$X$1000,0)),\"\")","v":""}]
[null,null,null,null,null,{"$f":"IFERROR(INDEX(Dados!$A$2:$A$1000,MATCH(ROW(A152),Dados!$X$2:$X$1000,0)),\"\")","v":""}]
[null,null,null,null,null,{"$f":"IFERROR(INDEX(Dados!$A$2:$A$1000,MATCH(ROW(A153),Dados!$X$2:$X$1000,0)),\"\")","v":""}]
[null,null,null,null,null,{"$f":"IFERROR(INDEX(Dados!$A$2:$A$1000,MATCH(ROW(A154),Dados!$X$2:$X$1000,0)),\"\")","v":""}]
[null,null,null,null,null,{"$f":"IFERROR(INDEX(Dados!$A$2:$A$1000,MATCH(ROW(A155),Dados!$X$2:$X$1000,0)),\"\")","v":""}]
[null,null,null,null,null,{"$f":"IFERROR(INDEX(Dados!$A$2:$A$1000,MATCH(ROW(A156),Dados!$X$2:$X$1000,0)),\"\")","v":""}]
[null,null,null,null,null,{"$f":"IFERROR(INDEX(Dados!$A$2:$A$1000,MATCH(ROW(A157),Dados!$X$2:$X$1000,0)),\"\")","v":""}]
[null,null,null,null,null,{"$f":"IFERROR(INDEX(Dados!$A$2:$A$1000,MATCH(ROW(A158),Dados!$X$2:$X$1000,0)),\"\")","v":""}]
[null,null,null,null,null,{"$f":"IFERROR(INDEX(Dados!$A$2:$A$1000,MATCH(ROW(A159),Dados!$X$2:$X$1000,0)),\"\")","v":""}]
[null,null,null,null,null,{"$f":"IFERROR(INDEX(Dados!$A$2:$A$1000,MATCH(ROW(A160),Dados!$X$2:$X$1000,0)),\"\")","v":""}]
[null,null,null,null,null,{"$f":"IFERROR(INDEX(Dados!$A$2:$A$1000,MATCH(ROW(A161),Dados!$X$2:$X$1000,0)),\"\")","v":""}]
[null,null,null,null,null,{"$f":"IFERROR(INDEX(Dados!$A$2:$A$1000,MATCH(ROW(A162),Dados!$X$2:$X$1000,0)),\"\")","v":""}]
[null,null,null,null,null,{"$f":"IFERROR(INDEX(Dados!$A$2:$A$1000,MATCH(ROW(A163),Dados!$X$2:$X$1000,0)),\"\")","v":""}]
[null,null,null,null,null,{"$f":"IFERROR(INDEX(Dados!$A$2:$A$1000,MATCH(ROW(A164),Dados!$X$2:$X$1000,0)),\"\")","v":""}]
[null,null,null,null,null,{"$f":"IFERROR(INDEX(Dados!$A$2:$A$1000,MATCH(ROW(A165),Dados!$X$2:$X$1000,0)),\"\")","v":""}]
[null,null,null,null,null,{"$f":"IFERROR(INDEX(Dados!$A$2:$A$1000,MATCH(ROW(A166),Dados!$X$2:$X$1000,0)),\"\")","v":""}]
[null,null,null,null,null,{"$f":"IFERROR(INDEX(Dados!$A$2:$A$1000,MATCH(ROW(A167),Dados!$X$2:$X$1000,0)),\"\")","v":""}]
[null,null,null,null,null,{"$f":"IFERROR(INDEX(Dados!$A$2:$A$1000,MATCH(ROW(A168),Dados!$X$2:$X$1000,0)),\"\")","v":""}]
[null,null,null,null,null,{"$f":"IFERROR(INDEX(Dados!$A$2:$A$1000,MATCH(ROW(A169),Dados!$X$2:$X$1000,0)),\"\")","v":""}]
[null,null,null,null,null,{"$f":"IFERROR(INDEX(Dados!$A$2:$A$1000,MATCH(ROW(A170),Dados!$X$2:$X$1000,0)),\"\")","v":""}]
[null,null,null,null,null,{"$f":"IFERROR(INDEX(Dados!$A$2:$A$1000,MATCH(ROW(A171),Dados!$X$2:$X$1000,0)),\"\")","v":""}]
[null,null,null,null,null,{"$f":"IFERROR(INDEX(Dados!$A$2:$A$1000,MATCH(ROW(A172),Dados!$X$2:$X$1000,0)),\"\")","v":""}]
[null,null,null,null,null,{"$f":"IFERROR(INDEX(Dados!$A$2:$A$1000,MATCH(ROW(A173),Dados!$X$2:$X$1000,0)),\"\")","v":""}]
[null,null,null,null,null,{"$f":"IFERROR(INDEX(Dados!$A$2:$A$1000,MATCH(ROW(A174),Dados!$X$2:$X$1000,0)),\"\")","v":""}]
[null,null,null,null,null,{"$f":"IFERROR(INDEX(Dados!$A$2:$A$1000,MATCH(ROW(A175),Dados!$X$2:$X$1000,0)),\"\")","v":""}]
[null,null,null,null,null,{"$f":"IFERROR(INDEX(Dados!$A$2:$A$1000,MATCH(ROW(A176),Dados!$X$2:$X$1000,0)),\"\")","v":""}]
[null,null,null,null,null,{"$f":"IFERROR(INDEX(Dados!$A$2:$A$1000,MATCH(ROW(A177),Dados!$X$2:$X$1000,0)),\"\")","v":""}]
[null,null,null,null,null,{"$f":"IFERROR(INDEX(Dados!$A$2:$A$1000,MATCH(ROW(A178),Dados!$X$2:$X$1000,0)),\"\")","v":""}]
[null,null,null,null,null,{"$f":"IFERROR(INDEX(Dados!$A$2:$A$1000,MATCH(ROW(A179),Dados!$X$2:$X$1000,0)),\"\")","v":""}]
[null,null,null,null,null,{"$f":"IFERROR(INDEX(Dados!$A$2:$A$1000,MATCH(ROW(A180),Dados!$X$2:$X$1000,0)),\"\")","v":""}]
[null,null,null,null,null,{"$f":"IFERROR(INDEX(Dados!$A$2:$A$1000,MATCH(ROW(A181),Dados!$X$2:$X$1000,0)),\"\")","v":""}]
[null,null,null,null,null,{"$f":"IFERROR(INDEX(Dados!$A$2:$A$1000,MATCH(ROW(A182),Dados!$X$2:$X$1000,0)),\"\")","v":""}]
[null,null,null,null,null,{"$f":"IFERROR(INDEX(Dados!$A$2:$A$1000,MATCH(ROW(A183),Dados!$X$2:$X$1000,0)),\"\")","v":""}]
[null,null,null,null,null,{"$f":"IFERROR(INDEX(Dados!$A$2:$A$1000,MATCH(ROW(A184),Dados!$X$2:$X$1000,0)),\"\")","v":""}]
[null,null,null,null,null,{"$f":"IFERROR(INDEX(Dados!$A$2:$A$1000,MATCH(ROW(A185),Dados!$X$2:$X$1000,0)),\"\")","v":""}]
[null,null,null,null,null,{"$f":"IFERROR(INDEX(Dados!$A$2:$A$1000,MATCH(ROW(A186),Dados!$X$2:$X$1000,0)),\"\")","v":""}]
[null,null,null,null,null,{"$f":"IFERROR(INDEX(Dados!$A$2:$A$1000,MATCH(ROW(A187),Dados!$X$2:$X$1000,0)),\"\")","v":""}]
[null,null,null,null,null,{"$f":"IFERROR(INDEX(Dados!$A$2:$A$1000,MATCH(ROW(A188),Dados!$X$2:$X$1000,0)),\"\")","v":""}]
[null,null,null,null,null,{"$f":"IFERROR(INDEX(Dados!$A$2:$A$1000,MATCH(ROW(A189),Dados!$X$2:$X$1000,0)),\"\")","v":""}]
[null,null,null,null,null,{"$f":"IFERROR(INDEX(Dados!$A$2:$A$1000,MATCH(ROW(A190),Dados!$X$2:$X$1000,0)),\"\")","v":""}]
[null,null,null,null,null,{"$f":"IFERROR(INDEX(Dados!$A$2:$A$1000,MATCH(ROW(A191),Dados!$X$2:$X$1000,0)),\"\")","v":""}]
[null,null,null,null,null,{"$f":"IFERROR(INDEX(Dados!$A$2:$A$1000,MATCH(ROW(A192),Dados!$X$2:$X$1000,0)),\"\")","v":""}]
[null,null,null,null,null,{"$f":"IFERROR(INDEX(Dados!$A$2:$A$1000,MATCH(ROW(A193),Dados!$X$2:$X$1000,0)),\"\")","v":""}]
[null,null,null,null,null,{"$f":"IFERROR(INDEX(Dados!$A$2:$A$1000,MATCH(ROW(A194),Dados!$X$2:$X$1000,0)),\"\")","v":""}]
[null,null,null,null,null,{"$f":"IFERROR(INDEX(Dados!$A$2:$A$1000,MATCH(ROW(A195),Dados!$X$2:$X$1000,0)),\"\")","v":""}]
[null,null,null,null,null,{"$f":"IFERROR(INDEX(Dados!$A$2:$A$1000,MATCH(ROW(A196),Dados!$X$2:$X$1000,0)),\"\")","v":""}]
[null,null,null,null,null,{"$f":"IFERROR(INDEX(Dados!$A$2:$A$1000,MATCH(ROW(A197),Dados!$X$2:$X$1000,0)),\"\")","v":""}]
[null,null,null,null,null,{"$f":"IFERROR(INDEX(Dados!$A$2:$A$1000,MATCH(ROW(A198),Dados!$X$2:$X$1000,0)),\"\")","v":""}]

{"sheet":"Dados","index":1,"n_rows":1000,"n_cols":24,"rows_kept":1000,"cut":false,"hidden":false,"merged":[]}
["2015-06-01",1,null,null,null,null,null,null,null,null,null,null,null,null,null,null,null,null,null,null,null,null,null,"AUX."]
["2015-06-02",2,null,null,null,null,null,null,null,null,null,null,null,null,null,null,null,null,null,null,null,null,null,{"$f":"IF(AND(MONTH($A$1:$A$1000)=MONTH(Plan1!$H$3),YEAR($A$1:$A$1000)=Plan1!$J$3),MAX(X$1:X1)+1,\"\")","v":1}]
["2015-06-03",3,null,null,null,null,null,null,null,null,null,null,null,null,null,null,null,null,null,null,null,null,null,{"$f":"IF(AND(MONTH($A$1:$A$1000)=MONTH(Plan1!$H$3),YEAR($A$1:$A$1000)=Plan1!$J$3),MAX(X$1:X2)+1,\"\")","v":2}]
["2015-06-04",4,null,null,null,null,null,null,null,null,null,null,null,null,null,null,null,null,null,null,null,null,null,{"$f":"IF(AND(MONTH($A$1:$A$1000)=MONTH(Plan1!$H$3),YEAR($A$1:$A$1000)=Plan1!$J$3),MAX(X$1:X3)+1,\"\")","v":3}]
["2015-06-05",5,null,null,null,null,null,null,null,null,null,null,null,null,null,null,null,null,null,null,null,null,null,{"$f":"IF(AND(MONTH($A$1:$A$1000)=MONTH(Plan1!$H$3),YEAR($A$1:$A$1000)=Plan1!$J$3),MAX(X$1:X4)+1,\"\")","v":4}]
["2015-06-06",6,null,null,null,null,null,null,null,null,null,null,null,null,null,null,null,null,null,null,null,null,null,{"$f":"IF(AND(MONTH($A$1:$A$1000)=MONTH(Plan1!$H$3),YEAR($A$1:$A$1000)=Plan1!$J$3),MAX(X$1:X5)+1,\"\")","v":5}]
["2015-06-07",7,null,null,null,null,null,null,null,null,null,null,null,null,null,null,null,null,null,null,null,null,null,{"$f":"IF(AND(MONTH($A$1:$A$1000)=MONTH(Plan1!$H$3),YEAR($A$1:$A$1000)=Plan1!$J$3),MAX(X$1:X6)+1,\"\")","v":6}]
["2015-06-08",8,null,null,null,null,null,null,null,null,null,null,null,null,null,null,null,null,null,null,null,null,null,{"$f":"IF(AND(MONTH($A$1:$A$1000)=MONTH(Plan1!$H$3),YEAR($A$1:$A$1000)=Plan1!$J$3),MAX(X$1:X7)+1,\"\")","v":7}]
["2015-06-09",9,null,null,null,null,null,null,null,null,null,null,null,null,null,null,null,null,null,null,null,null,null,{"$f":"IF(AND(MONTH($A$1:$A$1000)=MONTH(Plan1!$H$3),YEAR($A$1:$A$1000)=Plan1!$J$3),MAX(X$1:X8)+1,\"\")","v":8}]
["2015-06-10",10,null,null,null,null,null,null,null,null,null,null,null,null,null,null,null,null,null,null,null,null,null,{"$f":"IF(AND(MONTH($A$1:$A$1000)=MONTH(Plan1!$H$3),YEAR($A$1:$A$1000)=Plan1!$J$3),MAX(X$1:X9)+1,\"\")","v":9}]
["2015-06-11",1,null,null,null,null,null,null,null,null,null,null,null,null,null,null,null,null,null,null,null,null,null,{"$f":"IF(AND(MONTH($A$1:$A$1000)=MONTH(Plan1!$H$3),YEAR($A$1:$A$1000)=Plan1!$J$3),MAX(X$1:X10)+1,\"\")","v":10}]
["2015-06-12",2,null,null,null,null,null,null,null,null,null,null,null,null,null,null,null,null,null,null,null,null,null,{"$f":"IF(AND(MONTH($A$1:$A$1000)=MONTH(Plan1!$H$3),YEAR($A$1:$A$1000)=Plan1!$J$3),MAX(X$1:X11)+1,\"\")","v":11}]
["2015-06-13",3,null,null,null,null,null,null,null,null,null,null,null,null,null,null,null,null,null,null,null,null,null,{"$f":"IF(AND(MONTH($A$1:$A$1000)=MONTH(Plan1!$H$3),YEAR($A$1:$A$1000)=Plan1!$J$3),MAX(X$1:X12)+1,\"\")","v":12}]
["2015-06-14",4,null,null,null,null,null,null,null,null,null,null,null,null,null,null,null,null,null,null,null,null,null,{"$f":"IF(AND(MONTH($A$1:$A$1000)=MONTH(Plan1!$H$3),YEAR($A$1:$A$1000)=Plan1!$J$3),MAX(X$1:X13)+1,\"\")","v":13}]
["2015-06-15",5,null,null,null,null,null,null,null,null,null,null,null,null,null,null,null,null,null,null,null,null,null,{"$f":"IF(AND(MONTH($A$1:$A$1000)=MONTH(Plan1!$H$3),YEAR($A$1:$A$1000)=Plan1!$J$3),MAX(X$1:X14)+1,\"\")","v":14}]
["2015-06-16",6,null,null,null,null,null,null,null,null,null,null,null,null,null,null,null,null,null,null,null,null,null,{"$f":"IF(AND(MONTH($A$1:$A$1000)=MONTH(Plan1!$H$3),YEAR($A$1:$A$1000)=Plan1!$J$3),MAX(X$1:X15)+1,\"\")","v":15}]
["2015-06-17",7,null,null,null,null,null,null,null,null,null,null,null,null,null,null,null,null,null,null,null,null,null,{"$f":"IF(AND(MONTH($A$1:$A$1000)=MONTH(Plan1!$H$3),YEAR($A$1:$A$1000)=Plan1!$J$3),MAX(X$1:X16)+1,\"\")","v":16}]
["2015-06-18",8,null,null,null,null,null,null,null,null,null,null,null,null,null,null,null,null,null,null,null,null,null,{"$f":"IF(AND(MONTH($A$1:$A$1000)=MONTH(Plan1!$H$3),YEAR($A$1:$A$1000)=Plan1!$J$3),MAX(X$1:X17)+1,\"\")","v":17}]
["2015-06-19",9,null,null,null,null,null,null,null,null,null,null,null,null,null,null,null,null,null,null,null,null,null,{"$f":"IF(AND(MONTH($A$1:$A$1000)=MONTH(Plan1!$H$3),YEAR($A$1:$A$1000)=Plan1!$J$3),MAX(X$1:X18)+1,\"\")","v":18}]
["2015-06-20",10,null,null,null,null,null,null,null,null,null,null,null,null,null,null,null,null,null,null,null,null,null,{"$f":"IF(AND(MONTH($A$1:$A$1000)=MONTH(Plan1!$H$3),YEAR($A$1:$A$1000)=Plan1!$J$3),MAX(X$1:X19)+1,\"\")","v":19}]
["2015-06-21",11,null,null,null,null,null,null,null,null,null,null,null,null,null,null,null,null,null,null,null,null,null,{"$f":"IF(AND(MONTH($A$1:$A$1000)=MONTH(Plan1!$H$3),YEAR($A$1:$A$1000)=Plan1!$J$3),MAX(X$1:X20)+1,\"\")","v":20}]
["2015-06-22",12,null,null,null,null,null,null,null,null,null,null,null,null,null,null,null,null,null,null,null,null,null,{"$f":"IF(AND(MONTH($A$1:$A$1000)=MONTH(Plan1!$H$3),YEAR($A$1:$A$1000)=Plan1!$J$3),MAX(X$1:X21)+1,\"\")","v":21}]
["2015-06-23",13,null,null,null,null,null,null,null,null,null,null,null,null,null,null,null,null,null,null,null,null,null,{"$f":"IF(AND(MONTH($A$1:$A$1000)=MONTH(Plan1!$H$3),YEAR($A$1:$A$1000)=Plan1!$J$3),MAX(X$1:X22)+1,\"\")","v":22}]
["2015-06-24",1,null,null,null,null,null,null,null,null,null,null,null,null,null,null,null,null,null,null,null,null,null,{"$f":"IF(AND(MONTH($A$1:$A$1000)=MONTH(Plan1!$H$3),YEAR($A$1:$A$1000)=Plan1!$J$3),MAX(X$1:X23)+1,\"\")","v":23}]
["2015-06-25",2,null,null,null,null,null,null,null,null,null,null,null,null,null,null,null,null,null,null,null,null,null,{"$f":"IF(AND(MONTH($A$1:$A$1000)=MONTH(Plan1!$H$3),YEAR($A$1:$A$1000)=Plan1!$J$3),MAX(X$1:X24)+1,\"\")","v":24}]
["2015-06-26",3,null,null,null,null,null,null,null,null,null,null,null,null,null,null,null,null,null,null,null,null,null,{"$f":"IF(AND(MONTH($A$1:$A$1000)=MONTH(Plan1!$H$3),YEAR($A$1:$A$1000)=Plan1!$J$3),MAX(X$1:X25)+1,\"\")","v":25}]
["2015-06-27",4,null,null,null,null,null,null,null,null,null,null,null,null,null,null,null,null,null,null,null,null,null,{"$f":"IF(AND(MONTH($A$1:$A$1000)=MONTH(Plan1!$H$3),YEAR($A$1:$A$1000)=Plan1!$J$3),MAX(X$1:X26)+1,\"\")","v":26}]
["2015-06-28",5,null,null,null,null,null,null,null,null,null,null,null,null,null,null,null,null,null,null,null,null,null,{"$f":"IF(AND(MONTH($A$1:$A$1000)=MONTH(Plan1!$H$3),YEAR($A$1:$A$1000)=Plan1!$J$3),MAX(X$1:X27)+1,\"\")","v":27}]
["2015-06-29",6,null,null,null,null,null,null,null,null,null,null,null,null,null,null,null,null,null,null,null,null,null,{"$f":"IF(AND(MONTH($A$1:$A$1000)=MONTH(Plan1!$H$3),YEAR($A$1:$A$1000)=Plan1!$J$3),MAX(X$1:X28)+1,\"\")","v":28}]
["2015-06-30",7,null,null,null,null,null,null,null,null,null,null,null,null,null,null,null,null,null,null,null,null,null,{"$f":"IF(AND(MONTH($A$1:$A$1000)=MONTH(Plan1!$H$3),YEAR($A$1:$A$1000)=Plan1!$J$3),MAX(X$1:X29)+1,\"\")","v":29}]
["2015-07-01",8,null,null,null,null,null,null,null,null,null,null,null,null,null,null,null,null,null,null,null,null,null,{"$f":"IF(AND(MONTH($A$1:$A$1000)=MONTH(Plan1!$H$3),YEAR($A$1:$A$1000)=Plan1!$J$3),MAX(X$1:X30)+1,\"\")","v":""}]
["2015-07-02",9,null,null,null,null,null,null,null,null,null,null,null,null,null,null,null,null,null,null,null,null,null,{"$f":"IF(AND(MONTH($A$1:$A$1000)=MONTH(Plan1!$H$3),YEAR($A$1:$A$1000)=Plan1!$J$3),MAX(X$1:X31)+1,\"\")","v":""}]
["2015-07-03",10,null,null,null,null,null,null,null,null,null,null,null,null,null,null,null,null,null,null,null,null,null,{"$f":"IF(AND(MONTH($A$1:$A$1000)=MONTH(Plan1!$H$3),YEAR($A$1:$A$1000)=Plan1!$J$3),MAX(X$1:X32)+1,\"\")","v":""}]
["2015-07-04",11,null,null,null,null,null,null,null,null,null,null,null,null,null,null,null,null,null,null,null,null,null,{"$f":"IF(AND(MONTH($A$1:$A$1000)=MONTH(Plan1!$H$3),YEAR($A$1:$A$1000)=Plan1!$J$3),MAX(X$1:X33)+1,\"\")","v":""}]
["2015-07-05",12,null,null,null,null,null,null,null,null,null,null,null,null,null,null,null,null,null,null,null,null,null,{"$f":"IF(AND(MONTH($A$1:$A$1000)=MONTH(Plan1!$H$3),YEAR($A$1:$A$1000)=Plan1!$J$3),MAX(X$1:X34)+1,\"\")","v":""}]
["2015-07-06",13,null,null,null,null,null,null,null,null,null,null,null,null,null,null,null,null,null,null,null,null,null,{"$f":"IF(AND(MONTH($A$1:$A$1000)=MONTH(Plan1!$H$3),YEAR($A$1:$A$1000)=Plan1!$J$3),MAX(X$1:X35)+1,\"\")","v":""}]
["2015-07-07",14,null,null,null,null,null,null,null,null,null,null,null,null,null,null,null,null,null,null,null,null,null,{"$f":"IF(AND(MONTH($A$1:$A$1000)=MONTH(Plan1!$H$3),YEAR($A$1:$A$1000)=Plan1!$J$3),MAX(X$1:X36)+1,\"\")","v":""}]
["2015-07-08",15,null,null,null,null,null,null,null,null,null,null,null,null,null,null,null,null,null,null,null,null,null,{"$f":"IF(AND(MONTH($A$1:$A$1000)=MONTH(Plan1!$H$3),YEAR($A$1:$A$1000)=Plan1!$J$3),MAX(X$1:X37)+1,\"\")","v":""}]
["2015-07-09",16,null,null,null,null,null,null,null,null,null,null,null,null,null,null,null,null,null,null,null,null,null,{"$f":"IF(AND(MONTH($A$1:$A$1000)=MONTH(Plan1!$H$3),YEAR($A$1:$A$1000)=Plan1!$J$3),MAX(X$1:X38)+1,\"\")","v":""}]
["2015-07-10",17,null,null,null,null,null,null,null,null,null,null,null,null,null,null,null,null,null,null,null,null,null,{"$f":"IF(AND(MONTH($A$1:$A$1000)=MONTH(Plan1!$H$3),YEAR($A$1:$A$1000)=Plan1!$J$3),MAX(X$1:X39)+1,\"\")","v":""}]
["2015-07-11",18,null,null,null,null,null,null,null,null,null,null,null,null,null,null,null,null,null,null,null,null,null,{"$f":"IF(AND(MONTH($A$1:$A$1000)=MONTH(Plan1!$H$3),YEAR($A$1:$A$1000)=Plan1!$J$3),MAX(X$1:X40)+1,\"\")","v":""}]
["2015-07-12",19,null,null,null,null,null,null,null,null,null,null,null,null,null,null,null,null,null,null,null,null,null,{"$f":"IF(AND(MONTH($A$1:$A$1000)=MONTH(Plan1!$H$3),YEAR($A$1:$A$1000)=Plan1!$J$3),MAX(X$1:X41)+1,\"\")","v":""}]
["2015-07-13",20,null,null,null,null,null,null,null,null,null,null,null,null,null,null,null,null,null,null,null,null,null,{"$f":"IF(AND(MONTH($A$1:$A$1000)=MONTH(Plan1!$H$3),YEAR($A$1:$A$1000)=Plan1!$J$3),MAX(X$1:X42)+1,\"\")","v":""}]
["2015-07-14",21,null,null,null,null,null,null,null,null,null,null,null,null,null,null,null,null,null,null,null,null,null,{"$f":"IF(AND(MONTH($A$1:$A$1000)=MONTH(Plan1!$H$3),YEAR($A$1:$A$1000)=Plan1!$J$3),MAX(X$1:X43)+1,\"\")","v":""}]
["2015-07-15",22,null,null,null,null,null,null,null,null,null,null,null,null,null,null,null,null,null,null,null,null,null,{"$f":"IF(AND(MONTH($A$1:$A$1000)=MONTH(Plan1!$H$3),YEAR($A$1:$A$1000)=Plan1!$J$3),MAX(X$1:X44)+1,\"\")","v":""}]
["2015-07-16",23,null,null,null,null,null,null,null,null,null,null,null,null,null,null,null,null,null,null,null,null,null,{"$f":"IF(AND(MONTH($A$1:$A$1000)=MONTH(Plan1!$H$3),YEAR($A$1:$A$1000)=Plan1!$J$3),MAX(X$1:X45)+1,\"\")","v":""}]
["2015-07-17",24,null,null,null,null,null,null,null,null,null,null,null,null,null,null,null,null,null,null,null,null,null,{"$f":"IF(AND(MONTH($A$1:$A$1000)=MONTH(Plan1!$H$3),YEAR($A$1:$A$1000)=Plan1!$J$3),MAX(X$1:X46)+1,\"\")","v":""}]
["2015-07-18",25,null,null,null,null,null,null,null,null,null,null,null,null,null,null,null,null,null,null,null,null,null,{"$f":"IF(AND(MONTH($A$1:$A$1000)=MONTH(Plan1!$H$3),YEAR($A$1:$A$1000)=Plan1!$J$3),MAX(X$1:X47)+1,\"\")","v":""}]
["2015-07-19",26,null,null,null,null,null,null,null,null,null,null,null,null,null,null,null,null,null,null,null,null,null,{"$f":"IF(AND(MONTH($A$1:$A$1000)=MONTH(Plan1!$H$3),YEAR($A$1:$A$1000)=Plan1!$J$3),MAX(X$1:X48)+1,\"\")","v":""}]
["2015-07-20",1,null,null,null,null,null,null,null,null,null,null,null,null,null,null,null,null,null,null,null,null,null,{"$f":"IF(AND(MONTH($A$1:$A$1000)=MONTH(Plan1!$H$3),YEAR($A$1:$A$1000)=Plan1!$J$3),MAX(X$1:X49)+1,\"\")","v":""}]
["2015-07-21",2,null,null,null,null,null,null,null,null,null,null,null,null,null,null,null,null,null,null,null,null,null,{"$f":"IF(AND(MONTH($A$1:$A$1000)=MONTH(Plan1!$H$3),YEAR($A$1:$A$1000)=Plan1!$J$3),MAX(X$1:X50)+1,\"\")","v":""}]
["2015-07-22",3,null,null,null,null,null,null,null,null,null,null,null,null,null,null,null,null,null,null,null,null,null,{"$f":"IF(AND(MONTH($A$1:$A$1000)=MONTH(Plan1!$H$3),YEAR($A$1:$A$1000)=Plan1!$J$3),MAX(X$1:X51)+1,\"\")","v":""}]
["2015-07-23",4,null,null,null,null,null,null,null,null,null,null,null,null,null,null,null,null,null,null,null,null,null,{"$f":"IF(AND(MONTH($A$1:$A$1000)=MONTH(Plan1!$H$3),YEAR($A$1:$A$1000)=Plan1!$J$3),MAX(X$1:X52)+1,\"\")","v":""}]
["2015-07-24",5,null,null,null,null,null,null,null,null,null,null,null,null,null,null,null,null,null,null,null,null,null,{"$f":"IF(AND(MONTH($A$1:$A$1000)=MONTH(Plan1!$H$3),YEAR($A$1:$A$1000)=Plan1!$J$3),MAX(X$1:X53)+1,\"\")","v":""}]
["2015-07-25",6,null,null,null,null,null,null,null,null,null,null,null,null,null,null,null,null,null,null,null,null,null,{"$f":"IF(AND(MONTH($A$1:$A$1000)=MONTH(Plan1!$H$3),YEAR($A$1:$A$1000)=Plan1!$J$3),MAX(X$1:X54)+1,\"\")","v":""}]
["2015-07-26",7,null,null,null,null,null,null,null,null,null,null,null,null,null,null,null,null,null,null,null,null,null,{"$f":"IF(AND(MONTH($A$1:$A$1000)=MONTH(Plan1!$H$3),YEAR($A$1:$A$1000)=Plan1!$J$3),MAX(X$1:X55)+1,\"\")","v":""}]
["2015-07-27",8,null,null,null,null,null,null,null,null,null,null,null,null,null,null,null,null,null,null,null,null,null,{"$f":"IF(AND(MONTH($A$1:$A$1000)=MONTH(Plan1!$H$3),YEAR($A$1:$A$1000)=Plan1!$J$3),MAX(X$1:X56)+1,\"\")","v":""}]
["2015-07-28",9,null,null,null,null,null,null,null,null,null,null,null,null,null,null,null,null,null,null,null,null,null,{"$f":"IF(AND(MONTH($A$1:$A$1000)=MONTH(Plan1!$H$3),YEAR($A$1:$A$1000)=Plan1!$J$3),MAX(X$1:X57)+1,\"\")","v":""}]
["2015-07-29",10,null,null,null,null,null,null,null,null,null,null,null,null,null,null,null,null,null,null,null,null,null,{"$f":"IF(AND(MONTH($A$1:$A$1000)=MONTH(Plan1!$H$3),YEAR($A$1:$A$1000)=Plan1!$J$3),MAX(X$1:X58)+1,\"\")","v":""}]
["2015-07-30",11,null,null,null,null,null,null,null,null,null,null,null,null,null,null,null,null,null,null,null,null,null,{"$f":"IF(AND(MONTH($A$1:$A$1000)=MONTH(Plan1!$H$3),YEAR($A$1:$A$1000)=Plan1!$J$3),MAX(X$1:X59)+1,\"\")","v":""}]
["2015-07-31",12,null,null,null,null,null,null,null,null,null,null,null,null,null,null,null,null,null,null,null,null,null,{"$f":"IF(AND(MONTH($A$1:$A$1000)=MONTH(Plan1!$H$3),YEAR($A$1:$A$1000)=Plan1!$J$3),MAX(X$1:X60)+1,\"\")","v":""}]
["2015-08-01",13,null,null,null,null,null,null,null,null,null,null,null,null,null,null,null,null,null,null,null,null,null,{"$f":"IF(AND(MONTH($A$1:$A$1000)=MONTH(Plan1!$H$3),YEAR($A$1:$A$1000)=Plan1!$J$3),MAX(X$1:X61)+1,\"\")","v":""}]
["2015-08-02",14,null,null,null,null,null,null,null,null,null,null,null,null,null,null,null,null,null,null,null,null,null,{"$f":"IF(AND(MONTH($A$1:$A$1000)=MONTH(Plan1!$H$3),YEAR($A$1:$A$1000)=Plan1!$J$3),MAX(X$1:X62)+1,\"\")","v":""}]
["2015-08-03",15,null,null,null,null,null,null,null,null,null,null,null,null,null,null,null,null,null,null,null,null,null,{"$f":"IF(AND(MONTH($A$1:$A$1000)=MONTH(Plan1!$H$3),YEAR($A$1:$A$1000)=Plan1!$J$3),MAX(X$1:X63)+1,\"\")","v":""}]
["2015-08-04",16,null,null,null,null,null,null,null,null,null,null,null,null,null,null,null,null,null,null,null,null,null,{"$f":"IF(AND(MONTH($A$1:$A$1000)=MONTH(Plan1!$H$3),YEAR($A$1:$A$1000)=Plan1!$J$3),MAX(X$1:X64)+1,\"\")","v":""}]
["2015-08-05",17,null,null,null,null,null,null,null,null,null,null,null,null,null,null,null,null,null,null,null,null,null,{"$f":"IF(AND(MONTH($A$1:$A$1000)=MONTH(Plan1!$H$3),YEAR($A$1:$A$1000)=Plan1!$J$3),MAX(X$1:X65)+1,\"\")","v":""}]
["2015-08-06",18,null,null,null,null,null,null,null,null,null,null,null,null,null,null,null,null,null,null,null,null,null,{"$f":"IF(AND(MONTH($A$1:$A$1000)=MONTH(Plan1!$H$3),YEAR($A$1:$A$1000)=Plan1!$J$3),MAX(X$1:X66)+1,\"\")","v":""}]
["2015-08-07",19,null,null,null,null,null,null,null,null,null,null,null,null,null,null,null,null,null,null,null,null,null,{"$f":"IF(AND(MONTH($A$1:$A$1000)=MONTH(Plan1!$H$3),YEAR($A$1:$A$1000)=Plan1!$J$3),MAX(X$1:X67)+1,\"\")","v":""}]
["2015-08-08",20,null,null,null,null,null,null,null,null,null,null,null,null,null,null,null,null,null,null,null,null,null,{"$f":"IF(AND(MONTH($A$1:$A$1000)=MONTH(Plan1!$H$3),YEAR($A$1:$A$1000)=Plan1!$J$3),MAX(X$1:X68)+1,\"\")","v":""}]
["2015-08-09",21,null,null,null,null,null,null,null,null,null,null,null,null,null,null,null,null,null,null,null,null,null,{"$f":"IF(AND(MONTH($A$1:$A$1000)=MONTH(Plan1!$H$3),YEAR($A$1:$A$1000)=Plan1!$J$3),MAX(X$1:X69)+1,\"\")","v":""}]
["2015-08-10",22,null,null,null,null,null,null,null,null,null,null,null,null,null,null,null,null,null,null,null,null,null,{"$f":"IF(AND(MONTH($A$1:$A$1000)=MONTH(Plan1!$H$3),YEAR($A$1:$A$1000)=Plan1!$J$3),MAX(X$1:X70)+1,\"\")","v":""}]
["2015-08-11",23,null,null,null,null,null,null,null,null,null,null,null,null,null,null,null,null,null,null,null,null,null,{"$f":"IF(AND(MONTH($A$1:$A$1000)=MONTH(Plan1!$H$3),YEAR($A$1:$A$1000)=Plan1!$J$3),MAX(X$1:X71)+1,\"\")","v":""}]
["2015-08-12",24,null,null,null,null,null,null,null,null,null,null,null,null,null,null,null,null,null,null,null,null,null,{"$f":"IF(AND(MONTH($A$1:$A$1000)=MONTH(Plan1!$H$3),YEAR($A$1:$A$1000)=Plan1!$J$3),MAX(X$1:X72)+1,\"\")","v":""}]
["2015-08-13",25,null,null,null,null,null,null,null,null,null,null,null,null,null,null,null,null,null,null,null,null,null,{"$f":"IF(AND(MONTH($A$1:$A$1000)=MONTH(Plan1!$H$3),YEAR($A$1:$A$1000)=Plan1!$J$3),MAX(X$1:X73)+1,\"\")","v":""}]
["2015-08-14",26,null,null,null,null,null,null,null,null,null,null,null,null,null,null,null,null,null,null,null,null,null,{"$f":"IF(AND(MONTH($A$1:$A$1000)=MONTH(Plan1!$H$3),YEAR($A$1:$A$1000)=Plan1!$J$3),MAX(X$1:X74)+1,\"\")","v":""}]
["2015-08-15",27,null,null,null,null,null,null,null,null,null,null,null,null,null,null,null,null,null,null,null,null,null,{"$f":"IF(AND(MONTH($A$1:$A$1000)=MONTH(Plan1!$H$3),YEAR($A$1:$A$1000)=Plan1!$J$3),MAX(X$1:X75)+1,\"\")","v":""}]
["2015-08-16",28,null,null,null,null,null,null,null,null,null,null,null,null,null,null,null,null,null,null,null,null,null,{"$f":"IF(AND(MONTH($A$1:$A$1000)=MONTH(Plan1!$H$3),YEAR($A$1:$A$1000)=Plan1!$J$3),MAX(X$1:X76)+1,\"\")","v":""}]
["2015-08-17",29,null,null,null,null,null,null,null,null,null,null,null,null,null,null,null,null,null,null,null,null,null,{"$f":"IF(AND(MONTH($A$1:$A$1000)=MONTH(Plan1!$H$3),YEAR($A$1:$A$1000)=Plan1!$J$3),MAX(X$1:X77)+1,\"\")","v":""}]
["2015-08-18",30,null,null,null,null,null,null,null,null,null,null,null,null,null,null,null,null,null,null,null,null,null,{"$f":"IF(AND(MONTH($A$1:$A$1000)=MONTH(Plan1!$H$3),YEAR($A$1:$A$1000)=Plan1!$J$3),MAX(X$1:X78)+1,\"\")","v":""}]
["2015-08-19",31,null,null,null,null,null,null,null,null,null,null,null,null,null,null,null,null,null,null,null,null,null,{"$f":"IF(AND(MONTH($A$1:$A$1000)=MONTH(Plan1!$H$3),YEAR($A$1:$A$1000)=Plan1!$J$3),MAX(X$1:X79)+1,\"\")","v":""}]
["2015-08-20",32,null,null,null,null,null,null,null,null,null,null,null,null,null,null,null,null,null,null,null,null,null,{"$f":"IF(AND(MONTH($A$1:$A$1000)=MONTH(Plan1!$H$3),YEAR($A$1:$A$1000)=Plan1!$J$3),MAX(X$1:X80)+1,\"\")","v":""}]
["2015-08-21",33,null,null,null,null,null,null,null,null,null,null,null,null,null,null,null,null,null,null,null,null,null,{"$f":"IF(AND(MONTH($A$1:$A$1000)=MONTH(Plan1!$H$3),YEAR($A$1:$A$1000)=Plan1!$J$3),MAX(X$1:X81)+1,\"\")","v":""}]
["2015-08-22",34,null,null,null,null,null,null,null,null,null,null,null,null,null,null,null,null,null,null,null,null,null,{"$f":"IF(AND(MONTH($A$1:$A$1000)=MONTH(Plan1!$H$3),YEAR($A$1:$A$1000)=Plan1!$J$3),MAX(X$1:X82)+1,\"\")","v":""}]
["2015-08-23",35,null,null,null,null,null,null,null,null,null,null,null,null,null,null,null,null,null,null,null,null,null,{"$f":"IF(AND(MONTH($A$1:$A$1000)=MONTH(Plan1!$H$3),YEAR($A$1:$A$1000)=Plan1!$J$3),MAX(X$1:X83)+1,\"\")","v":""}]
["2015-08-24",36,null,null,null,null,null,null,null,null,null,null,null,null,null,null,null,null,null,null,null,null,null,{"$f":"IF(AND(MONTH($A$1:$A$1000)=MONTH(Plan1!$H$3),YEAR($A$1:$A$1000)=Plan1!$J$3),MAX(X$1:X84)+1,\"\")","v":""}]
["2015-08-25",37,null,null,null,null,null,null,null,null,null,null,null,null,null,null,null,null,null,null,null,null,null,{"$f":"IF(AND(MONTH($A$1:$A$1000)=MONTH(Plan1!$H$3),YEAR($A$1:$A$1000)=Plan1!$J$3),MAX(X$1:X85)+1,\"\")","v":""}]
["2015-08-26",38,null,null,null,null,null,null,null,null,null,null,null,null,null,null,null,null,null,null,null,null,null,{"$f":"IF(AND(MONTH($A$1:$A$1000)=MONTH(Plan1!$H$3),YEAR($A$1:$A$1000)=Plan1!$J$3),MAX(X$1:X86)+1,\"\")","v":""}]
["2015-08-27",39,null,null,null,null,null,null,null,null,null,null,null,null,null,null,null,null,null,null,null,null,null,{"$f":"IF(AND(MONTH($A$1:$A$1000)=MONTH(Plan1!$H$3),YEAR($A$1:$A$1000)=Plan1!$J$3),MAX(X$1:X87)+1,\"\")","v":""}]
["2015-08-28",40,null,null,null,null,null,null,null,null,null,null,null,null,null,null,null,null,null,null,null,null,null,{"$f":"IF(AND(MONTH($A$1:$A$1000)=MONTH(Plan1!$H$3),YEAR($A$1:$A$1000)=Plan1!$J$3),MAX(X$1:X88)+1,\"\")","v":""}]
["2015-08-29",41,null,null,null,null,null,null,null,null,null,null,null,null,null,null,null,null,null,null,null,null,null,{"$f":"IF(AND(MONTH($A$1:$A$1000)=MONTH(Plan1!$H$3),YEAR($A$1:$A$1000)=Plan1!$J$3),MAX(X$1:X89)+1,\"\")","v":""}]
["2015-08-30",42,null,null,null,null,null,null,null,null,null,null,null,null,null,null,null,null,null,null,null,null,null,{"$f":"IF(AND(MONTH($A$1:$A$1000)=MONTH(Plan1!$H$3),YEAR($A$1:$A$1000)=Plan1!$J$3),MAX(X$1:X90)+1,\"\")","v":""}]
["2015-08-31",43,null,null,null,null,null,null,null,null,null,null,null,null,null,null,null,null,null,null,null,null,null,{"$f":"IF(AND(MONTH($A$1:$A$1000)=MONTH(Plan1!$H$3),YEAR($A$1:$A$1000)=Plan1!$J$3),MAX(X$1:X91)+1,\"\")","v":""}]
["2016-06-01",1000,null,null,null,null,null,null,null,null,null,null,null,null,null,null,null,null,null,null,null,null,null,{"$f":"IF(AND(MONTH($A$1:$A$1000)=MONTH(Plan1!$H$3),YEAR($A$1:$A$1000)=Plan1!$J$3),MAX(X$1:X92)+1,\"\")","v":""}]
["2016-06-02",2000,null,null,null,null,null,null,null,null,null,null,null,null,null,null,null,null,null,null,null,null,null,{"$f":"IF(AND(MONTH($A$1:$A$1000)=MONTH(Plan1!$H$3),YEAR($A$1:$A$1000)=Plan1!$J$3),MAX(X$1:X93)+1,\"\")","v":""}]
["2016-06-03",3000,null,null,null,null,null,null,null,null,null,null,null,null,null,null,null,null,null,null,null,null,null,{"$f":"IF(AND(MONTH($A$1:$A$1000)=MONTH(Plan1!$H$3),YEAR($A$1:$A$1000)=Plan1!$J$3),MAX(X$1:X94)+1,\"\")","v":""}]
["2016-06-04",4000,null,null,null,null,null,null,null,null,null,null,null,null,null,null,null,null,null,null,null,null,null,{"$f":"IF(AND(MONTH($A$1:$A$1000)=MONTH(Plan1!$H$3),YEAR($A$1:$A$1000)=Plan1!$J$3),MAX(X$1:X95)+1,\"\")","v":""}]
["2016-06-05",5000,null,null,null,null,null,null,null,null,null,null,null,null,null,null,null,null,null,null,null,null,null,{"$f":"IF(AND(MONTH($A$1:$A$1000)=MONTH(Plan1!$H$3),YEAR($A$1:$A$1000)=Plan1!$J$3),MAX(X$1:X96)+1,\"\")","v":""}]
["2016-06-06",6000,null,null,null,null,null,null,null,null,null,null,null,null,null,null,null,null,null,null,null,null,null,{"$f":"IF(AND(MONTH($A$1:$A$1000)=MONTH(Plan1!$H$3),YEAR($A$1:$A$1000)=Plan1!$J$3),MAX(X$1:X97)+1,\"\")","v":""}]
["2016-06-07",7000,null,null,null,null,null,null,null,null,null,null,null,null,null,null,null,null,null,null,null,null,null,{"$f":"IF(AND(MONTH($A$1:$A$1000)=MONTH(Plan1!$H$3),YEAR($A$1:$A$1000)=Plan1!$J$3),MAX(X$1:X98)+1,\"\")","v":""}]
["2016-06-08",8000,null,null,null,null,null,null,null,null,null,null,null,null,null,null,null,null,null,null,null,null,null,{"$f":"IF(AND(MONTH($A$1:$A$1000)=MONTH(Plan1!$H$3),YEAR($A$1:$A$1000)=Plan1!$J$3),MAX(X$1:X99)+1,\"\")","v":""}]
["2016-06-09",9000,null,null,null,null,null,null,null,null,null,null,null,null,null,null,null,null,null,null,null,null,null,{"$f":"IF(AND(MONTH($A$1:$A$1000)=MONTH(Plan1!$H$3),YEAR($A$1:$A$1000)=Plan1!$J$3),MAX(X$1:X100)+1,\"\")","v":""}]
["2016-06-10",10000,null,null,null,null,null,null,null,null,null,null,null,null,null,null,null,null,null,null,null,null,null,{"$f":"IF(AND(MONTH($A$1:$A$1000)=MONTH(Plan1!$H$3),YEAR($A$1:$A$1000)=Plan1!$J$3),MAX(X$1:X101)+1,\"\")","v":""}]
["2016-06-11",11000,null,null,null,null,null,null,null,null,null,null,null,null,null,null,null,null,null,null,null,null,null,{"$f":"IF(AND(MONTH($A$1:$A$1000)=MONTH(Plan1!$H$3),YEAR($A$1:$A$1000)=Plan1!$J$3),MAX(X$1:X102)+1,\"\")","v":""}]
["2016-06-12",12000,null,null,null,null,null,null,null,null,null,null,null,null,null,null,null,null,null,null,null,null,null,{"$f":"IF(AND(MONTH($A$1:$A$1000)=MONTH(Plan1!$H$3),YEAR($A$1:$A$1000)=Plan1!$J$3),MAX(X$1:X103)+1,\"\")","v":""}]
["2016-06-13",1000,null,null,null,null,null,null,null,null,null,null,null,null,null,null,null,null,null,null,null,null,null,{"$f":"IF(AND(MONTH($A$1:$A$1000)=MONTH(Plan1!$H$3),YEAR($A$1:$A$1000)=Plan1!$J$3),MAX(X$1:X104)+1,\"\")","v":""}]
["2016-06-14",2000,null,null,null,null,null,null,null,null,null,null,null,null,null,null,null,null,null,null,null,null,null,{"$f":"IF(AND(MONTH($A$1:$A$1000)=MONTH(Plan1!$H$3),YEAR($A$1:$A$1000)=Plan1!$J$3),MAX(X$1:X105)+1,\"\")","v":""}]
["2016-06-15",3000,null,null,null,null,null,null,null,null,null,null,null,null,null,null,null,null,null,null,null,null,null,{"$f":"IF(AND(MONTH($A$1:$A$1000)=MONTH(Plan1!$H$3),YEAR($A$1:$A$1000)=Plan1!$J$3),MAX(X$1:X106)+1,\"\")","v":""}]
["2016-06-16",4000,null,null,null,null,null,null,null,null,null,null,null,null,null,null,null,null,null,null,null,null,null,{"$f":"IF(AND(MONTH($A$1:$A$1000)=MONTH(Plan1!$H$3),YEAR($A$1:$A$1000)=Plan1!$J$3),MAX(X$1:X107)+1,\"\")","v":""}]
["2016-06-17",5000,null,null,null,null,null,null,null,null,null,null,null,null,null,null,null,null,null,null,null,null,null,{"$f":"IF(AND(MONTH($A$1:$A$1000)=MONTH(Plan1!$H$3),YEAR($A$1:$A$1000)=Plan1!$J$3),MAX(X$1:X108)+1,\"\")","v":""}]
["2016-06-18",6000,null,null,null,null,null,null,null,null,null,null,null,null,null,null,null,null,null,null,null,null,null,{"$f":"IF(AND(MONTH($A$1:$A$1000)=MONTH(Plan1!$H$3),YEAR($A$1:$A$1000)=Plan1!$J$3),MAX(X$1:X109)+1,\"\")","v":""}]
["2016-06-19",7000,null,null,null,null,null,null,null,null,null,null,null,null,null,null,null,null,null,null,null,null,null,{"$f":"IF(AND(MONTH($A$1:$A$1000)=MONTH(Plan1!$H$3),YEAR($A$1:$A$1000)=Plan1!$J$3),MAX(X$1:X110)+1,\"\")","v":""}]
["2016-06-20",8000,null,null,null,null,null,null,null,null,null,null,null,null,null,null,null,null,null,null,null,null,null,{"$f":"IF(AND(MONTH($A$1:$A$1000)=MONTH(Plan1!$H$3),YEAR($A$1:$A$1000)=Plan1!$J$3),MAX(X$1:X111)+1,\"\")","v":""}]
["2016-06-21",9000,null,null,null,null,null,null,null,null,null,null,null,null,null,null,null,null,null,null,null,null,null,{"$f":"IF(AND(MONTH($A$1:$A$1000)=MONTH(Plan1!$H$3),YEAR($A$1:$A$1000)=Plan1!$J$3),MAX(X$1:X112)+1,\"\")","v":""}]
["2016-06-22",10000,null,null,null,null,null,null,null,null,null,null,null,null,null,null,null,null,null,null,null,null,null,{"$f":"IF(AND(MONTH($A$1:$A$1000)=MONTH(Plan1!$H$3),YEAR($A$1:$A$1000)=Plan1!$J$3),MAX(X$1:X113)+1,\"\")","v":""}]
["2016-06-23",11000,null,null,null,null,null,null,null,null,null,null,null,null,null,null,null,null,null,null,null,null,null,{"$f":"IF(AND(MONTH($A$1:$A$1000)=MONTH(Plan1!$H$3),YEAR($A$1:$A$1000)=Plan1!$J$3),MAX(X$1:X114)+1,\"\")","v":""}]
["2016-06-24",12000,null,null,null,null,null,null,null,null,null,null,null,null,null,null,null,null,null,null,null,null,null,{"$f":"IF(AND(MONTH($A$1:$A$1000)=MONTH(Plan1!$H$3),YEAR($A$1:$A$1000)=Plan1!$J$3),MAX(X$1:X115)+1,\"\")","v":""}]
["2016-06-25",1000,null,null,null,null,null,null,null,null,null,null,null,null,null,null,null,null,null,null,null,null,null,{"$f":"IF(AND(MONTH($A$1:$A$1000)=MONTH(Plan1!$H$3),YEAR($A$1:$A$1000)=Plan1!$J$3),MAX(X$1:X116)+1,\"\")","v":""}]
["2016-06-26",2000,null,null,null,null,null,null,null,null,null,null,null,null,null,null,null,null,null,null,null,null,null,{"$f":"IF(AND(MONTH($A$1:$A$1000)=MONTH(Plan1!$H$3),YEAR($A$1:$A$1000)=Plan1!$J$3),MAX(X$1:X117)+1,\"\")","v":""}]
["2016-06-27",3000,null,null,null,null,null,null,null,null,null,null,null,null,null,null,null,null,null,null,null,null,null,{"$f":"IF(AND(MONTH($A$1:$A$1000)=MONTH(Plan1!$H$3),YEAR($A$1:$A$1000)=Plan1!$J$3),MAX(X$1:X118)+1,\"\")","v":""}]
["2016-06-28",4000,null,null,null,null,null,null,null,null,null,null,null,null,null,null,null,null,null,null,null,null,null,{"$f":"IF(AND(MONTH($A$1:$A$1000)=MONTH(Plan1!$H$3),YEAR($A$1:$A$1000)=Plan1!$J$3),MAX(X$1:X119)+1,\"\")","v":""}]
["2016-06-29",5000,null,null,null,null,null,null,null,null,null,null,null,null,null,null,null,null,null,null,null,null,null,{"$f":"IF(AND(MONTH($A$1:$A$1000)=MONTH(Plan1!$H$3),YEAR($A$1:$A$1000)=Plan1!$J$3),MAX(X$1:X120)+1,\"\")","v":""}]
["2016-06-30",6000,null,null,null,null,null,null,null,null,null,null,null,null,null,null,null,null,null,null,null,null,null,{"$f":"IF(AND(MONTH($A$1:$A$1000)=MONTH(Plan1!$H$3),YEAR($A$1:$A$1000)=Plan1!$J$3),MAX(X$1:X121)+1,\"\")","v":""}]
["2016-07-01",7000,null,null,null,null,null,null,null,null,null,null,null,null,null,null,null,null,null,null,null,null,null,{"$f":"IF(AND(MONTH($A$1:$A$1000)=MONTH(Plan1!$H$3),YEAR($A$1:$A$1000)=Plan1!$J$3),MAX(X$1:X122)+1,\"\")","v":""}]
["2016-07-02",8000,null,null,null,null,null,null,null,null,null,null,null,null,null,null,null,null,null,null,null,null,null,{"$f":"IF(AND(MONTH($A$1:$A$1000)=MONTH(Plan1!$H$3),YEAR($A$1:$A$1000)=Plan1!$J$3),MAX(X$1:X123)+1,\"\")","v":""}]
["2016-07-03",9000,null,null,null,null,null,null,null,null,null,null,null,null,null,null,null,null,null,null,null,null,null,{"$f":"IF(AND(MONTH($A$1:$A$1000)=MONTH(Plan1!$H$3),YEAR($A$1:$A$1000)=Plan1!$J$3),MAX(X$1:X124)+1,\"\")","v":""}]
["2016-07-04",10000,null,null,null,null,null,null,null,null,null,null,null,null,null,null,null,null,null,null,null,null,null,{"$f":"IF(AND(MONTH($A$1:$A$1000)=MONTH(Plan1!$H$3),YEAR($A$1:$A$1000)=Plan1!$J$3),MAX(X$1:X125)+1,\"\")","v":""}]
["2016-07-05",11000,null,null,null,null,null,null,null,null,null,null,null,null,null,null,null,null,null,null,null,null,null,{"$f":"IF(AND(MONTH($A$1:$A$1000)=MONTH(Plan1!$H$3),YEAR($A$1:$A$1000)=Plan1!$J$3),MAX(X$1:X126)+1,\"\")","v":""}]
["2016-07-06",12000,null,null,null,null,null,null,null,null,null,null,null,null,null,null,null,null,null,null,null,null,null,{"$f":"IF(AND(MONTH($A$1:$A$1000)=MONTH(Plan1!$H$3),YEAR($A$1:$A$1000)=Plan1!$J$3),MAX(X$1:X127)+1,\"\")","v":""}]
["2016-07-07",1000,null,null,null,null,null,null,null,null,null,null,null,null,null,null,null,null,null,null,null,null,null,{"$f":"IF(AND(MONTH($A$1:$A$1000)=MONTH(Plan1!$H$3),YEAR($A$1:$A$1000)=Plan1!$J$3),MAX(X$1:X128)+1,\"\")","v":""}]
["2016-07-08",2000,null,null,null,null,null,null,null,null,null,null,null,null,null,null,null,null,null,null,null,null,null,{"$f":"IF(AND(MONTH($A$1:$A$1000)=MONTH(Plan1!$H$3),YEAR($A$1:$A$1000)=Plan1!$J$3),MAX(X$1:X129)+1,\"\")","v":""}]
["2016-07-09",3000,null,null,null,null,null,null,null,null,null,null,null,null,null,null,null,null,null,null,null,null,null,{"$f":"IF(AND(MONTH($A$1:$A$1000)=MONTH(Plan1!$H$3),YEAR($A$1:$A$1000)=Plan1!$J$3),MAX(X$1:X130)+1,\"\")","v":""}]
["2016-07-10",4000,null,null,null,null,null,null,null,null,null,null,null,null,null,null,null,null,null,null,null,null,null,{"$f":"IF(AND(MONTH($A$1:$A$1000)=MONTH(Plan1!$H$3),YEAR($A$1:$A$1000)=Plan1!$J$3),MAX(X$1:X131)+1,\"\")","v":""}]
["2016-07-11",5000,null,null,null,null,null,null,null,null,null,null,null,null,null,null,null,null,null,null,null,null,null,{"$f":"IF(AND(MONTH($A$1:$A$1000)=MONTH(Plan1!$H$3),YEAR($A$1:$A$1000)=Plan1!$J$3),MAX(X$1:X132)+1,\"\")","v":""}]
["2016-07-12",6000,null,null,null,null,null,null,null,null,null,null,null,null,null,null,null,null,null,null,null,null,null,{"$f":"IF(AND(MONTH($A$1:$A$1000)=MONTH(Plan1!$H$3),YEAR($A$1:$A$1000)=Plan1!$J$3),MAX(X$1:X133)+1,\"\")","v":""}]
["2016-07-13",7000,null,null,null,null,null,null,null,null,null,null,null,null,null,null,null,null,null,null,null,null,null,{"$f":"IF(AND(MONTH($A$1:$A$1000)=MONTH(Plan1!$H$3),YEAR($A$1:$A$1000)=Plan1!$J$3),MAX(X$1:X134)+1,\"\")","v":""}]
["2016-07-14",8000,null,null,null,null,null,null,null,null,null,null,null,null,null,null,null,null,null,null,null,null,null,{"$f":"IF(AND(MONTH($A$1:$A$1000)=MONTH(Plan1!$H$3),YEAR($A$1:$A$1000)=Plan1!$J$3),MAX(X$1:X135)+1,\"\")","v":""}]
["2016-07-15",9000,null,null,null,null,null,null,null,null,null,null,null,null,null,null,null,null,null,null,null,null,null,{"$f":"IF(AND(MONTH($A$1:$A$1000)=MONTH(Plan1!$H$3),YEAR($A$1:$A$1000)=Plan1!$J$3),MAX(X$1:X136)+1,\"\")","v":""}]
["2016-07-16",10000,null,null,null,null,null,null,null,null,null,null,null,null,null,null,null,null,null,null,null,null,null,{"$f":"IF(AND(MONTH($A$1:$A$1000)=MONTH(Plan1!$H$3),YEAR($A$1:$A$1000)=Plan1!$J$3),MAX(X$1:X137)+1,\"\")","v":""}]
["2016-07-17",11000,null,null,null,null,null,null,null,null,null,null,null,null,null,null,null,null,null,null,null,null,null,{"$f":"IF(AND(MONTH($A$1:$A$1000)=MONTH(Plan1!$H$3),YEAR($A$1:$A$1000)=Plan1!$J$3),MAX(X$1:X138)+1,\"\")","v":""}]
["2016-07-18",12000,null,null,null,null,null,null,null,null,null,null,null,null,null,null,null,null,null,null,null,null,null,{"$f":"IF(AND(MONTH($A$1:$A$1000)=MONTH(Plan1!$H$3),YEAR($A$1:$A$1000)=Plan1!$J$3),MAX(X$1:X139)+1,\"\")","v":""}]
["2016-07-19",1000,null,null,null,null,null,null,null,null,null,null,null,null,null,null,null,null,null,null,null,null,null,{"$f":"IF(AND(MONTH($A$1:$A$1000)=MONTH(Plan1!$H$3),YEAR($A$1:$A$1000)=Plan1!$J$3),MAX(X$1:X140)+1,\"\")","v":""}]
["2016-07-20",2000,null,null,null,null,null,null,null,null,null,null,null,null,null,null,null,null,null,null,null,null,null,{"$f":"IF(AND(MONTH($A$1:$A$1000)=MONTH(Plan1!$H$3),YEAR($A$1:$A$1000)=Plan1!$J$3),MAX(X$1:X141)+1,\"\")","v":""}]
["2016-07-21",3000,null,null,null,null,null,null,null,null,null,null,null,null,null,null,null,null,null,null,null,null,null,{"$f":"IF(AND(MONTH($A$1:$A$1000)=MONTH(Plan1!$H$3),YEAR($A$1:$A$1000)=Plan1!$J$3),MAX(X$1:X142)+1,\"\")","v":""}]
["2016-07-22",4000,null,null,null,null,null,null,null,null,null,null,null,null,null,null,null,null,null,null,null,null,null,{"$f":"IF(AND(MONTH($A$1:$A$1000)=MONTH(Plan1!$H$3),YEAR($A$1:$A$1000)=Plan1!$J$3),MAX(X$1:X143)+1,\"\")","v":""}]
["2016-07-23",5000,null,null,null,null,null,null,null,null,null,null,null,null,null,null,null,null,null,null,null,null,null,{"$f":"IF(AND(MONTH($A$1:$A$1000)=MONTH(Plan1!$H$3),YEAR($A$1:$A$1000)=Plan1!$J$3),MAX(X$1:X144)+1,\"\")","v":""}]
["2016-07-24",6000,null,null,null,null,null,null,null,null,null,null,null,null,null,null,null,null,null,null,null,null,null,{"$f":"IF(AND(MONTH($A$1:$A$1000)=MONTH(Plan1!$H$3),YEAR($A$1:$A$1000)=Plan1!$J$3),MAX(X$1:X145)+1,\"\")","v":""}]
["2016-07-25",7000,null,null,null,null,null,null,null,null,null,null,null,null,null,null,null,null,null,null,null,null,null,{"$f":"IF(AND(MONTH($A$1:$A$1000)=MONTH(Plan1!$H$3),YEAR($A$1:$A$1000)=Plan1!$J$3),MAX(X$1:X146)+1,\"\")","v":""}]
["2016-07-26",8000,null,null,null,null,null,null,null,null,null,null,null,null,null,null,null,null,null,null,null,null,null,{"$f":"IF(AND(MONTH($A$1:$A$1000)=MONTH(Plan1!$H$3),YEAR($A$1:$A$1000)=Plan1!$J$3),MAX(X$1:X147)+1,\"\")","v":""}]
["2016-07-27",9000,null,null,null,null,null,null,null,null,null,null,null,null,null,null,null,null,null,null,null,null,null,{"$f":"IF(AND(MONTH($A$1:$A$1000)=MONTH(Plan1!$H$3),YEAR($A$1:$A$1000)=Plan1!$J$3),MAX(X$1:X148)+1,\"\")","v":""}]
["2016-07-28",10000,null,null,null,null,null,null,null,null,null,null,null,null,null,null,null,null,null,null,null,null,null,{"$f":"IF(AND(MONTH($A$1:$A$1000)=MONTH(Plan1!$H$3),YEAR($A$1:$A$1000)=Plan1!$J$3),MAX(X$1:X149)+1,\"\")","v":""}]
["2016-07-29",11000,null,null,null,null,null,null,null,null,null,null,null,null,null,null,null,null,null,null,null,null,null,{"$f":"IF(AND(MONTH($A$1:$A$1000)=MONTH(Plan1!$H$3),YEAR($A$1:$A$1000)=Plan1!$J$3),MAX(X$1:X150)+1,\"\")","v":""}]
["2016-07-30",12000,null,null,null,null,null,null,null,null,null,null,null,null,null,null,null,null,null,null,null,null,null,{"$f":"IF(AND(MONTH($A$1:$A$1000)=MONTH(Plan1!$H$3),YEAR($A$1:$A$1000)=Plan1!$J$3),MAX(X$1:X151)+1,\"\")","v":""}]
["2016-07-31",1000,null,null,null,null,null,null,null,null,null,null,null,null,null,null,null,null,null,null,null,null,null,{"$f":"IF(AND(MONTH($A$1:$A$1000)=MONTH(Plan1!$H$3),YEAR($A$1:$A$1000)=Plan1!$J$3),MAX(X$1:X152)+1,\"\")","v":""}]
["2016-08-01",2000,null,null,null,null,null,null,null,null,null,null,null,null,null,null,null,null,null,null,null,null,null,{"$f":"IF(AND(MONTH($A$1:$A$1000)=MONTH(Plan1!$H$3),YEAR($A$1:$A$1000)=Plan1!$J$3),MAX(X$1:X153)+1,\"\")","v":""}]
["2016-08-02",3000,null,null,null,null,null,null,null,null,null,null,null,null,null,null,null,null,null,null,null,null,null,{"$f":"IF(AND(MONTH($A$1:$A$1000)=MONTH(Plan1!$H$3),YEAR($A$1:$A$1000)=Plan1!$J$3),MAX(X$1:X154)+1,\"\")","v":""}]
["2016-08-03",4000,null,null,null,null,null,null,null,null,null,null,null,null,null,null,null,null,null,null,null,null,null,{"$f":"IF(AND(MONTH($A$1:$A$1000)=MONTH(Plan1!$H$3),YEAR($A$1:$A$1000)=Plan1!$J$3),MAX(X$1:X155)+1,\"\")","v":""}]
["2016-08-04",5000,null,null,null,null,null,null,null,null,null,null,null,null,null,null,null,null,null,null,null,null,null,{"$f":"IF(AND(MONTH($A$1:$A$1000)=MONTH(Plan1!$H$3),YEAR($A$1:$A$1000)=Plan1!$J$3),MAX(X$1:X156)+1,\"\")","v":""}]
["2016-08-05",6000,null,null,null,null,null,null,null,null,null,null,null,null,null,null,null,null,null,null,null,null,null,{"$f":"IF(AND(MONTH($A$1:$A$1000)=MONTH(Plan1!$H$3),YEAR($A$1:$A$1000)=Plan1!$J$3),MAX(X$1:X157)+1,\"\")","v":""}]
["2016-08-06",7000,null,null,null,null,null,null,null,null,null,null,null,null,null,null,null,null,null,null,null,null,null,{"$f":"IF(AND(MONTH($A$1:$A$1000)=MONTH(Plan1!$H$3),YEAR($A$1:$A$1000)=Plan1!$J$3),MAX(X$1:X158)+1,\"\")","v":""}]
["2016-08-07",8000,null,null,null,null,null,null,null,null,null,null,null,null,null,null,null,null,null,null,null,null,null,{"$f":"IF(AND(MONTH($A$1:$A$1000)=MONTH(Plan1!$H$3),YEAR($A$1:$A$1000)=Plan1!$J$3),MAX(X$1:X159)+1,\"\")","v":""}]
["2016-08-08",9000,null,null,null,null,null,null,null,null,null,null,null,null,null,null,null,null,null,null,null,null,null,{"$f":"IF(AND(MONTH($A$1:$A$1000)=MONTH(Plan1!$H$3),YEAR($A$1:$A$1000)=Plan1!$J$3),MAX(X$1:X160)+1,\"\")","v":""}]
["2016-08-09",10000,null,null,null,null,null,null,null,null,null,null,null,null,null,null,null,null,null,null,null,null,null,{"$f":"IF(AND(MONTH($A$1:$A$1000)=MONTH(Plan1!$H$3),YEAR($A$1:$A$1000)=Plan1!$J$3),MAX(X$1:X161)+1,\"\")","v":""}]
["2016-08-10",11000,null,null,null,null,null,null,null,null,null,null,null,null,null,null,null,null,null,null,null,null,null,{"$f":"IF(AND(MONTH($A$1:$A$1000)=MONTH(Plan1!$H$3),YEAR($A$1:$A$1000)=Plan1!$J$3),MAX(X$1:X162)+1,\"\")","v":""}]
["2016-08-11",12000,null,null,null,null,null,null,null,null,null,null,null,null,null,null,null,null,null,null,null,null,null,{"$f":"IF(AND(MONTH($A$1:$A$1000)=MONTH(Plan1!$H$3),YEAR($A$1:$A$1000)=Plan1!$J$3),MAX(X$1:X163)+1,\"\")","v":""}]
["2016-08-12",1000,null,null,null,null,null,null,null,null,null,null,null,null,null,null,null,null,null,null,null,null,null,{"$f":"IF(AND(MONTH($A$1:$A$1000)=MONTH(Plan1!$H$3),YEAR($A$1:$A$1000)=Plan1!$J$3),MAX(X$1:X164)+1,\"\")","v":""}]
["2016-08-13",2000,null,null,null,null,null,null,null,null,null,null,null,null,null,null,null,null,null,null,null,null,null,{"$f":"IF(AND(MONTH($A$1:$A$1000)=MONTH(Plan1!$H$3),YEAR($A$1:$A$1000)=Plan1!$J$3),MAX(X$1:X165)+1,\"\")","v":""}]
["2016-08-14",3000,null,null,null,null,null,null,null,null,null,null,null,null,null,null,null,null,null,null,null,null,null,{"$f":"IF(AND(MONTH($A$1:$A$1000)=MONTH(Plan1!$H$3),YEAR($A$1:$A$1000)=Plan1!$J$3),MAX(X$1:X166)+1,\"\")","v":""}]
["2016-08-15",4000,null,null,null,null,null,null,null,null,null,null,null,null,null,null,null,null,null,null,null,null,null,{"$f":"IF(AND(MONTH($A$1:$A$1000)=MONTH(Plan1!$H$3),YEAR($A$1:$A$1000)=Plan1!$J$3),MAX(X$1:X167)+1,\"\")","v":""}]
["2016-08-16",5000,null,null,null,null,null,null,null,null,null,null,null,null,null,null,null,null,null,null,null,null,null,{"$f":"IF(AND(MONTH($A$1:$A$1000)=MONTH(Plan1!$H$3),YEAR($A$1:$A$1000)=Plan1!$J$3),MAX(X$1:X168)+1,\"\")","v":""}]
["2016-08-17",6000,null,null,null,null,null,null,null,null,null,null,null,null,null,null,null,null,null,null,null,null,null,{"$f":"IF(AND(MONTH($A$1:$A$1000)=MONTH(Plan1!$H$3),YEAR($A$1:$A$1000)=Plan1!$J$3),MAX(X$1:X169)+1,\"\")","v":""}]
["2016-08-18",7000,null,null,null,null,null,null,null,null,null,null,null,null,null,null,null,null,null,null,null,null,null,{"$f":"IF(AND(MONTH($A$1:$A$1000)=MONTH(Plan1!$H$3),YEAR($A$1:$A$1000)=Plan1!$J$3),MAX(X$1:X170)+1,\"\")","v":""}]
["2016-08-19",8000,null,null,null,null,null,null,null,null,null,null,null,null,null,null,null,null,null,null,null,null,null,{"$f":"IF(AND(MONTH($A$1:$A$1000)=MONTH(Plan1!$H$3),YEAR($A$1:$A$1000)=Plan1!$J$3),MAX(X$1:X171)+1,\"\")","v":""}]
["2016-08-20",9000,null,null,null,null,null,null,null,null,null,null,null,null,null,null,null,null,null,null,null,null,null,{"$f":"IF(AND(MONTH($A$1:$A$1000)=MONTH(Plan1!$H$3),YEAR($A$1:$A$1000)=Plan1!$J$3),MAX(X$1:X172)+1,\"\")","v":""}]
["2016-08-21",10000,null,null,null,null,null,null,null,null,null,null,null,null,null,null,null,null,null,null,null,null,null,{"$f":"IF(AND(MONTH($A$1:$A$1000)=MONTH(Plan1!$H$3),YEAR($A$1:$A$1000)=Plan1!$J$3),MAX(X$1:X173)+1,\"\")","v":""}]
["2016-08-22",11000,null,null,null,null,null,null,null,null,null,null,null,null,null,null,null,null,null,null,null,null,null,{"$f":"IF(AND(MONTH($A$1:$A$1000)=MONTH(Plan1!$H$3),YEAR($A$1:$A$1000)=Plan1!$J$3),MAX(X$1:X174)+1,\"\")","v":""}]
["2016-08-23",12000,null,null,null,null,null,null,null,null,null,null,null,null,null,null,null,null,null,null,null,null,null,{"$f":"IF(AND(MONTH($A$1:$A$1000)=MONTH(Plan1!$H$3),YEAR($A$1:$A$1000)=Plan1!$J$3),MAX(X$1:X175)+1,\"\")","v":""}]
["2016-08-24",1000,null,null,null,null,null,null,null,null,null,null,null,null,null,null,null,null,null,null,null,null,null,{"$f":"IF(AND(MONTH($A$1:$A$1000)=MONTH(Plan1!$H$3),YEAR($A$1:$A$1000)=Plan1!$J$3),MAX(X$1:X176)+1,\"\")","v":""}]
["2016-08-25",2000,null,null,null,null,null,null,null,null,null,null,null,null,null,null,null,null,null,null,null,null,null,{"$f":"IF(AND(MONTH($A$1:$A$1000)=MONTH(Plan1!$H$3),YEAR($A$1:$A$1000)=Plan1!$J$3),MAX(X$1:X177)+1,\"\")","v":""}]
["2016-08-26",3000,null,null,null,null,null,null,null,null,null,null,null,null,null,null,null,null,null,null,null,null,null,{"$f":"IF(AND(MONTH($A$1:$A$1000)=MONTH(Plan1!$H$3),YEAR($A$1:$A$1000)=Plan1!$J$3),MAX(X$1:X178)+1,\"\")","v":""}]
["2016-08-27",4000,null,null,null,null,null,null,null,null,null,null,null,null,null,null,null,null,null,null,null,null,null,{"$f":"IF(AND(MONTH($A$1:$A$1000)=MONTH(Plan1!$H$3),YEAR($A$1:$A$1000)=Plan1!$J$3),MAX(X$1:X179)+1,\"\")","v":""}]
["2016-08-28",5000,null,null,null,null,null,null,null,null,null,null,null,null,null,null,null,null,null,null,null,null,null,{"$f":"IF(AND(MONTH($A$1:$A$1000)=MONTH(Plan1!$H$3),YEAR($A$1:$A$1000)=Plan1!$J$3),MAX(X$1:X180)+1,\"\")","v":""}]
["2016-08-29",6000,null,null,null,null,null,null,null,null,null,null,null,null,null,null,null,null,null,null,null,null,null,{"$f":"IF(AND(MONTH($A$1:$A$1000)=MONTH(Plan1!$H$3),YEAR($A$1:$A$1000)=Plan1!$J$3),MAX(X$1:X181)+1,\"\")","v":""}]
["2016-08-30",7000,null,null,null,null,null,null,null,null,null,null,null,null,null,null,null,null,null,null,null,null,null,{"$f":"IF(AND(MONTH($A$1:$A$1000)=MONTH(Plan1!$H$3),YEAR($A$1:$A$1000)=Plan1!$J$3),MAX(X$1:X182)+1,\"\")","v":""}]
["2016-08-31",8000,null,null,null,null,null,null,null,null,null,null,null,null,null,null,null,null,null,null,null,null,null,{"$f":"IF(AND(MONTH($A$1:$A$1000)=MONTH(Plan1!$H$3),YEAR($A$1:$A$1000)=Plan1!$J$3),MAX(X$1:X183)+1,\"\")","v":""}]
[null,null,null,null,null,null,null,null,null,null,null,null,null,null,null,null,null,null,null,null,null,null,null,{"$f":"IF(AND(MONTH($A$1:$A$1000)=MONTH(Plan1!$H$3),YEAR($A$1:$A$1000)=Plan1!$J$3),MAX(X$1:X184)+1,\"\")","v":""}]
[null,null,null,null,null,null,null,null,null,null,null,null,null,null,null,null,null,null,null,null,null,null,null,{"$f":"IF(AND(MONTH($A$1:$A$1000)=MONTH(Plan1!$H$3),YEAR($A$1:$A$1000)=Plan1!$J$3),MAX(X$1:X185)+1,\"\")","v":""}]
[null,null,null,null,null,null,null,null,null,null,null,null,null,null,null,null,null,null,null,null,null,null,null,{"$f":"IF(AND(MONTH($A$1:$A$1000)=MONTH(Plan1!$H$3),YEAR($A$1:$A$1000)=Plan1!$J$3),MAX(X$1:X186)+1,\"\")","v":""}]
[null,null,null,null,null,null,null,null,null,null,null,null,null,null,null,null,null,null,null,null,null,null,null,{"$f":"IF(AND(MONTH($A$1:$A$1000)=MONTH(Plan1!$H$3),YEAR($A$1:$A$1000)=Plan1!$J$3),MAX(X$1:X187)+1,\"\")","v":""}]
[null,null,null,null,null,null,null,null,null,null,null,null,null,null,null,null,null,null,null,null,null,null,null,{"$f":"IF(AND(MONTH($A$1:$A$1000)=MONTH(Plan1!$H$3),YEAR($A$1:$A$1000)=Plan1!$J$3),MAX(X$1:X188)+1,\"\")","v":""}]
[null,null,null,null,null,null,null,null,null,null,null,null,null,null,null,null,null,null,null,null,null,null,null,{"$f":"IF(AND(MONTH($A$1:$A$1000)=MONTH(Plan1!$H$3),YEAR($A$1:$A$1000)=Plan1!$J$3),MAX(X$1:X189)+1,\"\")","v":""}]
[null,null,null,null,null,null,null,null,null,null,null,null,null,null,null,null,null,null,null,null,null,null,null,{"$f":"IF(AND(MONTH($A$1:$A$1000)=MONTH(Plan1!$H$3),YEAR($A$1:$A$1000)=Plan1!$J$3),MAX(X$1:X190)+1,\"\")","v":""}]
[null,null,null,null,null,null,null,null,null,null,null,null,null,null,null,null,null,null,null,null,null,null,null,{"$f":"IF(AND(MONTH($A$1:$A$1000)=MONTH(Plan1!$H$3),YEAR($A$1:$A$1000)=Plan1!$J$3),MAX(X$1:X191)+1,\"\")","v":""}]
[null,null,null,null,null,null,null,null,null,null,null,null,null,null,null,null,null,null,null,null,null,null,null,{"$f":"IF(AND(MONTH($A$1:$A$1000)=MONTH(Plan1!$H$3),YEAR($A$1:$A$1000)=Plan1!$J$3),MAX(X$1:X192)+1,\"\")","v":""}]
[null,null,null,null,null,null,null,null,null,null,null,null,null,null,null,null,null,null,null,null,null,null,null,{"$f":"IF(AND(MONTH($A$1:$A$1000)=MONTH(Plan1!$H$3),YEAR($A$1:$A$1000)=Plan1!$J$3),MAX(X$1:X193)+1,\"\")","v":""}]
[null,null,null,null,null,null,null,null,null,null,null,null,null,null,null,null,null,null,null,null,null,null,null,{"$f":"IF(AND(MONTH($A$1:$A$1000)=MONTH(Plan1!$H$3),YEAR($A$1:$A$1000)=Plan1!$J$3),MAX(X$1:X194)+1,\"\")","v":""}]
[null,null,null,null,null,null,null,null,null,null,null,null,null,null,null,null,null,null,null,null,null,null,null,{"$f":"IF(AND(MONTH($A$1:$A$1000)=MONTH(Plan1!$H$3),YEAR($A$1:$A$1000)=Plan1!$J$3),MAX(X$1:X195)+1,\"\")","v":""}]
[null,null,null,null,null,null,null,null,null,null,null,null,null,null,null,null,null,null,null,null,null,null,null,{"$f":"IF(AND(MONTH($A$1:$A$1000)=MONTH(Plan1!$H$3),YEAR($A$1:$A$1000)=Plan1!$J$3),MAX(X$1:X196)+1,\"\")","v":""}]
[null,null,null,null,null,null,null,null,null,null,null,null,null,null,null,null,null,null,null,null,null,null,null,{"$f":"IF(AND(MONTH($A$1:$A$1000)=MONTH(Plan1!$H$3),YEAR($A$1:$A$1000)=Plan1!$J$3),MAX(X$1:X197)+1,\"\")","v":""}]
[null,null,null,null,null,null,null,null,null,null,null,null,null,null,null,null,null,null,null,null,null,null,null,{"$f":"IF(AND(MONTH($A$1:$A$1000)=MONTH(Plan1!$H$3),YEAR($A$1:$A$1000)=Plan1!$J$3),MAX(X$1:X198)+1,\"\")","v":""}]
[null,null,null,null,null,null,null,null,null,null,null,null,null,null,null,null,null,null,null,null,null,null,null,{"$f":"IF(AND(MONTH($A$1:$A$1000)=MONTH(Plan1!$H$3),YEAR($A$1:$A$1000)=Plan1!$J$3),MAX(X$1:X199)+1,\"\")","v":""}]
[null,null,null,null,null,null,null,null,null,null,null,null,null,null,null,null,null,null,null,null,null,null,null,{"$f":"IF(AND(MONTH($A$1:$A$1000)=MONTH(Plan1!$H$3),YEAR($A$1:$A$1000)=Plan1!$J$3),MAX(X$1:X200)+1,\"\")","v":""}]
[null,null,null,null,null,null,null,null,null,null,null,null,null,null,null,null,null,null,null,null,null,null,null,{"$f":"IF(AND(MONTH($A$1:$A$1000)=MONTH(Plan1!$H$3),YEAR($A$1:$A$1000)=Plan1!$J$3),MAX(X$1:X201)+1,\"\")","v":""}]
[null,null,null,null,null,null,null,null,null,null,null,null,null,null,null,null,null,null,null,null,null,null,null,{"$f":"IF(AND(MONTH($A$1:$A$1000)=MONTH(Plan1!$H$3),YEAR($A$1:$A$1000)=Plan1!$J$3),MAX(X$1:X202)+1,\"\")","v":""}]
[null,null,null,null,null,null,null,null,null,null,null,null,null,null,null,null,null,null,null,null,null,null,null,{"$f":"IF(AND(MONTH($A$1:$A$1000)=MONTH(Plan1!$H$3),YEAR($A$1:$A$1000)=Plan1!$J$3),MAX(X$1:X203)+1,\"\")","v":""}]
[null,null,null,null,null,null,null,null,null,null,null,null,null,null,null,null,null,null,null,null,null,null,null,{"$f":"IF(AND(MONTH($A$1:$A$1000)=MONTH(Plan1!$H$3),YEAR($A$1:$A$1000)=Plan1!$J$3),MAX(X$1:X204)+1,\"\")","v":""}]
[null,null,null,null,null,null,null,null,null,null,null,null,null,null,null,null,null,null,null,null,null,null,null,{"$f":"IF(AND(MONTH($A$1:$A$1000)=MONTH(Plan1!$H$3),YEAR($A$1:$A$1000)=Plan1!$J$3),MAX(X$1:X205)+1,\"\")","v":""}]
[null,null,null,null,null,null,null,null,null,null,null,null,null,null,null,null,null,null,null,null,null,null,null,{"$f":"IF(AND(MONTH($A$1:$A$1000)=MONTH(Plan1!$H$3),YEAR($A$1:$A$1000)=Plan1!$J$3),MAX(X$1:X206)+1,\"\")","v":""}]
[null,null,null,null,null,null,null,null,null,null,null,null,null,null,null,null,null,null,null,null,null,null,null,{"$f":"IF(AND(MONTH($A$1:$A$1000)=MONTH(Plan1!$H$3),YEAR($A$1:$A$1000)=Plan1!$J$3),MAX(X$1:X207)+1,\"\")","v":""}]
[null,null,null,null,null,null,null,null,null,null,null,null,null,null,null,null,null,null,null,null,null,null,null,{"$f":"IF(AND(MONTH($A$1:$A$1000)=MONTH(Plan1!$H$3),YEAR($A$1:$A$1000)=Plan1!$J$3),MAX(X$1:X208)+1,\"\")","v":""}]
[null,null,null,null,null,null,null,null,null,null,null,null,null,null,null,null,null,null,null,null,null,null,null,{"$f":"IF(AND(MONTH($A$1:$A$1000)=MONTH(Plan1!$H$3),YEAR($A$1:$A$1000)=Plan1!$J$3),MAX(X$1:X209)+1,\"\")","v":""}]
[null,null,null,null,null,null,null,null,null,null,null,null,null,null,null,null,null,null,null,null,null,null,null,{"$f":"IF(AND(MONTH($A$1:$A$1000)=MONTH(Plan1!$H$3),YEAR($A$1:$A$1000)=Plan1!$J$3),MAX(X$1:X210)+1,\"\")","v":""}]
[null,null,null,null,null,null,null,null,null,null,null,null,null,null,null,null,null,null,null,null,null,null,null,{"$f":"IF(AND(MONTH($A$1:$A$1000)=MONTH(Plan1!$H$3),YEAR($A$1:$A$1000)=Plan1!$J$3),MAX(X$1:X211)+1,\"\")","v":""}]
[null,null,null,null,null,null,null,null,null,null,null,null,null,null,null,null,null,null,null,null,null,null,null,{"$f":"IF(AND(MONTH($A$1:$A$1000)=MONTH(Plan1!$H$3),YEAR($A$1:$A$1000)=Plan1!$J$3),MAX(X$1:X212)+1,\"\")","v":""}]
[null,null,null,null,null,null,null,null,null,null,null,null,null,null,null,null,null,null,null,null,null,null,null,{"$f":"IF(AND(MONTH($A$1:$A$1000)=MONTH(Plan1!$H$3),YEAR($A$1:$A$1000)=Plan1!$J$3),MAX(X$1:X213)+1,\"\")","v":""}]
[null,null,null,null,null,null,null,null,null,null,null,null,null,null,null,null,null,null,null,null,null,null,null,{"$f":"IF(AND(MONTH($A$1:$A$1000)=MONTH(Plan1!$H$3),YEAR($A$1:$A$1000)=Plan1!$J$3),MAX(X$1:X214)+1,\"\")","v":""}]
[null,null,null,null,null,null,null,null,null,null,null,null,null,null,null,null,null,null,null,null,null,null,null,{"$f":"IF(AND(MONTH($A$1:$A$1000)=MONTH(Plan1!$H$3),YEAR($A$1:$A$1000)=Plan1!$J$3),MAX(X$1:X215)+1,\"\")","v":""}]
[null,null,null,null,null,null,null,null,null,null,null,null,null,null,null,null,null,null,null,null,null,null,null,{"$f":"IF(AND(MONTH($A$1:$A$1000)=MONTH(Plan1!$H$3),YEAR($A$1:$A$1000)=Plan1!$J$3),MAX(X$1:X216)+1,\"\")","v":""}]
[null,null,null,null,null,null,null,null,null,null,null,null,null,null,null,null,null,null,null,null,null,null,null,{"$f":"IF(AND(MONTH($A$1:$A$1000)=MONTH(Plan1!$H$3),YEAR($A$1:$A$1000)=Plan1!$J$3),MAX(X$1:X217)+1,\"\")","v":""}]
[null,null,null,null,null,null,null,null,null,null,null,null,null,null,null,null,null,null,null,null,null,null,null,{"$f":"IF(AND(MONTH($A$1:$A$1000)=MONTH(Plan1!$H$3),YEAR($A$1:$A$1000)=Plan1!$J$3),MAX(X$1:X218)+1,\"\")","v":""}]
[null,null,null,null,null,null,null,null,null,null,null,null,null,null,null,null,null,null,null,null,null,null,null,{"$f":"IF(AND(MONTH($A$1:$A$1000)=MONTH(Plan1!$H$3),YEAR($A$1:$A$1000)=Plan1!$J$3),MAX(X$1:X219)+1,\"\")","v":""}]
[null,null,null,null,null,null,null,null,null,null,null,null,null,null,null,null,null,null,null,null,null,null,null,{"$f":"IF(AND(MONTH($A$1:$A$1000)=MONTH(Plan1!$H$3),YEAR($A$1:$A$1000)=Plan1!$J$3),MAX(X$1:X220)+1,\"\")","v":""}]
[null,null,null,null,null,null,null,null,null,null,null,null,null,null,null,null,null,null,null,null,null,null,null,{"$f":"IF(AND(MONTH($A$1:$A$1000)=MONTH(Plan1!$H$3),YEAR($A$1:$A$1000)=Plan1!$J$3),MAX(X$1:X221)+1,\"\")","v":""}]
[null,null,null,null,null,null,null,null,null,null,null,null,null,null,null,null,null,null,null,null,null,null,null,{"$f":"IF(AND(MONTH($A$1:$A$1000)=MONTH(Plan1!$H$3),YEAR($A$1:$A$1000)=Plan1!$J$3),MAX(X$1:X222)+1,\"\")","v":""}]
[null,null,null,null,null,null,null,null,null,null,null,null,null,null,null,null,null,null,null,null,null,null,null,{"$f":"IF(AND(MONTH($A$1:$A$1000)=MONTH(Plan1!$H$3),YEAR($A$1:$A$1000)=Plan1!$J$3),MAX(X$1:X223)+1,\"\")","v":""}]
[null,null,null,null,null,null,null,null,null,null,null,null,null,null,null,null,null,null,null,null,null,null,null,{"$f":"IF(AND(MONTH($A$1:$A$1000)=MONTH(Plan1!$H$3),YEAR($A$1:$A$1000)=Plan1!$J$3),MAX(X$1:X224)+1,\"\")","v":""}]
[null,null,null,null,null,null,null,null,null,null,null,null,null,null,null,null,null,null,null,null,null,null,null,{"$f":"IF(AND(MONTH($A$1:$A$1000)=MONTH(Plan1!$H$3),YEAR($A$1:$A$1000)=Plan1!$J$3),MAX(X$1:X225)+1,\"\")","v":""}]
[null,null,null,null,null,null,null,null,null,null,null,null,null,null,null,null,null,null,null,null,null,null,null,{"$f":"IF(AND(MONTH($A$1:$A$1000)=MONTH(Plan1!$H$3),YEAR($A$1:$A$1000)=Plan1!$J$3),MAX(X$1:X226)+1,\"\")","v":""}]
[null,null,null,null,null,null,null,null,null,null,null,null,null,null,null,null,null,null,null,null,null,null,null,{"$f":"IF(AND(MONTH($A$1:$A$1000)=MONTH(Plan1!$H$3),YEAR($A$1:$A$1000)=Plan1!$J$3),MAX(X$1:X227)+1,\"\")","v":""}]
[null,null,null,null,null,null,null,null,null,null,null,null,null,null,null,null,null,null,null,null,null,null,null,{"$f":"IF(AND(MONTH($A$1:$A$1000)=MONTH(Plan1!$H$3),YEAR($A$1:$A$1000)=Plan1!$J$3),MAX(X$1:X228)+1,\"\")","v":""}]
[null,null,null,null,null,null,null,null,null,null,null,null,null,null,null,null,null,null,null,null,null,null,null,{"$f":"IF(AND(MONTH($A$1:$A$1000)=MONTH(Plan1!$H$3),YEAR($A$1:$A$1000)=Plan1!$J$3),MAX(X$1:X229)+1,\"\")","v":""}]
[null,null,null,null,null,null,null,null,null,null,null,null,null,null,null,null,null,null,null,null,null,null,null,{"$f":"IF(AND(MONTH($A$1:$A$1000)=MONTH(Plan1!$H$3),YEAR($A$1:$A$1000)=Plan1!$J$3),MAX(X$1:X230)+1,\"\")","v":""}]
[null,null,null,null,null,null,null,null,null,null,null,null,null,null,null,null,null,null,null,null,null,null,null,{"$f":"IF(AND(MONTH($A$1:$A$1000)=MONTH(Plan1!$H$3),YEAR($A$1:$A$1000)=Plan1!$J$3),MAX(X$1:X231)+1,\"\")","v":""}]
[null,null,null,null,null,null,null,null,null,null,null,null,null,null,null,null,null,null,null,null,null,null,null,{"$f":"IF(AND(MONTH($A$1:$A$1000)=MONTH(Plan1!$H$3),YEAR($A$1:$A$1000)=Plan1!$J$3),MAX(X$1:X232)+1,\"\")","v":""}]
[null,null,null,null,null,null,null,null,null,null,null,null,null,null,null,null,null,null,null,null,null,null,null,{"$f":"IF(AND(MONTH($A$1:$A$1000)=MONTH(Plan1!$H$3),YEAR($A$1:$A$1000)=Plan1!$J$3),MAX(X$1:X233)+1,\"\")","v":""}]
[null,null,null,null,null,null,null,null,null,null,null,null,null,null,null,null,null,null,null,null,null,null,null,{"$f":"IF(AND(MONTH($A$1:$A$1000)=MONTH(Plan1!$H$3),YEAR($A$1:$A$1000)=Plan1!$J$3),MAX(X$1:X234)+1,\"\")","v":""}]
[null,null,null,null,null,null,null,null,null,null,null,null,null,null,null,null,null,null,null,null,null,null,null,{"$f":"IF(AND(MONTH($A$1:$A$1000)=MONTH(Plan1!$H$3),YEAR($A$1:$A$1000)=Plan1!$J$3),MAX(X$1:X235)+1,\"\")","v":""}]
[null,null,null,null,null,null,null,null,null,null,null,null,null,null,null,null,null,null,null,null,null,null,null,{"$f":"IF(AND(MONTH($A$1:$A$1000)=MONTH(Plan1!$H$3),YEAR($A$1:$A$1000)=Plan1!$J$3),MAX(X$1:X236)+1,\"\")","v":""}]
[null,null,null,null,null,null,null,null,null,null,null,null,null,null,null,null,null,null,null,null,null,null,null,{"$f":"IF(AND(MONTH($A$1:$A$1000)=MONTH(Plan1!$H$3),YEAR($A$1:$A$1000)=Plan1!$J$3),MAX(X$1:X237)+1,\"\")","v":""}]
[null,null,null,null,null,null,null,null,null,null,null,null,null,null,null,null,null,null,null,null,null,null,null,{"$f":"IF(AND(MONTH($A$1:$A$1000)=MONTH(Plan1!$H$3),YEAR($A$1:$A$1000)=Plan1!$J$3),MAX(X$1:X238)+1,\"\")","v":""}]
[null,null,null,null,null,null,null,null,null,null,null,null,null,null,null,null,null,null,null,null,null,null,null,{"$f":"IF(AND(MONTH($A$1:$A$1000)=MONTH(Plan1!$H$3),YEAR($A$1:$A$1000)=Plan1!$J$3),MAX(X$1:X239)+1,\"\")","v":""}]
[null,null,null,null,null,null,null,null,null,null,null,null,null,null,null,null,null,null,null,null,null,null,null,{"$f":"IF(AND(MONTH($A$1:$A$1000)=MONTH(Plan1!$H$3),YEAR($A$1:$A$1000)=Plan1!$J$3),MAX(X$1:X240)+1,\"\")","v":""}]
[null,null,null,null,null,null,null,null,null,null,null,null,null,null,null,null,null,null,null,null,null,null,null,{"$f":"IF(AND(MONTH($A$1:$A$1000)=MONTH(Plan1!$H$3),YEAR($A$1:$A$1000)=Plan1!$J$3),MAX(X$1:X241)+1,\"\")","v":""}]
[null,null,null,null,null,null,null,null,null,null,null,null,null,null,null,null,null,null,null,null,null,null,null,{"$f":"IF(AND(MONTH($A$1:$A$1000)=MONTH(Plan1!$H$3),YEAR($A$1:$A$1000)=Plan1!$J$3),MAX(X$1:X242)+1,\"\")","v":""}]
[null,null,null,null,null,null,null,null,null,null,null,null,null,null,null,null,null,null,null,null,null,null,null,{"$f":"IF(AND(MONTH($A$1:$A$1000)=MONTH(Plan1!$H$3),YEAR($A$1:$A$1000)=Plan1!$J$3),MAX(X$1:X243)+1,\"\")","v":""}]
[null,null,null,null,null,null,null,null,null,null,null,null,null,null,null,null,null,null,null,null,null,null,null,{"$f":"IF(AND(MONTH($A$1:$A$1000)=MONTH(Plan1!$H$3),YEAR($A$1:$A$1000)=Plan1!$J$3),MAX(X$1:X244)+1,\"\")","v":""}]
[null,null,null,null,null,null,null,null,null,null,null,null,null,null,null,null,null,null,null,null,null,null,null,{"$f":"IF(AND(MONTH($A$1:$A$1000)=MONTH(Plan1!$H$3),YEAR($A$1:$A$1000)=Plan1!$J$3),MAX(X$1:X245)+1,\"\")","v":""}]
[null,null,null,null,null,null,null,null,null,null,null,null,null,null,null,null,null,null,null,null,null,null,null,{"$f":"IF(AND(MONTH($A$1:$A$1000)=MONTH(Plan1!$H$3),YEAR($A$1:$A$1000)=Plan1!$J$3),MAX(X$1:X246)+1,\"\")","v":""}]
[null,null,null,null,null,null,null,null,null,null,null,null,null,null,null,null,null,null,null,null,null,null,null,{"$f":"IF(AND(MONTH($A$1:$A$1000)=MONTH(Plan1!$H$3),YEAR($A$1:$A$1000)=Plan1!$J$3),MAX(X$1:X247)+1,\"\")","v":""}]
[null,null,null,null,null,null,null,null,null,null,null,null,null,null,null,null,null,null,null,null,null,null,null,{"$f":"IF(AND(MONTH($A$1:$A$1000)=MONTH(Plan1!$H$3),YEAR($A$1:$A$1000)=Plan1!$J$3),MAX(X$1:X248)+1,\"\")","v":""}]
[null,null,null,null,null,null,null,null,null,null,null,null,null,null,null,null,null,null,null,null,null,null,null,{"$f":"IF(AND(MONTH($A$1:$A$1000)=MONTH(Plan1!$H$3),YEAR($A$1:$A$1000)=Plan1!$J$3),MAX(X$1:X249)+1,\"\")","v":""}]
[null,null,null,null,null,null,null,null,null,null,null,null,null,null,null,null,null,null,null,null,null,null,null,{"$f":"IF(AND(MONTH($A$1:$A$1000)=MONTH(Plan1!$H$3),YEAR($A$1:$A$1000)=Plan1!$J$3),MAX(X$1:X250)+1,\"\")","v":""}]
[null,null,null,null,null,null,null,null,null,null,null,null,null,null,null,null,null,null,null,null,null,null,null,{"$f":"IF(AND(MONTH($A$1:$A$1000)=MONTH(Plan1!$H$3),YEAR($A$1:$A$1000)=Plan1!$J$3),MAX(X$1:X251)+1,\"\")","v":""}]
[null,null,null,null,null,null,null,null,null,null,null,null,null,null,null,null,null,null,null,null,null,null,null,{"$f":"IF(AND(MONTH($A$1:$A$1000)=MONTH(Plan1!$H$3),YEAR($A$1:$A$1000)=Plan1!$J$3),MAX(X$1:X252)+1,\"\")","v":""}]
[null,null,null,null,null,null,null,null,null,null,null,null,null,null,null,null,null,null,null,null,null,null,null,{"$f":"IF(AND(MONTH($A$1:$A$1000)=MONTH(Plan1!$H$3),YEAR($A$1:$A$1000)=Plan1!$J$3),MAX(X$1:X253)+1,\"\")","v":""}]
[null,null,null,null,null,null,null,null,null,null,null,null,null,null,null,null,null,null,null,null,null,null,null,{"$f":"IF(AND(MONTH($A$1:$A$1000)=MONTH(Plan1!$H$3),YEAR($A$1:$A$1000)=Plan1!$J$3),MAX(X$1:X254)+1,\"\")","v":""}]
[null,null,null,null,null,null,null,null,null,null,null,null,null,null,null,null,null,null,null,null,null,null,null,{"$f":"IF(AND(MONTH($A$1:$A$1000)=MONTH(Plan1!$H$3),YEAR($A$1:$A$1000)=Plan1!$J$3),MAX(X$1:X255)+1,\"\")","v":""}]
[null,null,null,null,null,null,null,null,null,null,null,null,null,null,null,null,null,null,null,null,null,null,null,{"$f":"IF(AND(MONTH($A$1:$A$1000)=MONTH(Plan1!$H$3),YEAR($A$1:$A$1000)=Plan1!$J$3),MAX(X$1:X256)+1,\"\")","v":""}]
[null,null,null,null,null,null,null,null,null,null,null,null,null,null,null,null,null,null,null,null,null,null,null,{"$f":"IF(AND(MONTH($A$1:$A$1000)=MONTH(Plan1!$H$3),YEAR($A$1:$A$1000)=Plan1!$J$3),MAX(X$1:X257)+1,\"\")","v":""}]
[null,null,null,null,null,null,null,null,null,null,null,null,null,null,null,null,null,null,null,null,null,null,null,{"$f":"IF(AND(MONTH($A$1:$A$1000)=MONTH(Plan1!$H$3),YEAR($A$1:$A$1000)=Plan1!$J$3),MAX(X$1:X258)+1,\"\")","v":""}]
[null,null,null,null,null,null,null,null,null,null,null,null,null,null,null,null,null,null,null,null,null,null,null,{"$f":"IF(AND(MONTH($A$1:$A$1000)=MONTH(Plan1!$H$3),YEAR($A$1:$A$1000)=Plan1!$J$3),MAX(X$1:X259)+1,\"\")","v":""}]
[null,null,null,null,null,null,null,null,null,null,null,null,null,null,null,null,null,null,null,null,null,null,null,{"$f":"IF(AND(MONTH($A$1:$A$1000)=MONTH(Plan1!$H$3),YEAR($A$1:$A$1000)=Plan1!$J$3),MAX(X$1:X260)+1,\"\")","v":""}]
[null,null,null,null,null,null,null,null,null,null,null,null,null,null,null,null,null,null,null,null,null,null,null,{"$f":"IF(AND(MONTH($A$1:$A$1000)=MONTH(Plan1!$H$3),YEAR($A$1:$A$1000)=Plan1!$J$3),MAX(X$1:X261)+1,\"\")","v":""}]
[null,null,null,null,null,null,null,null,null,null,null,null,null,null,null,null,null,null,null,null,null,null,null,{"$f":"IF(AND(MONTH($A$1:$A$1000)=MONTH(Plan1!$H$3),YEAR($A$1:$A$1000)=Plan1!$J$3),MAX(X$1:X262)+1,\"\")","v":""}]
[null,null,null,null,null,null,null,null,null,null,null,null,null,null,null,null,null,null,null,null,null,null,null,{"$f":"IF(AND(MONTH($A$1:$A$1000)=MONTH(Plan1!$H$3),YEAR($A$1:$A$1000)=Plan1!$J$3),MAX(X$1:X263)+1,\"\")","v":""}]
[null,null,null,null,null,null,null,null,null,null,null,null,null,null,null,null,null,null,null,null,null,null,null,{"$f":"IF(AND(MONTH($A$1:$A$1000)=MONTH(Plan1!$H$3),YEAR($A$1:$A$1000)=Plan1!$J$3),MAX(X$1:X264)+1,\"\")","v":""}]
[null,null,null,null,null,null,null,null,null,null,null,null,null,null,null,null,null,null,null,null,null,null,null,{"$f":"IF(AND(MONTH($A$1:$A$1000)=MONTH(Plan1!$H$3),YEAR($A$1:$A$1000)=Plan1!$J$3),MAX(X$1:X265)+1,\"\")","v":""}]
[null,null,null,null,null,null,null,null,null,null,null,null,null,null,null,null,null,null,null,null,null,null,null,{"$f":"IF(AND(MONTH($A$1:$A$1000)=MONTH(Plan1!$H$3),YEAR($A$1:$A$1000)=Plan1!$J$3),MAX(X$1:X266)+1,\"\")","v":""}]
[null,null,null,null,null,null,null,null,null,null,null,null,null,null,null,null,null,null,null,null,null,null,null,{"$f":"IF(AND(MONTH($A$1:$A$1000)=MONTH(Plan1!$H$3),YEAR($A$1:$A$1000)=Plan1!$J$3),MAX(X$1:X267)+1,\"\")","v":""}]
[null,null,null,null,null,null,null,null,null,null,null,null,null,null,null,null,null,null,null,null,null,null,null,{"$f":"IF(AND(MONTH($A$1:$A$1000)=MONTH(Plan1!$H$3),YEAR($A$1:$A$1000)=Plan1!$J$3),MAX(X$1:X268)+1,\"\")","v":""}]
[null,null,null,null,null,null,null,null,null,null,null,null,null,null,null,null,null,null,null,null,null,null,null,{"$f":"IF(AND(MONTH($A$1:$A$1000)=MONTH(Plan1!$H$3),YEAR($A$1:$A$1000)=Plan1!$J$3),MAX(X$1:X269)+1,\"\")","v":""}]
[null,null,null,null,null,null,null,null,null,null,null,null,null,null,null,null,null,null,null,null,null,null,null,{"$f":"IF(AND(MONTH($A$1:$A$1000)=MONTH(Plan1!$H$3),YEAR($A$1:$A$1000)=Plan1!$J$3),MAX(X$1:X270)+1,\"\")","v":""}]
[null,null,null,null,null,null,null,null,null,null,null,null,null,null,null,null,null,null,null,null,null,null,null,{"$f":"IF(AND(MONTH($A$1:$A$1000)=MONTH(Plan1!$H$3),YEAR($A$1:$A$1000)=Plan1!$J$3),MAX(X$1:X271)+1,\"\")","v":""}]
[null,null,null,null,null,null,null,null,null,null,null,null,null,null,null,null,null,null,null,null,null,null,null,{"$f":"IF(AND(MONTH($A$1:$A$1000)=MONTH(Plan1!$H$3),YEAR($A$1:$A$1000)=Plan1!$J$3),MAX(X$1:X272)+1,\"\")","v":""}]
[null,null,null,null,null,null,null,null,null,null,null,null,null,null,null,null,null,null,null,null,null,null,null,{"$f":"IF(AND(MONTH($A$1:$A$1000)=MONTH(Plan1!$H$3),YEAR($A$1:$A$1000)=Plan1!$J$3),MAX(X$1:X273)+1,\"\")","v":""}]
[null,null,null,null,null,null,null,null,null,null,null,null,null,null,null,null,null,null,null,null,null,null,null,{"$f":"IF(AND(MONTH($A$1:$A$1000)=MONTH(Plan1!$H$3),YEAR($A$1:$A$1000)=Plan1!$J$3),MAX(X$1:X274)+1,\"\")","v":""}]
[null,null,null,null,null,null,null,null,null,null,null,null,null,null,null,null,null,null,null,null,null,null,null,{"$f":"IF(AND(MONTH($A$1:$A$1000)=MONTH(Plan1!$H$3),YEAR($A$1:$A$1000)=Plan1!$J$3),MAX(X$1:X275)+1,\"\")","v":""}]
[null,null,null,null,null,null,null,null,null,null,null,null,null,null,null,null,null,null,null,null,null,null,null,{"$f":"IF(AND(MONTH($A$1:$A$1000)=MONTH(Plan1!$H$3),YEAR($A$1:$A$1000)=Plan1!$J$3),MAX(X$1:X276)+1,\"\")","v":""}]
[null,null,null,null,null,null,null,null,null,null,null,null,null,null,null,null,null,null,null,null,null,null,null,{"$f":"IF(AND(MONTH($A$1:$A$1000)=MONTH(Plan1!$H$3),YEAR($A$1:$A$1000)=Plan1!$J$3),MAX(X$1:X277)+1,\"\")","v":""}]
[null,null,null,null,null,null,null,null,null,null,null,null,null,null,null,null,null,null,null,null,null,null,null,{"$f":"IF(AND(MONTH($A$1:$A$1000)=MONTH(Plan1!$H$3),YEAR($A$1:$A$1000)=Plan1!$J$3),MAX(X$1:X278)+1,\"\")","v":""}]
[null,null,null,null,null,null,null,null,null,null,null,null,null,null,null,null,null,null,null,null,null,null,null,{"$f":"IF(AND(MONTH($A$1:$A$1000)=MONTH(Plan1!$H$3),YEAR($A$1:$A$1000)=Plan1!$J$3),MAX(X$1:X279)+1,\"\")","v":""}]
[null,null,null,null,null,null,null,null,null,null,null,null,null,null,null,null,null,null,null,null,null,null,null,{"$f":"IF(AND(MONTH($A$1:$A$1000)=MONTH(Plan1!$H$3),YEAR($A$1:$A$1000)=Plan1!$J$3),MAX(X$1:X280)+1,\"\")","v":""}]
[null,null,null,null,null,null,null,null,null,null,null,null,null,null,null,null,null,null,null,null,null,null,null,{"$f":"IF(AND(MONTH($A$1:$A$1000)=MONTH(Plan1!$H$3),YEAR($A$1:$A$1000)=Plan1!$J$3),MAX(X$1:X281)+1,\"\")","v":""}]
[null,null,null,null,null,null,null,null,null,null,null,null,null,null,null,null,null,null,null,null,null,null,null,{"$f":"IF(AND(MONTH($A$1:$A$1000)=MONTH(Plan1!$H$3),YEAR($A$1:$A$1000)=Plan1!$J$3),MAX(X$1:X282)+1,\"\")","v":""}]
[null,null,null,null,null,null,null,null,null,null,null,null,null,null,null,null,null,null,null,null,null,null,null,{"$f":"IF(AND(MONTH($A$1:$A$1000)=MONTH(Plan1!$H$3),YEAR($A$1:$A$1000)=Plan1!$J$3),MAX(X$1:X283)+1,\"\")","v":""}]
[null,null,null,null,null,null,null,null,null,null,null,null,null,null,null,null,null,null,null,null,null,null,null,{"$f":"IF(AND(MONTH($A$1:$A$1000)=MONTH(Plan1!$H$3),YEAR($A$1:$A$1000)=Plan1!$J$3),MAX(X$1:X284)+1,\"\")","v":""}]
[null,null,null,null,null,null,null,null,null,null,null,null,null,null,null,null,null,null,null,null,null,null,null,{"$f":"IF(AND(MONTH($A$1:$A$1000)=MONTH(Plan1!$H$3),YEAR($A$1:$A$1000)=Plan1!$J$3),MAX(X$1:X285)+1,\"\")","v":""}]
[null,null,null,null,null,null,null,null,null,null,null,null,null,null,null,null,null,null,null,null,null,null,null,{"$f":"IF(AND(MONTH($A$1:$A$1000)=MONTH(Plan1!$H$3),YEAR($A$1:$A$1000)=Plan1!$J$3),MAX(X$1:X286)+1,\"\")","v":""}]
[null,null,null,null,null,null,null,null,null,null,null,null,null,null,null,null,null,null,null,null,null,null,null,{"$f":"IF(AND(MONTH($A$1:$A$1000)=MONTH(Plan1!$H$3),YEAR($A$1:$A$1000)=Plan1!$J$3),MAX(X$1:X287)+1,\"\")","v":""}]
[null,null,null,null,null,null,null,null,null,null,null,null,null,null,null,null,null,null,null,null,null,null,null,{"$f":"IF(AND(MONTH($A$1:$A$1000)=MONTH(Plan1!$H$3),YEAR($A$1:$A$1000)=Plan1!$J$3),MAX(X$1:X288)+1,\"\")","v":""}]
[null,null,null,null,null,null,null,null,null,null,null,null,null,null,null,null,null,null,null,null,null,null,null,{"$f":"IF(AND(MONTH($A$1:$A$1000)=MONTH(Plan1!$H$3),YEAR($A$1:$A$1000)=Plan1!$J$3),MAX(X$1:X289)+1,\"\")","v":""}]
[null,null,null,null,null,null,null,null,null,null,null,null,null,null,null,null,null,null,null,null,null,null,null,{"$f":"IF(AND(MONTH($A$1:$A$1000)=MONTH(Plan1!$H$3),YEAR($A$1:$A$1000)=Plan1!$J$3),MAX(X$1:X290)+1,\"\")","v":""}]
[null,null,null,null,null,null,null,null,null,null,null,null,null,null,null,null,null,null,null,null,null,null,null,{"$f":"IF(AND(MONTH($A$1:$A$1000)=MONTH(Plan1!$H$3),YEAR($A$1:$A$1000)=Plan1!$J$3),MAX(X$1:X291)+1,\"\")","v":""}]
[null,null,null,null,null,null,null,null,null,null,null,null,null,null,null,null,null,null,null,null,null,null,null,{"$f":"IF(AND(MONTH($A$1:$A$1000)=MONTH(Plan1!$H$3),YEAR($A$1:$A$1000)=Plan1!$J$3),MAX(X$1:X292)+1,\"\")","v":""}]
[null,null,null,null,null,null,null,null,null,null,null,null,null,null,null,null,null,null,null,null,null,null,null,{"$f":"IF(AND(MONTH($A$1:$A$1000)=MONTH(Plan1!$H$3),YEAR($A$1:$A$1000)=Plan1!$J$3),MAX(X$1:X293)+1,\"\")","v":""}]
[null,null,null,null,null,null,null,null,null,null,null,null,null,null,null,null,null,null,null,null,null,null,null,{"$f":"IF(AND(MONTH($A$1:$A$1000)=MONTH(Plan1!$H$3),YEAR($A$1:$A$1000)=Plan1!$J$3),MAX(X$1:X294)+1,\"\")","v":""}]
[null,null,null,null,null,null,null,null,null,null,null,null,null,null,null,null,null,null,null,null,null,null,null,{"$f":"IF(AND(MONTH($A$1:$A$1000)=MONTH(Plan1!$H$3),YEAR($A$1:$A$1000)=Plan1!$J$3),MAX(X$1:X295)+1,\"\")","v":""}]
[null,null,null,null,null,null,null,null,null,null,null,null,null,null,null,null,null,null,null,null,null,null,null,{"$f":"IF(AND(MONTH($A$1:$A$1000)=MONTH(Plan1!$H$3),YEAR($A$1:$A$1000)=Plan1!$J$3),MAX(X$1:X296)+1,\"\")","v":""}]
[null,null,null,null,null,null,null,null,null,null,null,null,null,null,null,null,null,null,null,null,null,null,null,{"$f":"IF(AND(MONTH($A$1:$A$1000)=MONTH(Plan1!$H$3),YEAR($A$1:$A$1000)=Plan1!$J$3),MAX(X$1:X297)+1,\"\")","v":""}]
[null,null,null,null,null,null,null,null,null,null,null,null,null,null,null,null,null,null,null,null,null,null,null,{"$f":"IF(AND(MONTH($A$1:$A$1000)=MONTH(Plan1!$H$3),YEAR($A$1:$A$1000)=Plan1!$J$3),MAX(X$1:X298)+1,\"\")","v":""}]
[null,null,null,null,null,null,null,null,null,null,null,null,null,null,null,null,null,null,null,null,null,null,null,{"$f":"IF(AND(MONTH($A$1:$A$1000)=MONTH(Plan1!$H$3),YEAR($A$1:$A$1000)=Plan1!$J$3),MAX(X$1:X299)+1,\"\")","v":""}]
[null,null,null,null,null,null,null,null,null,null,null,null,null,null,null,null,null,null,null,null,null,null,null,{"$f":"IF(AND(MONTH($A$1:$A$1000)=MONTH(Plan1!$H$3),YEAR($A$1:$A$1000)=Plan1!$J$3),MAX(X$1:X300)+1,\"\")","v":""}]
[null,null,null,null,null,null,null,null,null,null,null,null,null,null,null,null,null,null,null,null,null,null,null,{"$f":"IF(AND(MONTH($A$1:$A$1000)=MONTH(Plan1!$H$3),YEAR($A$1:$A$1000)=Plan1!$J$3),MAX(X$1:X301)+1,\"\")","v":""}]
[null,null,null,null,null,null,null,null,null,null,null,null,null,null,null,null,null,null,null,null,null,null,null,{"$f":"IF(AND(MONTH($A$1:$A$1000)=MONTH(Plan1!$H$3),YEAR($A$1:$A$1000)=Plan1!$J$3),MAX(X$1:X302)+1,\"\")","v":""}]
[null,null,null,null,null,null,null,null,null,null,null,null,null,null,null,null,null,null,null,null,null,null,null,{"$f":"IF(AND(MONTH($A$1:$A$1000)=MONTH(Plan1!$H$3),YEAR($A$1:$A$1000)=Plan1!$J$3),MAX(X$1:X303)+1,\"\")","v":""}]
[null,null,null,null,null,null,null,null,null,null,null,null,null,null,null,null,null,null,null,null,null,null,null,{"$f":"IF(AND(MONTH($A$1:$A$1000)=MONTH(Plan1!$H$3),YEAR($A$1:$A$1000)=Plan1!$J$3),MAX(X$1:X304)+1,\"\")","v":""}]
[null,null,null,null,null,null,null,null,null,null,null,null,null,null,null,null,null,null,null,null,null,null,null,{"$f":"IF(AND(MONTH($A$1:$A$1000)=MONTH(Plan1!$H$3),YEAR($A$1:$A$1000)=Plan1!$J$3),MAX(X$1:X305)+1,\"\")","v":""}]
[null,null,null,null,null,null,null,null,null,null,null,null,null,null,null,null,null,null,null,null,null,null,null,{"$f":"IF(AND(MONTH($A$1:$A$1000)=MONTH(Plan1!$H$3),YEAR($A$1:$A$1000)=Plan1!$J$3),MAX(X$1:X306)+1,\"\")","v":""}]
[null,null,null,null,null,null,null,null,null,null,null,null,null,null,null,null,null,null,null,null,null,null,null,{"$f":"IF(AND(MONTH($A$1:$A$1000)=MONTH(Plan1!$H$3),YEAR($A$1:$A$1000)=Plan1!$J$3),MAX(X$1:X307)+1,\"\")","v":""}]
[null,null,null,null,null,null,null,null,null,null,null,null,null,null,null,null,null,null,null,null,null,null,null,{"$f":"IF(AND(MONTH($A$1:$A$1000)=MONTH(Plan1!$H$3),YEAR($A$1:$A$1000)=Plan1!$J$3),MAX(X$1:X308)+1,\"\")","v":""}]
[null,null,null,null,null,null,null,null,null,null,null,null,null,null,null,null,null,null,null,null,null,null,null,{"$f":"IF(AND(MONTH($A$1:$A$1000)=MONTH(Plan1!$H$3),YEAR($A$1:$A$1000)=Plan1!$J$3),MAX(X$1:X309)+1,\"\")","v":""}]
[null,null,null,null,null,null,null,null,null,null,null,null,null,null,null,null,null,null,null,null,null,null,null,{"$f":"IF(AND(MONTH($A$1:$A$1000)=MONTH(Plan1!$H$3),YEAR($A$1:$A$1000)=Plan1!$J$3),MAX(X$1:X310)+1,\"\")","v":""}]
[null,null,null,null,null,null,null,null,null,null,null,null,null,null,null,null,null,null,null,null,null,null,null,{"$f":"IF(AND(MONTH($A$1:$A$1000)=MONTH(Plan1!$H$3),YEAR($A$1:$A$1000)=Plan1!$J$3),MAX(X$1:X311)+1,\"\")","v":""}]
[null,null,null,null,null,null,null,null,null,null,null,null,null,null,null,null,null,null,null,null,null,null,null,{"$f":"IF(AND(MONTH($A$1:$A$1000)=MONTH(Plan1!$H$3),YEAR($A$1:$A$1000)=Plan1!$J$3),MAX(X$1:X312)+1,\"\")","v":""}]
[null,null,null,null,null,null,null,null,null,null,null,null,null,null,null,null,null,null,null,null,null,null,null,{"$f":"IF(AND(MONTH($A$1:$A$1000)=MONTH(Plan1!$H$3),YEAR($A$1:$A$1000)=Plan1!$J$3),MAX(X$1:X313)+1,\"\")","v":""}]
[null,null,null,null,null,null,null,null,null,null,null,null,null,null,null,null,null,null,null,null,null,null,null,{"$f":"IF(AND(MONTH($A$1:$A$1000)=MONTH(Plan1!$H$3),YEAR($A$1:$A$1000)=Plan1!$J$3),MAX(X$1:X314)+1,\"\")","v":""}]
[null,null,null,null,null,null,null,null,null,null,null,null,null,null,null,null,null,null,null,null,null,null,null,{"$f":"IF(AND(MONTH($A$1:$A$1000)=MONTH(Plan1!$H$3),YEAR($A$1:$A$1000)=Plan1!$J$3),MAX(X$1:X315)+1,\"\")","v":""}]
[null,null,null,null,null,null,null,null,null,null,null,null,null,null,null,null,null,null,null,null,null,null,null,{"$f":"IF(AND(MONTH($A$1:$A$1000)=MONTH(Plan1!$H$3),YEAR($A$1:$A$1000)=Plan1!$J$3),MAX(X$1:X316)+1,\"\")","v":""}]
[null,null,null,null,null,null,null,null,null,null,null,null,null,null,null,null,null,null,null,null,null,null,null,{"$f":"IF(AND(MONTH($A$1:$A$1000)=MONTH(Plan1!$H$3),YEAR($A$1:$A$1000)=Plan1!$J$3),MAX(X$1:X317)+1,\"\")","v":""}]
[null,null,null,null,null,null,null,null,null,null,null,null,null,null,null,null,null,null,null,null,null,null,null,{"$f":"IF(AND(MONTH($A$1:$A$1000)=MONTH(Plan1!$H$3),YEAR($A$1:$A$1000)=Plan1!$J$3),MAX(X$1:X318)+1,\"\")","v":""}]
[null,null,null,null,null,null,null,null,null,null,null,null,null,null,null,null,null,null,null,null,null,null,null,{"$f":"IF(AND(MONTH($A$1:$A$1000)=MONTH(Plan1!$H$3),YEAR($A$1:$A$1000)=Plan1!$J$3),MAX(X$1:X319)+1,\"\")","v":""}]
[null,null,null,null,null,null,null,null,null,null,null,null,null,null,null,null,null,null,null,null,null,null,null,{"$f":"IF(AND(MONTH($A$1:$A$1000)=MONTH(Plan1!$H$3),YEAR($A$1:$A$1000)=Plan1!$J$3),MAX(X$1:X320)+1,\"\")","v":""}]
[null,null,null,null,null,null,null,null,null,null,null,null,null,null,null,null,null,null,null,null,null,null,null,{"$f":"IF(AND(MONTH($A$1:$A$1000)=MONTH(Plan1!$H$3),YEAR($A$1:$A$1000)=Plan1!$J$3),MAX(X$1:X321)+1,\"\")","v":""}]
[null,null,null,null,null,null,null,null,null,null,null,null,null,null,null,null,null,null,null,null,null,null,null,{"$f":"IF(AND(MONTH($A$1:$A$1000)=MONTH(Plan1!$H$3),YEAR($A$1:$A$1000)=Plan1!$J$3),MAX(X$1:X322)+1,\"\")","v":""}]
[null,null,null,null,null,null,null,null,null,null,null,null,null,null,null,null,null,null,null,null,null,null,null,{"$f":"IF(AND(MONTH($A$1:$A$1000)=MONTH(Plan1!$H$3),YEAR($A$1:$A$1000)=Plan1!$J$3),MAX(X$1:X323)+1,\"\")","v":""}]
[null,null,null,null,null,null,null,null,null,null,null,null,null,null,null,null,null,null,null,null,null,null,null,{"$f":"IF(AND(MONTH($A$1:$A$1000)=MONTH(Plan1!$H$3),YEAR($A$1:$A$1000)=Plan1!$J$3),MAX(X$1:X324)+1,\"\")","v":""}]
[null,null,null,null,null,null,null,null,null,null,null,null,null,null,null,null,null,null,null,null,null,null,null,{"$f":"IF(AND(MONTH($A$1:$A$1000)=MONTH(Plan1!$H$3),YEAR($A$1:$A$1000)=Plan1!$J$3),MAX(X$1:X325)+1,\"\")","v":""}]
[null,null,null,null,null,null,null,null,null,null,null,null,null,null,null,null,null,null,null,null,null,null,null,{"$f":"IF(AND(MONTH($A$1:$A$1000)=MONTH(Plan1!$H$3),YEAR($A$1:$A$1000)=Plan1!$J$3),MAX(X$1:X326)+1,\"\")","v":""}]
[null,null,null,null,null,null,null,null,null,null,null,null,null,null,null,null,null,null,null,null,null,null,null,{"$f":"IF(AND(MONTH($A$1:$A$1000)=MONTH(Plan1!$H$3),YEAR($A$1:$A$1000)=Plan1!$J$3),MAX(X$1:X327)+1,\"\")","v":""}]
[null,null,null,null,null,null,null,null,null,null,null,null,null,null,null,null,null,null,null,null,null,null,null,{"$f":"IF(AND(MONTH($A$1:$A$1000)=MONTH(Plan1!$H$3),YEAR($A$1:$A$1000)=Plan1!$J$3),MAX(X$1:X328)+1,\"\")","v":""}]
[null,null,null,null,null,null,null,null,null,null,null,null,null,null,null,null,null,null,null,null,null,null,null,{"$f":"IF(AND(MONTH($A$1:$A$1000)=MONTH(Plan1!$H$3),YEAR($A$1:$A$1000)=Plan1!$J$3),MAX(X$1:X329)+1,\"\")","v":""}]
[null,null,null,null,null,null,null,null,null,null,null,null,null,null,null,null,null,null,null,null,null,null,null,{"$f":"IF(AND(MONTH($A$1:$A$1000)=MONTH(Plan1!$H$3),YEAR($A$1:$A$1000)=Plan1!$J$3),MAX(X$1:X330)+1,\"\")","v":""}]
[null,null,null,null,null,null,null,null,null,null,null,null,null,null,null,null,null,null,null,null,null,null,null,{"$f":"IF(AND(MONTH($A$1:$A$1000)=MONTH(Plan1!$H$3),YEAR($A$1:$A$1000)=Plan1!$J$3),MAX(X$1:X331)+1,\"\")","v":""}]
[null,null,null,null,null,null,null,null,null,null,null,null,null,null,null,null,null,null,null,null,null,null,null,{"$f":"IF(AND(MONTH($A$1:$A$1000)=MONTH(Plan1!$H$3),YEAR($A$1:$A$1000)=Plan1!$J$3),MAX(X$1:X332)+1,\"\")","v":""}]
[null,null,null,null,null,null,null,null,null,null,null,null,null,null,null,null,null,null,null,null,null,null,null,{"$f":"IF(AND(MONTH($A$1:$A$1000)=MONTH(Plan1!$H$3),YEAR($A$1:$A$1000)=Plan1!$J$3),MAX(X$1:X333)+1,\"\")","v":""}]
[null,null,null,null,null,null,null,null,null,null,null,null,null,null,null,null,null,null,null,null,null,null,null,{"$f":"IF(AND(MONTH($A$1:$A$1000)=MONTH(Plan1!$H$3),YEAR($A$1:$A$1000)=Plan1!$J$3),MAX(X$1:X334)+1,\"\")","v":""}]
[null,null,null,null,null,null,null,null,null,null,null,null,null,null,null,null,null,null,null,null,null,null,null,{"$f":"IF(AND(MONTH($A$1:$A$1000)=MONTH(Plan1!$H$3),YEAR($A$1:$A$1000)=Plan1!$J$3),MAX(X$1:X335)+1,\"\")","v":""}]
[null,null,null,null,null,null,null,null,null,null,null,null,null,null,null,null,null,null,null,null,null,null,null,{"$f":"IF(AND(MONTH($A$1:$A$1000)=MONTH(Plan1!$H$3),YEAR($A$1:$A$1000)=Plan1!$J$3),MAX(X$1:X336)+1,\"\")","v":""}]
[null,null,null,null,null,null,null,null,null,null,null,null,null,null,null,null,null,null,null,null,null,null,null,{"$f":"IF(AND(MONTH($A$1:$A$1000)=MONTH(Plan1!$H$3),YEAR($A$1:$A$1000)=Plan1!$J$3),MAX(X$1:X337)+1,\"\")","v":""}]
[null,null,null,null,null,null,null,null,null,null,null,null,null,null,null,null,null,null,null,null,null,null,null,{"$f":"IF(AND(MONTH($A$1:$A$1000)=MONTH(Plan1!$H$3),YEAR($A$1:$A$1000)=Plan1!$J$3),MAX(X$1:X338)+1,\"\")","v":""}]
[null,null,null,null,null,null,null,null,null,null,null,null,null,null,null,null,null,null,null,null,null,null,null,{"$f":"IF(AND(MONTH($A$1:$A$1000)=MONTH(Plan1!$H$3),YEAR($A$1:$A$1000)=Plan1!$J$3),MAX(X$1:X339)+1,\"\")","v":""}]
[null,null,null,null,null,null,null,null,null,null,null,null,null,null,null,null,null,null,null,null,null,null,null,{"$f":"IF(AND(MONTH($A$1:$A$1000)=MONTH(Plan1!$H$3),YEAR($A$1:$A$1000)=Plan1!$J$3),MAX(X$1:X340)+1,\"\")","v":""}]
[null,null,null,null,null,null,null,null,null,null,null,null,null,null,null,null,null,null,null,null,null,null,null,{"$f":"IF(AND(MONTH($A$1:$A$1000)=MONTH(Plan1!$H$3),YEAR($A$1:$A$1000)=Plan1!$J$3),MAX(X$1:X341)+1,\"\")","v":""}]
[null,null,null,null,null,null,null,null,null,null,null,null,null,null,null,null,null,null,null,null,null,null,null,{"$f":"IF(AND(MONTH($A$1:$A$1000)=MONTH(Plan1!$H$3),YEAR($A$1:$A$1000)=Plan1!$J$3),MAX(X$1:X342)+1,\"\")","v":""}]
[null,null,null,null,null,null,null,null,null,null,null,null,null,null,null,null,null,null,null,null,null,null,null,{"$f":"IF(AND(MONTH($A$1:$A$1000)=MONTH(Plan1!$H$3),YEAR($A$1:$A$1000)=Plan1!$J$3),MAX(X$1:X343)+1,\"\")","v":""}]
[null,null,null,null,null,null,null,null,null,null,null,null,null,null,null,null,null,null,null,null,null,null,null,{"$f":"IF(AND(MONTH($A$1:$A$1000)=MONTH(Plan1!$H$3),YEAR($A$1:$A$1000)=Plan1!$J$3),MAX(X$1:X344)+1,\"\")","v":""}]
[null,null,null,null,null,null,null,null,null,null,null,null,null,null,null,null,null,null,null,null,null,null,null,{"$f":"IF(AND(MONTH($A$1:$A$1000)=MONTH(Plan1!$H$3),YEAR($A$1:$A$1000)=Plan1!$J$3),MAX(X$1:X345)+1,\"\")","v":""}]
[null,null,null,null,null,null,null,null,null,null,null,null,null,null,null,null,null,null,null,null,null,null,null,{"$f":"IF(AND(MONTH($A$1:$A$1000)=MONTH(Plan1!$H$3),YEAR($A$1:$A$1000)=Plan1!$J$3),MAX(X$1:X346)+1,\"\")","v":""}]
[null,null,null,null,null,null,null,null,null,null,null,null,null,null,null,null,null,null,null,null,null,null,null,{"$f":"IF(AND(MONTH($A$1:$A$1000)=MONTH(Plan1!$H$3),YEAR($A$1:$A$1000)=Plan1!$J$3),MAX(X$1:X347)+1,\"\")","v":""}]
[null,null,null,null,null,null,null,null,null,null,null,null,null,null,null,null,null,null,null,null,null,null,null,{"$f":"IF(AND(MONTH($A$1:$A$1000)=MONTH(Plan1!$H$3),YEAR($A$1:$A$1000)=Plan1!$J$3),MAX(X$1:X348)+1,\"\")","v":""}]
[null,null,null,null,null,null,null,null,null,null,null,null,null,null,null,null,null,null,null,null,null,null,null,{"$f":"IF(AND(MONTH($A$1:$A$1000)=MONTH(Plan1!$H$3),YEAR($A$1:$A$1000)=Plan1!$J$3),MAX(X$1:X349)+1,\"\")","v":""}]
[null,null,null,null,null,null,null,null,null,null,null,null,null,null,null,null,null,null,null,null,null,null,null,{"$f":"IF(AND(MONTH($A$1:$A$1000)=MONTH(Plan1!$H$3),YEAR($A$1:$A$1000)=Plan1!$J$3),MAX(X$1:X350)+1,\"\")","v":""}]
[null,null,null,null,null,null,null,null,null,null,null,null,null,null,null,null,null,null,null,null,null,null,null,{"$f":"IF(AND(MONTH($A$1:$A$1000)=MONTH(Plan1!$H$3),YEAR($A$1:$A$1000)=Plan1!$J$3),MAX(X$1:X351)+1,\"\")","v":""}]
[null,null,null,null,null,null,null,null,null,null,null,null,null,null,null,null,null,null,null,null,null,null,null,{"$f":"IF(AND(MONTH($A$1:$A$1000)=MONTH(Plan1!$H$3),YEAR($A$1:$A$1000)=Plan1!$J$3),MAX(X$1:X352)+1,\"\")","v":""}]
[null,null,null,null,null,null,null,null,null,null,null,null,null,null,null,null,null,null,null,null,null,null,null,{"$f":"IF(AND(MONTH($A$1:$A$1000)=MONTH(Plan1!$H$3),YEAR($A$1:$A$1000)=Plan1!$J$3),MAX(X$1:X353)+1,\"\")","v":""}]
[null,null,null,null,null,null,null,null,null,null,null,null,null,null,null,null,null,null,null,null,null,null,null,{"$f":"IF(AND(MONTH($A$1:$A$1000)=MONTH(Plan1!$H$3),YEAR($A$1:$A$1000)=Plan1!$J$3),MAX(X$1:X354)+1,\"\")","v":""}]
[null,null,null,null,null,null,null,null,null,null,null,null,null,null,null,null,null,null,null,null,null,null,null,{"$f":"IF(AND(MONTH($A$1:$A$1000)=MONTH(Plan1!$H$3),YEAR($A$1:$A$1000)=Plan1!$J$3),MAX(X$1:X355)+1,\"\")","v":""}]
[null,null,null,null,null,null,null,null,null,null,null,null,null,null,null,null,null,null,null,null,null,null,null,{"$f":"IF(AND(MONTH($A$1:$A$1000)=MONTH(Plan1!$H$3),YEAR($A$1:$A$1000)=Plan1!$J$3),MAX(X$1:X356)+1,\"\")","v":""}]
[null,null,null,null,null,null,null,null,null,null,null,null,null,null,null,null,null,null,null,null,null,null,null,{"$f":"IF(AND(MONTH($A$1:$A$1000)=MONTH(Plan1!$H$3),YEAR($A$1:$A$1000)=Plan1!$J$3),MAX(X$1:X357)+1,\"\")","v":""}]
[null,null,null,null,null,null,null,null,null,null,null,null,null,null,null,null,null,null,null,null,null,null,null,{"$f":"IF(AND(MONTH($A$1:$A$1000)=MONTH(Plan1!$H$3),YEAR($A$1:$A$1000)=Plan1!$J$3),MAX(X$1:X358)+1,\"\")","v":""}]
[null,null,null,null,null,null,null,null,null,null,null,null,null,null,null,null,null,null,null,null,null,null,null,{"$f":"IF(AND(MONTH($A$1:$A$1000)=MONTH(Plan1!$H$3),YEAR($A$1:$A$1000)=Plan1!$J$3),MAX(X$1:X359)+1,\"\")","v":""}]
[null,null,null,null,null,null,null,null,null,null,null,null,null,null,null,null,null,null,null,null,null,null,null,{"$f":"IF(AND(MONTH($A$1:$A$1000)=MONTH(Plan1!$H$3),YEAR($A$1:$A$1000)=Plan1!$J$3),MAX(X$1:X360)+1,\"\")","v":""}]
[null,null,null,null,null,null,null,null,null,null,null,null,null,null,null,null,null,null,null,null,null,null,null,{"$f":"IF(AND(MONTH($A$1:$A$1000)=MONTH(Plan1!$H$3),YEAR($A$1:$A$1000)=Plan1!$J$3),MAX(X$1:X361)+1,\"\")","v":""}]
[null,null,null,null,null,null,null,null,null,null,null,null,null,null,null,null,null,null,null,null,null,null,null,{"$f":"IF(AND(MONTH($A$1:$A$1000)=MONTH(Plan1!$H$3),YEAR($A$1:$A$1000)=Plan1!$J$3),MAX(X$1:X362)+1,\"\")","v":""}]
[null,null,null,null,null,null,null,null,null,null,null,null,null,null,null,null,null,null,null,null,null,null,null,{"$f":"IF(AND(MONTH($A$1:$A$1000)=MONTH(Plan1!$H$3),YEAR($A$1:$A$1000)=Plan1!$J$3),MAX(X$1:X363)+1,\"\")","v":""}]
[null,null,null,null,null,null,null,null,null,null,null,null,null,null,null,null,null,null,null,null,null,null,null,{"$f":"IF(AND(MONTH($A$1:$A$1000)=MONTH(Plan1!$H$3),YEAR($A$1:$A$1000)=Plan1!$J$3),MAX(X$1:X364)+1,\"\")","v":""}]
[null,null,null,null,null,null,null,null,null,null,null,null,null,null,null,null,null,null,null,null,null,null,null,{"$f":"IF(AND(MONTH($A$1:$A$1000)=MONTH(Plan1!$H$3),YEAR($A$1:$A$1000)=Plan1!$J$3),MAX(X$1:X365)+1,\"\")","v":""}]
[null,null,null,null,null,null,null,null,null,null,null,null,null,null,null,null,null,null,null,null,null,null,null,{"$f":"IF(AND(MONTH($A$1:$A$1000)=MONTH(Plan1!$H$3),YEAR($A$1:$A$1000)=Plan1!$J$3),MAX(X$1:X366)+1,\"\")","v":""}]
[null,null,null,null,null,null,null,null,null,null,null,null,null,null,null,null,null,null,null,null,null,null,null,{"$f":"IF(AND(MONTH($A$1:$A$1000)=MONTH(Plan1!$H$3),YEAR($A$1:$A$1000)=Plan1!$J$3),MAX(X$1:X367)+1,\"\")","v":""}]
[null,null,null,null,null,null,null,null,null,null,null,null,null,null,null,null,null,null,null,null,null,null,null,{"$f":"IF(AND(MONTH($A$1:$A$1000)=MONTH(Plan1!$H$3),YEAR($A$1:$A$1000)=Plan1!$J$3),MAX(X$1:X368)+1,\"\")","v":""}]
[null,null,null,null,null,null,null,null,null,null,null,null,null,null,null,null,null,null,null,null,null,null,null,{"$f":"IF(AND(MONTH($A$1:$A$1000)=MONTH(Plan1!$H$3),YEAR($A$1:$A$1000)=Plan1!$J$3),MAX(X$1:X369)+1,\"\")","v":""}]
[null,null,null,null,null,null,null,null,null,null,null,null,null,null,null,null,null,null,null,null,null,null,null,{"$f":"IF(AND(MONTH($A$1:$A$1000)=MONTH(Plan1!$H$3),YEAR($A$1:$A$1000)=Plan1!$J$3),MAX(X$1:X370)+1,\"\")","v":""}]
[null,null,null,null,null,null,null,null,null,null,null,null,null,null,null,null,null,null,null,null,null,null,null,{"$f":"IF(AND(MONTH($A$1:$A$1000)=MONTH(Plan1!$H$3),YEAR($A$1:$A$1000)=Plan1!$J$3),MAX(X$1:X371)+1,\"\")","v":""}]
[null,null,null,null,null,null,null,null,null,null,null,null,null,null,null,null,null,null,null,null,null,null,null,{"$f":"IF(AND(MONTH($A$1:$A$1000)=MONTH(Plan1!$H$3),YEAR($A$1:$A$1000)=Plan1!$J$3),MAX(X$1:X372)+1,\"\")","v":""}]
[null,null,null,null,null,null,null,null,null,null,null,null,null,null,null,null,null,null,null,null,null,null,null,{"$f":"IF(AND(MONTH($A$1:$A$1000)=MONTH(Plan1!$H$3),YEAR($A$1:$A$1000)=Plan1!$J$3),MAX(X$1:X373)+1,\"\")","v":""}]
[null,null,null,null,null,null,null,null,null,null,null,null,null,null,null,null,null,null,null,null,null,null,null,{"$f":"IF(AND(MONTH($A$1:$A$1000)=MONTH(Plan1!$H$3),YEAR($A$1:$A$1000)=Plan1!$J$3),MAX(X$1:X374)+1,\"\")","v":""}]
[null,null,null,null,null,null,null,null,null,null,null,null,null,null,null,null,null,null,null,null,null,null,null,{"$f":"IF(AND(MONTH($A$1:$A$1000)=MONTH(Plan1!$H$3),YEAR($A$1:$A$1000)=Plan1!$J$3),MAX(X$1:X375)+1,\"\")","v":""}]
[null,null,null,null,null,null,null,null,null,null,null,null,null,null,null,null,null,null,null,null,null,null,null,{"$f":"IF(AND(MONTH($A$1:$A$1000)=MONTH(Plan1!$H$3),YEAR($A$1:$A$1000)=Plan1!$J$3),MAX(X$1:X376)+1,\"\")","v":""}]
[null,null,null,null,null,null,null,null,null,null,null,null,null,null,null,null,null,null,null,null,null,null,null,{"$f":"IF(AND(MONTH($A$1:$A$1000)=MONTH(Plan1!$H$3),YEAR($A$1:$A$1000)=Plan1!$J$3),MAX(X$1:X377)+1,\"\")","v":""}]
[null,null,null,null,null,null,null,null,null,null,null,null,null,null,null,null,null,null,null,null,null,null,null,{"$f":"IF(AND(MONTH($A$1:$A$1000)=MONTH(Plan1!$H$3),YEAR($A$1:$A$1000)=Plan1!$J$3),MAX(X$1:X378)+1,\"\")","v":""}]
[null,null,null,null,null,null,null,null,null,null,null,null,null,null,null,null,null,null,null,null,null,null,null,{"$f":"IF(AND(MONTH($A$1:$A$1000)=MONTH(Plan1!$H$3),YEAR($A$1:$A$1000)=Plan1!$J$3),MAX(X$1:X379)+1,\"\")","v":""}]
[null,null,null,null,null,null,null,null,null,null,null,null,null,null,null,null,null,null,null,null,null,null,null,{"$f":"IF(AND(MONTH($A$1:$A$1000)=MONTH(Plan1!$H$3),YEAR($A$1:$A$1000)=Plan1!$J$3),MAX(X$1:X380)+1,\"\")","v":""}]
[null,null,null,null,null,null,null,null,null,null,null,null,null,null,null,null,null,null,null,null,null,null,null,{"$f":"IF(AND(MONTH($A$1:$A$1000)=MONTH(Plan1!$H$3),YEAR($A$1:$A$1000)=Plan1!$J$3),MAX(X$1:X381)+1,\"\")","v":""}]
[null,null,null,null,null,null,null,null,null,null,null,null,null,null,null,null,null,null,null,null,null,null,null,{"$f":"IF(AND(MONTH($A$1:$A$1000)=MONTH(Plan1!$H$3),YEAR($A$1:$A$1000)=Plan1!$J$3),MAX(X$1:X382)+1,\"\")","v":""}]
[null,null,null,null,null,null,null,null,null,null,null,null,null,null,null,null,null,null,null,null,null,null,null,{"$f":"IF(AND(MONTH($A$1:$A$1000)=MONTH(Plan1!$H$3),YEAR($A$1:$A$1000)=Plan1!$J$3),MAX(X$1:X383)+1,\"\")","v":""}]
[null,null,null,null,null,null,null,null,null,null,null,null,null,null,null,null,null,null,null,null,null,null,null,{"$f":"IF(AND(MONTH($A$1:$A$1000)=MONTH(Plan1!$H$3),YEAR($A$1:$A$1000)=Plan1!$J$3),MAX(X$1:X384)+1,\"\")","v":""}]
[null,null,null,null,null,null,null,null,null,null,null,null,null,null,null,null,null,null,null,null,null,null,null,{"$f":"IF(AND(MONTH($A$1:$A$1000)=MONTH(Plan1!$H$3),YEAR($A$1:$A$1000)=Plan1!$J$3),MAX(X$1:X385)+1,\"\")","v":""}]
[null,null,null,null,null,null,null,null,null,null,null,null,null,null,null,null,null,null,null,null,null,null,null,{"$f":"IF(AND(MONTH($A$1:$A$1000)=MONTH(Plan1!$H$3),YEAR($A$1:$A$1000)=Plan1!$J$3),MAX(X$1:X386)+1,\"\")","v":""}]
[null,null,null,null,null,null,null,null,null,null,null,null,null,null,null,null,null,null,null,null,null,null,null,{"$f":"IF(AND(MONTH($A$1:$A$1000)=MONTH(Plan1!$H$3),YEAR($A$1:$A$1000)=Plan1!$J$3),MAX(X$1:X387)+1,\"\")","v":""}]
[null,null,null,null,null,null,null,null,null,null,null,null,null,null,null,null,null,null,null,null,null,null,null,{"$f":"IF(AND(MONTH($A$1:$A$1000)=MONTH(Plan1!$H$3),YEAR($A$1:$A$1000)=Plan1!$J$3),MAX(X$1:X388)+1,\"\")","v":""}]
[null,null,null,null,null,null,null,null,null,null,null,null,null,null,null,null,null,null,null,null,null,null,null,{"$f":"IF(AND(MONTH($A$1:$A$1000)=MONTH(Plan1!$H$3),YEAR($A$1:$A$1000)=Plan1!$J$3),MAX(X$1:X389)+1,\"\")","v":""}]
[null,null,null,null,null,null,null,null,null,null,null,null,null,null,null,null,null,null,null,null,null,null,null,{"$f":"IF(AND(MONTH($A$1:$A$1000)=MONTH(Plan1!$H$3),YEAR($A$1:$A$1000)=Plan1!$J$3),MAX(X$1:X390)+1,\"\")","v":""}]
[null,null,null,null,null,null,null,null,null,null,null,null,null,null,null,null,null,null,null,null,null,null,null,{"$f":"IF(AND(MONTH($A$1:$A$1000)=MONTH(Plan1!$H$3),YEAR($A$1:$A$1000)=Plan1!$J$3),MAX(X$1:X391)+1,\"\")","v":""}]
[null,null,null,null,null,null,null,null,null,null,null,null,null,null,null,null,null,null,null,null,null,null,null,{"$f":"IF(AND(MONTH($A$1:$A$1000)=MONTH(Plan1!$H$3),YEAR($A$1:$A$1000)=Plan1!$J$3),MAX(X$1:X392)+1,\"\")","v":""}]
[null,null,null,null,null,null,null,null,null,null,null,null,null,null,null,null,null,null,null,null,null,null,null,{"$f":"IF(AND(MONTH($A$1:$A$1000)=MONTH(Plan1!$H$3),YEAR($A$1:$A$1000)=Plan1!$J$3),MAX(X$1:X393)+1,\"\")","v":""}]
[null,null,null,null,null,null,null,null,null,null,null,null,null,null,null,null,null,null,null,null,null,null,null,{"$f":"IF(AND(MONTH($A$1:$A$1000)=MONTH(Plan1!$H$3),YEAR($A$1:$A$1000)=Plan1!$J$3),MAX(X$1:X394)+1,\"\")","v":""}]
[null,null,null,null,null,null,null,null,null,null,null,null,null,null,null,null,null,null,null,null,null,null,null,{"$f":"IF(AND(MONTH($A$1:$A$1000)=MONTH(Plan1!$H$3),YEAR($A$1:$A$1000)=Plan1!$J$3),MAX(X$1:X395)+1,\"\")","v":""}]
[null,null,null,null,null,null,null,null,null,null,null,null,null,null,null,null,null,null,null,null,null,null,null,{"$f":"IF(AND(MONTH($A$1:$A$1000)=MONTH(Plan1!$H$3),YEAR($A$1:$A$1000)=Plan1!$J$3),MAX(X$1:X396)+1,\"\")","v":""}]
[null,null,null,null,null,null,null,null,null,null,null,null,null,null,null,null,null,null,null,null,null,null,null,{"$f":"IF(AND(MONTH($A$1:$A$1000)=MONTH(Plan1!$H$3),YEAR($A$1:$A$1000)=Plan1!$J$3),MAX(X$1:X397)+1,\"\")","v":""}]
[null,null,null,null,null,null,null,null,null,null,null,null,null,null,null,null,null,null,null,null,null,null,null,{"$f":"IF(AND(MONTH($A$1:$A$1000)=MONTH(Plan1!$H$3),YEAR($A$1:$A$1000)=Plan1!$J$3),MAX(X$1:X398)+1,\"\")","v":""}]
[null,null,null,null,null,null,null,null,null,null,null,null,null,null,null,null,null,null,null,null,null,null,null,{"$f":"IF(AND(MONTH($A$1:$A$1000)=MONTH(Plan1!$H$3),YEAR($A$1:$A$1000)=Plan1!$J$3),MAX(X$1:X399)+1,\"\")","v":""}]
[null,null,null,null,null,null,null,null,null,null,null,null,null,null,null,null,null,null,null,null,null,null,null,{"$f":"IF(AND(MONTH($A$1:$A$1000)=MONTH(Plan1!$H$3),YEAR($A$1:$A$1000)=Plan1!$J$3),MAX(X$1:X400)+1,\"\")","v":""}]
[null,null,null,null,null,null,null,null,null,null,null,null,null,null,null,null,null,null,null,null,null,null,null,{"$f":"IF(AND(MONTH($A$1:$A$1000)=MONTH(Plan1!$H$3),YEAR($A$1:$A$1000)=Plan1!$J$3),MAX(X$1:X401)+1,\"\")","v":""}]
[null,null,null,null,null,null,null,null,null,null,null,null,null,null,null,null,null,null,null,null,null,null,null,{"$f":"IF(AND(MONTH($A$1:$A$1000)=MONTH(Plan1!$H$3),YEAR($A$1:$A$1000)=Plan1!$J$3),MAX(X$1:X402)+1,\"\")","v":""}]
[null,null,null,null,null,null,null,null,null,null,null,null,null,null,null,null,null,null,null,null,null,null,null,{"$f":"IF(AND(MONTH($A$1:$A$1000)=MONTH(Plan1!$H$3),YEAR($A$1:$A$1000)=Plan1!$J$3),MAX(X$1:X403)+1,\"\")","v":""}]
[null,null,null,null,null,null,null,null,null,null,null,null,null,null,null,null,null,null,null,null,null,null,null,{"$f":"IF(AND(MONTH($A$1:$A$1000)=MONTH(Plan1!$H$3),YEAR($A$1:$A$1000)=Plan1!$J$3),MAX(X$1:X404)+1,\"\")","v":""}]
[null,null,null,null,null,null,null,null,null,null,null,null,null,null,null,null,null,null,null,null,null,null,null,{"$f":"IF(AND(MONTH($A$1:$A$1000)=MONTH(Plan1!$H$3),YEAR($A$1:$A$1000)=Plan1!$J$3),MAX(X$1:X405)+1,\"\")","v":""}]
[null,null,null,null,null,null,null,null,null,null,null,null,null,null,null,null,null,null,null,null,null,null,null,{"$f":"IF(AND(MONTH($A$1:$A$1000)=MONTH(Plan1!$H$3),YEAR($A$1:$A$1000)=Plan1!$J$3),MAX(X$1:X406)+1,\"\")","v":""}]
[null,null,null,null,null,null,null,null,null,null,null,null,null,null,null,null,null,null,null,null,null,null,null,{"$f":"IF(AND(MONTH($A$1:$A$1000)=MONTH(Plan1!$H$3),YEAR($A$1:$A$1000)=Plan1!$J$3),MAX(X$1:X407)+1,\"\")","v":""}]
[null,null,null,null,null,null,null,null,null,null,null,null,null,null,null,null,null,null,null,null,null,null,null,{"$f":"IF(AND(MONTH($A$1:$A$1000)=MONTH(Plan1!$H$3),YEAR($A$1:$A$1000)=Plan1!$J$3),MAX(X$1:X408)+1,\"\")","v":""}]
[null,null,null,null,null,null,null,null,null,null,null,null,null,null,null,null,null,null,null,null,null,null,null,{"$f":"IF(AND(MONTH($A$1:$A$1000)=MONTH(Plan1!$H$3),YEAR($A$1:$A$1000)=Plan1!$J$3),MAX(X$1:X409)+1,\"\")","v":""}]
[null,null,null,null,null,null,null,null,null,null,null,null,null,null,null,null,null,null,null,null,null,null,null,{"$f":"IF(AND(MONTH($A$1:$A$1000)=MONTH(Plan1!$H$3),YEAR($A$1:$A$1000)=Plan1!$J$3),MAX(X$1:X410)+1,\"\")","v":""}]
[null,null,null,null,null,null,null,null,null,null,null,null,null,null,null,null,null,null,null,null,null,null,null,{"$f":"IF(AND(MONTH($A$1:$A$1000)=MONTH(Plan1!$H$3),YEAR($A$1:$A$1000)=Plan1!$J$3),MAX(X$1:X411)+1,\"\")","v":""}]
[null,null,null,null,null,null,null,null,null,null,null,null,null,null,null,null,null,null,null,null,null,null,null,{"$f":"IF(AND(MONTH($A$1:$A$1000)=MONTH(Plan1!$H$3),YEAR($A$1:$A$1000)=Plan1!$J$3),MAX(X$1:X412)+1,\"\")","v":""}]
[null,null,null,null,null,null,null,null,null,null,null,null,null,null,null,null,null,null,null,null,null,null,null,{"$f":"IF(AND(MONTH($A$1:$A$1000)=MONTH(Plan1!$H$3),YEAR($A$1:$A$1000)=Plan1!$J$3),MAX(X$1:X413)+1,\"\")","v":""}]
[null,null,null,null,null,null,null,null,null,null,null,null,null,null,null,null,null,null,null,null,null,null,null,{"$f":"IF(AND(MONTH($A$1:$A$1000)=MONTH(Plan1!$H$3),YEAR($A$1:$A$1000)=Plan1!$J$3),MAX(X$1:X414)+1,\"\")","v":""}]
[null,null,null,null,null,null,null,null,null,null,null,null,null,null,null,null,null,null,null,null,null,null,null,{"$f":"IF(AND(MONTH($A$1:$A$1000)=MONTH(Plan1!$H$3),YEAR($A$1:$A$1000)=Plan1!$J$3),MAX(X$1:X415)+1,\"\")","v":""}]
[null,null,null,null,null,null,null,null,null,null,null,null,null,null,null,null,null,null,null,null,null,null,null,{"$f":"IF(AND(MONTH($A$1:$A$1000)=MONTH(Plan1!$H$3),YEAR($A$1:$A$1000)=Plan1!$J$3),MAX(X$1:X416)+1,\"\")","v":""}]
[null,null,null,null,null,null,null,null,null,null,null,null,null,null,null,null,null,null,null,null,null,null,null,{"$f":"IF(AND(MONTH($A$1:$A$1000)=MONTH(Plan1!$H$3),YEAR($A$1:$A$1000)=Plan1!$J$3),MAX(X$1:X417)+1,\"\")","v":""}]
[null,null,null,null,null,null,null,null,null,null,null,null,null,null,null,null,null,null,null,null,null,null,null,{"$f":"IF(AND(MONTH($A$1:$A$1000)=MONTH(Plan1!$H$3),YEAR($A$1:$A$1000)=Plan1!$J$3),MAX(X$1:X418)+1,\"\")","v":""}]
[null,null,null,null,null,null,null,null,null,null,null,null,null,null,null,null,null,null,null,null,null,null,null,{"$f":"IF(AND(MONTH($A$1:$A$1000)=MONTH(Plan1!$H$3),YEAR($A$1:$A$1000)=Plan1!$J$3),MAX(X$1:X419)+1,\"\")","v":""}]
[null,null,null,null,null,null,null,null,null,null,null,null,null,null,null,null,null,null,null,null,null,null,null,{"$f":"IF(AND(MONTH($A$1:$A$1000)=MONTH(Plan1!$H$3),YEAR($A$1:$A$1000)=Plan1!$J$3),MAX(X$1:X420)+1,\"\")","v":""}]
[null,null,null,null,null,null,null,null,null,null,null,null,null,null,null,null,null,null,null,null,null,null,null,{"$f":"IF(AND(MONTH($A$1:$A$1000)=MONTH(Plan1!$H$3),YEAR($A$1:$A$1000)=Plan1!$J$3),MAX(X$1:X421)+1,\"\")","v":""}]
[null,null,null,null,null,null,null,null,null,null,null,null,null,null,null,null,null,null,null,null,null,null,null,{"$f":"IF(AND(MONTH($A$1:$A$1000)=MONTH(Plan1!$H$3),YEAR($A$1:$A$1000)=Plan1!$J$3),MAX(X$1:X422)+1,\"\")","v":""}]
[null,null,null,null,null,null,null,null,null,null,null,null,null,null,null,null,null,null,null,null,null,null,null,{"$f":"IF(AND(MONTH($A$1:$A$1000)=MONTH(Plan1!$H$3),YEAR($A$1:$A$1000)=Plan1!$J$3),MAX(X$1:X423)+1,\"\")","v":""}]
[null,null,null,null,null,null,null,null,null,null,null,null,null,null,null,null,null,null,null,null,null,null,null,{"$f":"IF(AND(MONTH($A$1:$A$1000)=MONTH(Plan1!$H$3),YEAR($A$1:$A$1000)=Plan1!$J$3),MAX(X$1:X424)+1,\"\")","v":""}]
[null,null,null,null,null,null,null,null,null,null,null,null,null,null,null,null,null,null,null,null,null,null,null,{"$f":"IF(AND(MONTH($A$1:$A$1000)=MONTH(Plan1!$H$3),YEAR($A$1:$A$1000)=Plan1!$J$3),MAX(X$1:X425)+1,\"\")","v":""}]
[null,null,null,null,null,null,null,null,null,null,null,null,null,null,null,null,null,null,null,null,null,null,null,{"$f":"IF(AND(MONTH($A$1:$A$1000)=MONTH(Plan1!$H$3),YEAR($A$1:$A$1000)=Plan1!$J$3),MAX(X$1:X426)+1,\"\")","v":""}]
[null,null,null,null,null,null,null,null,null,null,null,null,null,null,null,null,null,null,null,null,null,null,null,{"$f":"IF(AND(MONTH($A$1:$A$1000)=MONTH(Plan1!$H$3),YEAR($A$1:$A$1000)=Plan1!$J$3),MAX(X$1:X427)+1,\"\")","v":""}]
[null,null,null,null,null,null,null,null,null,null,null,null,null,null,null,null,null,null,null,null,null,null,null,{"$f":"IF(AND(MONTH($A$1:$A$1000)=MONTH(Plan1!$H$3),YEAR($A$1:$A$1000)=Plan1!$J$3),MAX(X$1:X428)+1,\"\")","v":""}]
[null,null,null,null,null,null,null,null,null,null,null,null,null,null,null,null,null,null,null,null,null,null,null,{"$f":"IF(AND(MONTH($A$1:$A$1000)=MONTH(Plan1!$H$3),YEAR($A$1:$A$1000)=Plan1!$J$3),MAX(X$1:X429)+1,\"\")","v":""}]
[null,null,null,null,null,null,null,null,null,null,null,null,null,null,null,null,null,null,null,null,null,null,null,{"$f":"IF(AND(MONTH($A$1:$A$1000)=MONTH(Plan1!$H$3),YEAR($A$1:$A$1000)=Plan1!$J$3),MAX(X$1:X430)+1,\"\")","v":""}]
[null,null,null,null,null,null,null,null,null,null,null,null,null,null,null,null,null,null,null,null,null,null,null,{"$f":"IF(AND(MONTH($A$1:$A$1000)=MONTH(Plan1!$H$3),YEAR($A$1:$A$1000)=Plan1!$J$3),MAX(X$1:X431)+1,\"\")","v":""}]
[null,null,null,null,null,null,null,null,null,null,null,null,null,null,null,null,null,null,null,null,null,null,null,{"$f":"IF(AND(MONTH($A$1:$A$1000)=MONTH(Plan1!$H$3),YEAR($A$1:$A$1000)=Plan1!$J$3),MAX(X$1:X432)+1,\"\")","v":""}]
[null,null,null,null,null,null,null,null,null,null,null,null,null,null,null,null,null,null,null,null,null,null,null,{"$f":"IF(AND(MONTH($A$1:$A$1000)=MONTH(Plan1!$H$3),YEAR($A$1:$A$1000)=Plan1!$J$3),MAX(X$1:X433)+1,\"\")","v":""}]
[null,null,null,null,null,null,null,null,null,null,null,null,null,null,null,null,null,null,null,null,null,null,null,{"$f":"IF(AND(MONTH($A$1:$A$1000)=MONTH(Plan1!$H$3),YEAR($A$1:$A$1000)=Plan1!$J$3),MAX(X$1:X434)+1,\"\")","v":""}]
[null,null,null,null,null,null,null,null,null,null,null,null,null,null,null,null,null,null,null,null,null,null,null,{"$f":"IF(AND(MONTH($A$1:$A$1000)=MONTH(Plan1!$H$3),YEAR($A$1:$A$1000)=Plan1!$J$3),MAX(X$1:X435)+1,\"\")","v":""}]
[null,null,null,null,null,null,null,null,null,null,null,null,null,null,null,null,null,null,null,null,null,null,null,{"$f":"IF(AND(MONTH($A$1:$A$1000)=MONTH(Plan1!$H$3),YEAR($A$1:$A$1000)=Plan1!$J$3),MAX(X$1:X436)+1,\"\")","v":""}]
[null,null,null,null,null,null,null,null,null,null,null,null,null,null,null,null,null,null,null,null,null,null,null,{"$f":"IF(AND(MONTH($A$1:$A$1000)=MONTH(Plan1!$H$3),YEAR($A$1:$A$1000)=Plan1!$J$3),MAX(X$1:X437)+1,\"\")","v":""}]
[null,null,null,null,null,null,null,null,null,null,null,null,null,null,null,null,null,null,null,null,null,null,null,{"$f":"IF(AND(MONTH($A$1:$A$1000)=MONTH(Plan1!$H$3),YEAR($A$1:$A$1000)=Plan1!$J$3),MAX(X$1:X438)+1,\"\")","v":""}]
[null,null,null,null,null,null,null,null,null,null,null,null,null,null,null,null,null,null,null,null,null,null,null,{"$f":"IF(AND(MONTH($A$1:$A$1000)=MONTH(Plan1!$H$3),YEAR($A$1:$A$1000)=Plan1!$J$3),MAX(X$1:X439)+1,\"\")","v":""}]
[null,null,null,null,null,null,null,null,null,null,null,null,null,null,null,null,null,null,null,null,null,null,null,{"$f":"IF(AND(MONTH($A$1:$A$1000)=MONTH(Plan1!$H$3),YEAR($A$1:$A$1000)=Plan1!$J$3),MAX(X$1:X440)+1,\"\")","v":""}]
[null,null,null,null,null,null,null,null,null,null,null,null,null,null,null,null,null,null,null,null,null,null,null,{"$f":"IF(AND(MONTH($A$1:$A$1000)=MONTH(Plan1!$H$3),YEAR($A$1:$A$1000)=Plan1!$J$3),MAX(X$1:X441)+1,\"\")","v":""}]
[null,null,null,null,null,null,null,null,null,null,null,null,null,null,null,null,null,null,null,null,null,null,null,{"$f":"IF(AND(MONTH($A$1:$A$1000)=MONTH(Plan1!$H$3),YEAR($A$1:$A$1000)=Plan1!$J$3),MAX(X$1:X442)+1,\"\")","v":""}]
[null,null,null,null,null,null,null,null,null,null,null,null,null,null,null,null,null,null,null,null,null,null,null,{"$f":"IF(AND(MONTH($A$1:$A$1000)=MONTH(Plan1!$H$3),YEAR($A$1:$A$1000)=Plan1!$J$3),MAX(X$1:X443)+1,\"\")","v":""}]
[null,null,null,null,null,null,null,null,null,null,null,null,null,null,null,null,null,null,null,null,null,null,null,{"$f":"IF(AND(MONTH($A$1:$A$1000)=MONTH(Plan1!$H$3),YEAR($A$1:$A$1000)=Plan1!$J$3),MAX(X$1:X444)+1,\"\")","v":""}]
[null,null,null,null,null,null,null,null,null,null,null,null,null,null,null,null,null,null,null,null,null,null,null,{"$f":"IF(AND(MONTH($A$1:$A$1000)=MONTH(Plan1!$H$3),YEAR($A$1:$A$1000)=Plan1!$J$3),MAX(X$1:X445)+1,\"\")","v":""}]
[null,null,null,null,null,null,null,null,null,null,null,null,null,null,null,null,null,null,null,null,null,null,null,{"$f":"IF(AND(MONTH($A$1:$A$1000)=MONTH(Plan1!$H$3),YEAR($A$1:$A$1000)=Plan1!$J$3),MAX(X$1:X446)+1,\"\")","v":""}]
[null,null,null,null,null,null,null,null,null,null,null,null,null,null,null,null,null,null,null,null,null,null,null,{"$f":"IF(AND(MONTH($A$1:$A$1000)=MONTH(Plan1!$H$3),YEAR($A$1:$A$1000)=Plan1!$J$3),MAX(X$1:X447)+1,\"\")","v":""}]
[null,null,null,null,null,null,null,null,null,null,null,null,null,null,null,null,null,null,null,null,null,null,null,{"$f":"IF(AND(MONTH($A$1:$A$1000)=MONTH(Plan1!$H$3),YEAR($A$1:$A$1000)=Plan1!$J$3),MAX(X$1:X448)+1,\"\")","v":""}]
[null,null,null,null,null,null,null,null,null,null,null,null,null,null,null,null,null,null,null,null,null,null,null,{"$f":"IF(AND(MONTH($A$1:$A$1000)=MONTH(Plan1!$H$3),YEAR($A$1:$A$1000)=Plan1!$J$3),MAX(X$1:X449)+1,\"\")","v":""}]
[null,null,null,null,null,null,null,null,null,null,null,null,null,null,null,null,null,null,null,null,null,null,null,{"$f":"IF(AND(MONTH($A$1:$A$1000)=MONTH(Plan1!$H$3),YEAR($A$1:$A$1000)=Plan1!$J$3),MAX(X$1:X450)+1,\"\")","v":""}]
[null,null,null,null,null,null,null,null,null,null,null,null,null,null,null,null,null,null,null,null,null,null,null,{"$f":"IF(AND(MONTH($A$1:$A$1000)=MONTH(Plan1!$H$3),YEAR($A$1:$A$1000)=Plan1!$J$3),MAX(X$1:X451)+1,\"\")","v":""}]
[null,null,null,null,null,null,null,null,null,null,null,null,null,null,null,null,null,null,null,null,null,null,null,{"$f":"IF(AND(MONTH($A$1:$A$1000)=MONTH(Plan1!$H$3),YEAR($A$1:$A$1000)=Plan1!$J$3),MAX(X$1:X452)+1,\"\")","v":""}]
[null,null,null,null,null,null,null,null,null,null,null,null,null,null,null,null,null,null,null,null,null,null,null,{"$f":"IF(AND(MONTH($A$1:$A$1000)=MONTH(Plan1!$H$3),YEAR($A$1:$A$1000)=Plan1!$J$3),MAX(X$1:X453)+1,\"\")","v":""}]
[null,null,null,null,null,null,null,null,null,null,null,null,null,null,null,null,null,null,null,null,null,null,null,{"$f":"IF(AND(MONTH($A$1:$A$1000)=MONTH(Plan1!$H$3),YEAR($A$1:$A$1000)=Plan1!$J$3),MAX(X$1:X454)+1,\"\")","v":""}]
[null,null,null,null,null,null,null,null,null,null,null,null,null,null,null,null,null,null,null,null,null,null,null,{"$f":"IF(AND(MONTH($A$1:$A$1000)=MONTH(Plan1!$H$3),YEAR($A$1:$A$1000)=Plan1!$J$3),MAX(X$1:X455)+1,\"\")","v":""}]
[null,null,null,null,null,null,null,null,null,null,null,null,null,null,null,null,null,null,null,null,null,null,null,{"$f":"IF(AND(MONTH($A$1:$A$1000)=MONTH(Plan1!$H$3),YEAR($A$1:$A$1000)=Plan1!$J$3),MAX(X$1:X456)+1,\"\")","v":""}]
[null,null,null,null,null,null,null,null,null,null,null,null,null,null,null,null,null,null,null,null,null,null,null,{"$f":"IF(AND(MONTH($A$1:$A$1000)=MONTH(Plan1!$H$3),YEAR($A$1:$A$1000)=Plan1!$J$3),MAX(X$1:X457)+1,\"\")","v":""}]
[null,null,null,null,null,null,null,null,null,null,null,null,null,null,null,null,null,null,null,null,null,null,null,{"$f":"IF(AND(MONTH($A$1:$A$1000)=MONTH(Plan1!$H$3),YEAR($A$1:$A$1000)=Plan1!$J$3),MAX(X$1:X458)+1,\"\")","v":""}]
[null,null,null,null,null,null,null,null,null,null,null,null,null,null,null,null,null,null,null,null,null,null,null,{"$f":"IF(AND(MONTH($A$1:$A$1000)=MONTH(Plan1!$H$3),YEAR($A$1:$A$1000)=Plan1!$J$3),MAX(X$1:X459)+1,\"\")","v":""}]
[null,null,null,null,null,null,null,null,null,null,null,null,null,null,null,null,null,null,null,null,null,null,null,{"$f":"IF(AND(MONTH($A$1:$A$1000)=MONTH(Plan1!$H$3),YEAR($A$1:$A$1000)=Plan1!$J$3),MAX(X$1:X460)+1,\"\")","v":""}]
[null,null,null,null,null,null,null,null,null,null,null,null,null,null,null,null,null,null,null,null,null,null,null,{"$f":"IF(AND(MONTH($A$1:$A$1000)=MONTH(Plan1!$H$3),YEAR($A$1:$A$1000)=Plan1!$J$3),MAX(X$1:X461)+1,\"\")","v":""}]
[null,null,null,null,null,null,null,null,null,null,null,null,null,null,null,null,null,null,null,null,null,null,null,{"$f":"IF(AND(MONTH($A$1:$A$1000)=MONTH(Plan1!$H$3),YEAR($A$1:$A$1000)=Plan1!$J$3),MAX(X$1:X462)+1,\"\")","v":""}]
[null,null,null,null,null,null,null,null,null,null,null,null,null,null,null,null,null,null,null,null,null,null,null,{"$f":"IF(AND(MONTH($A$1:$A$1000)=MONTH(Plan1!$H$3),YEAR($A$1:$A$1000)=Plan1!$J$3),MAX(X$1:X463)+1,\"\")","v":""}]
[null,null,null,null,null,null,null,null,null,null,null,null,null,null,null,null,null,null,null,null,null,null,null,{"$f":"IF(AND(MONTH($A$1:$A$1000)=MONTH(Plan1!$H$3),YEAR($A$1:$A$1000)=Plan1!$J$3),MAX(X$1:X464)+1,\"\")","v":""}]
[null,null,null,null,null,null,null,null,null,null,null,null,null,null,null,null,null,null,null,null,null,null,null,{"$f":"IF(AND(MONTH($A$1:$A$1000)=MONTH(Plan1!$H$3),YEAR($A$1:$A$1000)=Plan1!$J$3),MAX(X$1:X465)+1,\"\")","v":""}]
[null,null,null,null,null,null,null,null,null,null,null,null,null,null,null,null,null,null,null,null,null,null,null,{"$f":"IF(AND(MONTH($A$1:$A$1000)=MONTH(Plan1!$H$3),YEAR($A$1:$A$1000)=Plan1!$J$3),MAX(X$1:X466)+1,\"\")","v":""}]
[null,null,null,null,null,null,null,null,null,null,null,null,null,null,null,null,null,null,null,null,null,null,null,{"$f":"IF(AND(MONTH($A$1:$A$1000)=MONTH(Plan1!$H$3),YEAR($A$1:$A$1000)=Plan1!$J$3),MAX(X$1:X467)+1,\"\")","v":""}]
[null,null,null,null,null,null,null,null,null,null,null,null,null,null,null,null,null,null,null,null,null,null,null,{"$f":"IF(AND(MONTH($A$1:$A$1000)=MONTH(Plan1!$H$3),YEAR($A$1:$A$1000)=Plan1!$J$3),MAX(X$1:X468)+1,\"\")","v":""}]
[null,null,null,null,null,null,null,null,null,null,null,null,null,null,null,null,null,null,null,null,null,null,null,{"$f":"IF(AND(MONTH($A$1:$A$1000)=MONTH(Plan1!$H$3),YEAR($A$1:$A$1000)=Plan1!$J$3),MAX(X$1:X469)+1,\"\")","v":""}]
[null,null,null,null,null,null,null,null,null,null,null,null,null,null,null,null,null,null,null,null,null,null,null,{"$f":"IF(AND(MONTH($A$1:$A$1000)=MONTH(Plan1!$H$3),YEAR($A$1:$A$1000)=Plan1!$J$3),MAX(X$1:X470)+1,\"\")","v":""}]
[null,null,null,null,null,null,null,null,null,null,null,null,null,null,null,null,null,null,null,null,null,null,null,{"$f":"IF(AND(MONTH($A$1:$A$1000)=MONTH(Plan1!$H$3),YEAR($A$1:$A$1000)=Plan1!$J$3),MAX(X$1:X471)+1,\"\")","v":""}]
[null,null,null,null,null,null,null,null,null,null,null,null,null,null,null,null,null,null,null,null,null,null,null,{"$f":"IF(AND(MONTH($A$1:$A$1000)=MONTH(Plan1!$H$3),YEAR($A$1:$A$1000)=Plan1!$J$3),MAX(X$1:X472)+1,\"\")","v":""}]
[null,null,null,null,null,null,null,null,null,null,null,null,null,null,null,null,null,null,null,null,null,null,null,{"$f":"IF(AND(MONTH($A$1:$A$1000)=MONTH(Plan1!$H$3),YEAR($A$1:$A$1000)=Plan1!$J$3),MAX(X$1:X473)+1,\"\")","v":""}]
[null,null,null,null,null,null,null,null,null,null,null,null,null,null,null,null,null,null,null,null,null,null,null,{"$f":"IF(AND(MONTH($A$1:$A$1000)=MONTH(Plan1!$H$3),YEAR($A$1:$A$1000)=Plan1!$J$3),MAX(X$1:X474)+1,\"\")","v":""}]
[null,null,null,null,null,null,null,null,null,null,null,null,null,null,null,null,null,null,null,null,null,null,null,{"$f":"IF(AND(MONTH($A$1:$A$1000)=MONTH(Plan1!$H$3),YEAR($A$1:$A$1000)=Plan1!$J$3),MAX(X$1:X475)+1,\"\")","v":""}]
[null,null,null,null,null,null,null,null,null,null,null,null,null,null,null,null,null,null,null,null,null,null,null,{"$f":"IF(AND(MONTH($A$1:$A$1000)=MONTH(Plan1!$H$3),YEAR($A$1:$A$1000)=Plan1!$J$3),MAX(X$1:X476)+1,\"\")","v":""}]
[null,null,null,null,null,null,null,null,null,null,null,null,null,null,null,null,null,null,null,null,null,null,null,{"$f":"IF(AND(MONTH($A$1:$A$1000)=MONTH(Plan1!$H$3),YEAR($A$1:$A$1000)=Plan1!$J$3),MAX(X$1:X477)+1,\"\")","v":""}]
[null,null,null,null,null,null,null,null,null,null,null,null,null,null,null,null,null,null,null,null,null,null,null,{"$f":"IF(AND(MONTH($A$1:$A$1000)=MONTH(Plan1!$H$3),YEAR($A$1:$A$1000)=Plan1!$J$3),MAX(X$1:X478)+1,\"\")","v":""}]
[null,null,null,null,null,null,null,null,null,null,null,null,null,null,null,null,null,null,null,null,null,null,null,{"$f":"IF(AND(MONTH($A$1:$A$1000)=MONTH(Plan1!$H$3),YEAR($A$1:$A$1000)=Plan1!$J$3),MAX(X$1:X479)+1,\"\")","v":""}]
[null,null,null,null,null,null,null,null,null,null,null,null,null,null,null,null,null,null,null,null,null,null,null,{"$f":"IF(AND(MONTH($A$1:$A$1000)=MONTH(Plan1!$H$3),YEAR($A$1:$A$1000)=Plan1!$J$3),MAX(X$1:X480)+1,\"\")","v":""}]
[null,null,null,null,null,null,null,null,null,null,null,null,null,null,null,null,null,null,null,null,null,null,null,{"$f":"IF(AND(MONTH($A$1:$A$1000)=MONTH(Plan1!$H$3),YEAR($A$1:$A$1000)=Plan1!$J$3),MAX(X$1:X481)+1,\"\")","v":""}]
[null,null,null,null,null,null,null,null,null,null,null,null,null,null,null,null,null,null,null,null,null,null,null,{"$f":"IF(AND(MONTH($A$1:$A$1000)=MONTH(Plan1!$H$3),YEAR($A$1:$A$1000)=Plan1!$J$3),MAX(X$1:X482)+1,\"\")","v":""}]
[null,null,null,null,null,null,null,null,null,null,null,null,null,null,null,null,null,null,null,null,null,null,null,{"$f":"IF(AND(MONTH($A$1:$A$1000)=MONTH(Plan1!$H$3),YEAR($A$1:$A$1000)=Plan1!$J$3),MAX(X$1:X483)+1,\"\")","v":""}]
[null,null,null,null,null,null,null,null,null,null,null,null,null,null,null,null,null,null,null,null,null,null,null,{"$f":"IF(AND(MONTH($A$1:$A$1000)=MONTH(Plan1!$H$3),YEAR($A$1:$A$1000)=Plan1!$J$3),MAX(X$1:X484)+1,\"\")","v":""}]
[null,null,null,null,null,null,null,null,null,null,null,null,null,null,null,null,null,null,null,null,null,null,null,{"$f":"IF(AND(MONTH($A$1:$A$1000)=MONTH(Plan1!$H$3),YEAR($A$1:$A$1000)=Plan1!$J$3),MAX(X$1:X485)+1,\"\")","v":""}]
[null,null,null,null,null,null,null,null,null,null,null,null,null,null,null,null,null,null,null,null,null,null,null,{"$f":"IF(AND(MONTH($A$1:$A$1000)=MONTH(Plan1!$H$3),YEAR($A$1:$A$1000)=Plan1!$J$3),MAX(X$1:X486)+1,\"\")","v":""}]
[null,null,null,null,null,null,null,null,null,null,null,null,null,null,null,null,null,null,null,null,null,null,null,{"$f":"IF(AND(MONTH($A$1:$A$1000)=MONTH(Plan1!$H$3),YEAR($A$1:$A$1000)=Plan1!$J$3),MAX(X$1:X487)+1,\"\")","v":""}]
[null,null,null,null,null,null,null,null,null,null,null,null,null,null,null,null,null,null,null,null,null,null,null,{"$f":"IF(AND(MONTH($A$1:$A$1000)=MONTH(Plan1!$H$3),YEAR($A$1:$A$1000)=Plan1!$J$3),MAX(X$1:X488)+1,\"\")","v":""}]
[null,null,null,null,null,null,null,null,null,null,null,null,null,null,null,null,null,null,null,null,null,null,null,{"$f":"IF(AND(MONTH($A$1:$A$1000)=MONTH(Plan1!$H$3),YEAR($A$1:$A$1000)=Plan1!$J$3),MAX(X$1:X489)+1,\"\")","v":""}]
[null,null,null,null,null,null,null,null,null,null,null,null,null,null,null,null,null,null,null,null,null,null,null,{"$f":"IF(AND(MONTH($A$1:$A$1000)=MONTH(Plan1!$H$3),YEAR($A$1:$A$1000)=Plan1!$J$3),MAX(X$1:X490)+1,\"\")","v":""}]
[null,null,null,null,null,null,null,null,null,null,null,null,null,null,null,null,null,null,null,null,null,null,null,{"$f":"IF(AND(MONTH($A$1:$A$1000)=MONTH(Plan1!$H$3),YEAR($A$1:$A$1000)=Plan1!$J$3),MAX(X$1:X491)+1,\"\")","v":""}]
[null,null,null,null,null,null,null,null,null,null,null,null,null,null,null,null,null,null,null,null,null,null,null,{"$f":"IF(AND(MONTH($A$1:$A$1000)=MONTH(Plan1!$H$3),YEAR($A$1:$A$1000)=Plan1!$J$3),MAX(X$1:X492)+1,\"\")","v":""}]
[null,null,null,null,null,null,null,null,null,null,null,null,null,null,null,null,null,null,null,null,null,null,null,{"$f":"IF(AND(MONTH($A$1:$A$1000)=MONTH(Plan1!$H$3),YEAR($A$1:$A$1000)=Plan1!$J$3),MAX(X$1:X493)+1,\"\")","v":""}]
[null,null,null,null,null,null,null,null,null,null,null,null,null,null,null,null,null,null,null,null,null,null,null,{"$f":"IF(AND(MONTH($A$1:$A$1000)=MONTH(Plan1!$H$3),YEAR($A$1:$A$1000)=Plan1!$J$3),MAX(X$1:X494)+1,\"\")","v":""}]
[null,null,null,null,null,null,null,null,null,null,null,null,null,null,null,null,null,null,null,null,null,null,null,{"$f":"IF(AND(MONTH($A$1:$A$1000)=MONTH(Plan1!$H$3),YEAR($A$1:$A$1000)=Plan1!$J$3),MAX(X$1:X495)+1,\"\")","v":""}]
[null,null,null,null,null,null,null,null,null,null,null,null,null,null,null,null,null,null,null,null,null,null,null,{"$f":"IF(AND(MONTH($A$1:$A$1000)=MONTH(Plan1!$H$3),YEAR($A$1:$A$1000)=Plan1!$J$3),MAX(X$1:X496)+1,\"\")","v":""}]
[null,null,null,null,null,null,null,null,null,null,null,null,null,null,null,null,null,null,null,null,null,null,null,{"$f":"IF(AND(MONTH($A$1:$A$1000)=MONTH(Plan1!$H$3),YEAR($A$1:$A$1000)=Plan1!$J$3),MAX(X$1:X497)+1,\"\")","v":""}]
[null,null,null,null,null,null,null,null,null,null,null,null,null,null,null,null,null,null,null,null,null,null,null,{"$f":"IF(AND(MONTH($A$1:$A$1000)=MONTH(Plan1!$H$3),YEAR($A$1:$A$1000)=Plan1!$J$3),MAX(X$1:X498)+1,\"\")","v":""}]
[null,null,null,null,null,null,null,null,null,null,null,null,null,null,null,null,null,null,null,null,null,null,null,{"$f":"IF(AND(MONTH($A$1:$A$1000)=MONTH(Plan1!$H$3),YEAR($A$1:$A$1000)=Plan1!$J$3),MAX(X$1:X499)+1,\"\")","v":""}]
[null,null,null,null,null,null,null,null,null,null,null,null,null,null,null,null,null,null,null,null,null,null,null,{"$f":"IF(AND(MONTH($A$1:$A$1000)=MONTH(Plan1!$H$3),YEAR($A$1:$A$1000)=Plan1!$J$3),MAX(X$1:X500)+1,\"\")","v":""}]
[null,null,null,null,null,null,null,null,null,null,null,null,null,null,null,null,null,null,null,null,null,null,null,{"$f":"IF(AND(MONTH($A$1:$A$1000)=MONTH(Plan1!$H$3),YEAR($A$1:$A$1000)=Plan1!$J$3),MAX(X$1:X501)+1,\"\")","v":""}]
[null,null,null,null,null,null,null,null,null,null,null,null,null,null,null,null,null,null,null,null,null,null,null,{"$f":"IF(AND(MONTH($A$1:$A$1000)=MONTH(Plan1!$H$3),YEAR($A$1:$A$1000)=Plan1!$J$3),MAX(X$1:X502)+1,\"\")","v":""}]
[null,null,null,null,null,null,null,null,null,null,null,null,null,null,null,null,null,null,null,null,null,null,null,{"$f":"IF(AND(MONTH($A$1:$A$1000)=MONTH(Plan1!$H$3),YEAR($A$1:$A$1000)=Plan1!$J$3),MAX(X$1:X503)+1,\"\")","v":""}]
[null,null,null,null,null,null,null,null,null,null,null,null,null,null,null,null,null,null,null,null,null,null,null,{"$f":"IF(AND(MONTH($A$1:$A$1000)=MONTH(Plan1!$H$3),YEAR($A$1:$A$1000)=Plan1!$J$3),MAX(X$1:X504)+1,\"\")","v":""}]
[null,null,null,null,null,null,null,null,null,null,null,null,null,null,null,null,null,null,null,null,null,null,null,{"$f":"IF(AND(MONTH($A$1:$A$1000)=MONTH(Plan1!$H$3),YEAR($A$1:$A$1000)=Plan1!$J$3),MAX(X$1:X505)+1,\"\")","v":""}]
[null,null,null,null,null,null,null,null,null,null,null,null,null,null,null,null,null,null,null,null,null,null,null,{"$f":"IF(AND(MONTH($A$1:$A$1000)=MONTH(Plan1!$H$3),YEAR($A$1:$A$1000)=Plan1!$J$3),MAX(X$1:X506)+1,\"\")","v":""}]
[null,null,null,null,null,null,null,null,null,null,null,null,null,null,null,null,null,null,null,null,null,null,null,{"$f":"IF(AND(MONTH($A$1:$A$1000)=MONTH(Plan1!$H$3),YEAR($A$1:$A$1000)=Plan1!$J$3),MAX(X$1:X507)+1,\"\")","v":""}]
[null,null,null,null,null,null,null,null,null,null,null,null,null,null,null,null,null,null,null,null,null,null,null,{"$f":"IF(AND(MONTH($A$1:$A$1000)=MONTH(Plan1!$H$3),YEAR($A$1:$A$1000)=Plan1!$J$3),MAX(X$1:X508)+1,\"\")","v":""}]
[null,null,null,null,null,null,null,null,null,null,null,null,null,null,null,null,null,null,null,null,null,null,null,{"$f":"IF(AND(MONTH($A$1:$A$1000)=MONTH(Plan1!$H$3),YEAR($A$1:$A$1000)=Plan1!$J$3),MAX(X$1:X509)+1,\"\")","v":""}]
[null,null,null,null,null,null,null,null,null,null,null,null,null,null,null,null,null,null,null,null,null,null,null,{"$f":"IF(AND(MONTH($A$1:$A$1000)=MONTH(Plan1!$H$3),YEAR($A$1:$A$1000)=Plan1!$J$3),MAX(X$1:X510)+1,\"\")","v":""}]
[null,null,null,null,null,null,null,null,null,null,null,null,null,null,null,null,null,null,null,null,null,null,null,{"$f":"IF(AND(MONTH($A$1:$A$1000)=MONTH(Plan1!$H$3),YEAR($A$1:$A$1000)=Plan1!$J$3),MAX(X$1:X511)+1,\"\")","v":""}]
[null,null,null,null,null,null,null,null,null,null,null,null,null,null,null,null,null,null,null,null,null,null,null,{"$f":"IF(AND(MONTH($A$1:$A$1000)=MONTH(Plan1!$H$3),YEAR($A$1:$A$1000)=Plan1!$J$3),MAX(X$1:X512)+1,\"\")","v":""}]
[null,null,null,null,null,null,null,null,null,null,null,null,null,null,null,null,null,null,null,null,null,null,null,{"$f":"IF(AND(MONTH($A$1:$A$1000)=MONTH(Plan1!$H$3),YEAR($A$1:$A$1000)=Plan1!$J$3),MAX(X$1:X513)+1,\"\")","v":""}]
[null,null,null,null,null,null,null,null,null,null,null,null,null,null,null,null,null,null,null,null,null,null,null,{"$f":"IF(AND(MONTH($A$1:$A$1000)=MONTH(Plan1!$H$3),YEAR($A$1:$A$1000)=Plan1!$J$3),MAX(X$1:X514)+1,\"\")","v":""}]
[null,null,null,null,null,null,null,null,null,null,null,null,null,null,null,null,null,null,null,null,null,null,null,{"$f":"IF(AND(MONTH($A$1:$A$1000)=MONTH(Plan1!$H$3),YEAR($A$1:$A$1000)=Plan1!$J$3),MAX(X$1:X515)+1,\"\")","v":""}]
[null,null,null,null,null,null,null,null,null,null,null,null,null,null,null,null,null,null,null,null,null,null,null,{"$f":"IF(AND(MONTH($A$1:$A$1000)=MONTH(Plan1!$H$3),YEAR($A$1:$A$1000)=Plan1!$J$3),MAX(X$1:X516)+1,\"\")","v":""}]
[null,null,null,null,null,null,null,null,null,null,null,null,null,null,null,null,null,null,null,null,null,null,null,{"$f":"IF(AND(MONTH($A$1:$A$1000)=MONTH(Plan1!$H$3),YEAR($A$1:$A$1000)=Plan1!$J$3),MAX(X$1:X517)+1,\"\")","v":""}]
[null,null,null,null,null,null,null,null,null,null,null,null,null,null,null,null,null,null,null,null,null,null,null,{"$f":"IF(AND(MONTH($A$1:$A$1000)=MONTH(Plan1!$H$3),YEAR($A$1:$A$1000)=Plan1!$J$3),MAX(X$1:X518)+1,\"\")","v":""}]
[null,null,null,null,null,null,null,null,null,null,null,null,null,null,null,null,null,null,null,null,null,null,null,{"$f":"IF(AND(MONTH($A$1:$A$1000)=MONTH(Plan1!$H$3),YEAR($A$1:$A$1000)=Plan1!$J$3),MAX(X$1:X519)+1,\"\")","v":""}]
[null,null,null,null,null,null,null,null,null,null,null,null,null,null,null,null,null,null,null,null,null,null,null,{"$f":"IF(AND(MONTH($A$1:$A$1000)=MONTH(Plan1!$H$3),YEAR($A$1:$A$1000)=Plan1!$J$3),MAX(X$1:X520)+1,\"\")","v":""}]
[null,null,null,null,null,null,null,null,null,null,null,null,null,null,null,null,null,null,null,null,null,null,null,{"$f":"IF(AND(MONTH($A$1:$A$1000)=MONTH(Plan1!$H$3),YEAR($A$1:$A$1000)=Plan1!$J$3),MAX(X$1:X521)+1,\"\")","v":""}]
[null,null,null,null,null,null,null,null,null,null,null,null,null,null,null,null,null,null,null,null,null,null,null,{"$f":"IF(AND(MONTH($A$1:$A$1000)=MONTH(Plan1!$H$3),YEAR($A$1:$A$1000)=Plan1!$J$3),MAX(X$1:X522)+1,\"\")","v":""}]
[null,null,null,null,null,null,null,null,null,null,null,null,null,null,null,null,null,null,null,null,null,null,null,{"$f":"IF(AND(MONTH($A$1:$A$1000)=MONTH(Plan1!$H$3),YEAR($A$1:$A$1000)=Plan1!$J$3),MAX(X$1:X523)+1,\"\")","v":""}]
[null,null,null,null,null,null,null,null,null,null,null,null,null,null,null,null,null,null,null,null,null,null,null,{"$f":"IF(AND(MONTH($A$1:$A$1000)=MONTH(Plan1!$H$3),YEAR($A$1:$A$1000)=Plan1!$J$3),MAX(X$1:X524)+1,\"\")","v":""}]
[null,null,null,null,null,null,null,null,null,null,null,null,null,null,null,null,null,null,null,null,null,null,null,{"$f":"IF(AND(MONTH($A$1:$A$1000)=MONTH(Plan1!$H$3),YEAR($A$1:$A$1000)=Plan1!$J$3),MAX(X$1:X525)+1,\"\")","v":""}]
[null,null,null,null,null,null,null,null,null,null,null,null,null,null,null,null,null,null,null,null,null,null,null,{"$f":"IF(AND(MONTH($A$1:$A$1000)=MONTH(Plan1!$H$3),YEAR($A$1:$A$1000)=Plan1!$J$3),MAX(X$1:X526)+1,\"\")","v":""}]
[null,null,null,null,null,null,null,null,null,null,null,null,null,null,null,null,null,null,null,null,null,null,null,{"$f":"IF(AND(MONTH($A$1:$A$1000)=MONTH(Plan1!$H$3),YEAR($A$1:$A$1000)=Plan1!$J$3),MAX(X$1:X527)+1,\"\")","v":""}]
[null,null,null,null,null,null,null,null,null,null,null,null,null,null,null,null,null,null,null,null,null,null,null,{"$f":"IF(AND(MONTH($A$1:$A$1000)=MONTH(Plan1!$H$3),YEAR($A$1:$A$1000)=Plan1!$J$3),MAX(X$1:X528)+1,\"\")","v":""}]
[null,null,null,null,null,null,null,null,null,null,null,null,null,null,null,null,null,null,null,null,null,null,null,{"$f":"IF(AND(MONTH($A$1:$A$1000)=MONTH(Plan1!$H$3),YEAR($A$1:$A$1000)=Plan1!$J$3),MAX(X$1:X529)+1,\"\")","v":""}]
[null,null,null,null,null,null,null,null,null,null,null,null,null,null,null,null,null,null,null,null,null,null,null,{"$f":"IF(AND(MONTH($A$1:$A$1000)=MONTH(Plan1!$H$3),YEAR($A$1:$A$1000)=Plan1!$J$3),MAX(X$1:X530)+1,\"\")","v":""}]
[null,null,null,null,null,null,null,null,null,null,null,null,null,null,null,null,null,null,null,null,null,null,null,{"$f":"IF(AND(MONTH($A$1:$A$1000)=MONTH(Plan1!$H$3),YEAR($A$1:$A$1000)=Plan1!$J$3),MAX(X$1:X531)+1,\"\")","v":""}]
[null,null,null,null,null,null,null,null,null,null,null,null,null,null,null,null,null,null,null,null,null,null,null,{"$f":"IF(AND(MONTH($A$1:$A$1000)=MONTH(Plan1!$H$3),YEAR($A$1:$A$1000)=Plan1!$J$3),MAX(X$1:X532)+1,\"\")","v":""}]
[null,null,null,null,null,null,null,null,null,null,null,null,null,null,null,null,null,null,null,null,null,null,null,{"$f":"IF(AND(MONTH($A$1:$A$1000)=MONTH(Plan1!$H$3),YEAR($A$1:$A$1000)=Plan1!$J$3),MAX(X$1:X533)+1,\"\")","v":""}]
[null,null,null,null,null,null,null,null,null,null,null,null,null,null,null,null,null,null,null,null,null,null,null,{"$f":"IF(AND(MONTH($A$1:$A$1000)=MONTH(Plan1!$H$3),YEAR($A$1:$A$1000)=Plan1!$J$3),MAX(X$1:X534)+1,\"\")","v":""}]
[null,null,null,null,null,null,null,null,null,null,null,null,null,null,null,null,null,null,null,null,null,null,null,{"$f":"IF(AND(MONTH($A$1:$A$1000)=MONTH(Plan1!$H$3),YEAR($A$1:$A$1000)=Plan1!$J$3),MAX(X$1:X535)+1,\"\")","v":""}]
[null,null,null,null,null,null,null,null,null,null,null,null,null,null,null,null,null,null,null,null,null,null,null,{"$f":"IF(AND(MONTH($A$1:$A$1000)=MONTH(Plan1!$H$3),YEAR($A$1:$A$1000)=Plan1!$J$3),MAX(X$1:X536)+1,\"\")","v":""}]
[null,null,null,null,null,null,null,null,null,null,null,null,null,null,null,null,null,null,null,null,null,null,null,{"$f":"IF(AND(MONTH($A$1:$A$1000)=MONTH(Plan1!$H$3),YEAR($A$1:$A$1000)=Plan1!$J$3),MAX(X$1:X537)+1,\"\")","v":""}]
[null,null,null,null,null,null,null,null,null,null,null,null,null,null,null,null,null,null,null,null,null,null,null,{"$f":"IF(AND(MONTH($A$1:$A$1000)=MONTH(Plan1!$H$3),YEAR($A$1:$A$1000)=Plan1!$J$3),MAX(X$1:X538)+1,\"\")","v":""}]
[null,null,null,null,null,null,null,null,null,null,null,null,null,null,null,null,null,null,null,null,null,null,null,{"$f":"IF(AND(MONTH($A$1:$A$1000)=MONTH(Plan1!$H$3),YEAR($A$1:$A$1000)=Plan1!$J$3),MAX(X$1:X539)+1,\"\")","v":""}]
[null,null,null,null,null,null,null,null,null,null,null,null,null,null,null,null,null,null,null,null,null,null,null,{"$f":"IF(AND(MONTH($A$1:$A$1000)=MONTH(Plan1!$H$3),YEAR($A$1:$A$1000)=Plan1!$J$3),MAX(X$1:X540)+1,\"\")","v":""}]
[null,null,null,null,null,null,null,null,null,null,null,null,null,null,null,null,null,null,null,null,null,null,null,{"$f":"IF(AND(MONTH($A$1:$A$1000)=MONTH(Plan1!$H$3),YEAR($A$1:$A$1000)=Plan1!$J$3),MAX(X$1:X541)+1,\"\")","v":""}]
[null,null,null,null,null,null,null,null,null,null,null,null,null,null,null,null,null,null,null,null,null,null,null,{"$f":"IF(AND(MONTH($A$1:$A$1000)=MONTH(Plan1!$H$3),YEAR($A$1:$A$1000)=Plan1!$J$3),MAX(X$1:X542)+1,\"\")","v":""}]
[null,null,null,null,null,null,null,null,null,null,null,null,null,null,null,null,null,null,null,null,null,null,null,{"$f":"IF(AND(MONTH($A$1:$A$1000)=MONTH(Plan1!$H$3),YEAR($A$1:$A$1000)=Plan1!$J$3),MAX(X$1:X543)+1,\"\")","v":""}]
[null,null,null,null,null,null,null,null,null,null,null,null,null,null,null,null,null,null,null,null,null,null,null,{"$f":"IF(AND(MONTH($A$1:$A$1000)=MONTH(Plan1!$H$3),YEAR($A$1:$A$1000)=Plan1!$J$3),MAX(X$1:X544)+1,\"\")","v":""}]
[null,null,null,null,null,null,null,null,null,null,null,null,null,null,null,null,null,null,null,null,null,null,null,{"$f":"IF(AND(MONTH($A$1:$A$1000)=MONTH(Plan1!$H$3),YEAR($A$1:$A$1000)=Plan1!$J$3),MAX(X$1:X545)+1,\"\")","v":""}]
[null,null,null,null,null,null,null,null,null,null,null,null,null,null,null,null,null,null,null,null,null,null,null,{"$f":"IF(AND(MONTH($A$1:$A$1000)=MONTH(Plan1!$H$3),YEAR($A$1:$A$1000)=Plan1!$J$3),MAX(X$1:X546)+1,\"\")","v":""}]
[null,null,null,null,null,null,null,null,null,null,null,null,null,null,null,null,null,null,null,null,null,null,null,{"$f":"IF(AND(MONTH($A$1:$A$1000)=MONTH(Plan1!$H$3),YEAR($A$1:$A$1000)=Plan1!$J$3),MAX(X$1:X547)+1,\"\")","v":""}]
[null,null,null,null,null,null,null,null,null,null,null,null,null,null,null,null,null,null,null,null,null,null,null,{"$f":"IF(AND(MONTH($A$1:$A$1000)=MONTH(Plan1!$H$3),YEAR($A$1:$A$1000)=Plan1!$J$3),MAX(X$1:X548)+1,\"\")","v":""}]
[null,null,null,null,null,null,null,null,null,null,null,null,null,null,null,null,null,null,null,null,null,null,null,{"$f":"IF(AND(MONTH($A$1:$A$1000)=MONTH(Plan1!$H$3),YEAR($A$1:$A$1000)=Plan1!$J$3),MAX(X$1:X549)+1,\"\")","v":""}]
[null,null,null,null,null,null,null,null,null,null,null,null,null,null,null,null,null,null,null,null,null,null,null,{"$f":"IF(AND(MONTH($A$1:$A$1000)=MONTH(Plan1!$H$3),YEAR($A$1:$A$1000)=Plan1!$J$3),MAX(X$1:X550)+1,\"\")","v":""}]
[null,null,null,null,null,null,null,null,null,null,null,null,null,null,null,null,null,null,null,null,null,null,null,{"$f":"IF(AND(MONTH($A$1:$A$1000)=MONTH(Plan1!$H$3),YEAR($A$1:$A$1000)=Plan1!$J$3),MAX(X$1:X551)+1,\"\")","v":""}]
[null,null,null,null,null,null,null,null,null,null,null,null,null,null,null,null,null,null,null,null,null,null,null,{"$f":"IF(AND(MONTH($A$1:$A$1000)=MONTH(Plan1!$H$3),YEAR($A$1:$A$1000)=Plan1!$J$3),MAX(X$1:X552)+1,\"\")","v":""}]
[null,null,null,null,null,null,null,null,null,null,null,null,null,null,null,null,null,null,null,null,null,null,null,{"$f":"IF(AND(MONTH($A$1:$A$1000)=MONTH(Plan1!$H$3),YEAR($A$1:$A$1000)=Plan1!$J$3),MAX(X$1:X553)+1,\"\")","v":""}]
[null,null,null,null,null,null,null,null,null,null,null,null,null,null,null,null,null,null,null,null,null,null,null,{"$f":"IF(AND(MONTH($A$1:$A$1000)=MONTH(Plan1!$H$3),YEAR($A$1:$A$1000)=Plan1!$J$3),MAX(X$1:X554)+1,\"\")","v":""}]
[null,null,null,null,null,null,null,null,null,null,null,null,null,null,null,null,null,null,null,null,null,null,null,{"$f":"IF(AND(MONTH($A$1:$A$1000)=MONTH(Plan1!$H$3),YEAR($A$1:$A$1000)=Plan1!$J$3),MAX(X$1:X555)+1,\"\")","v":""}]
[null,null,null,null,null,null,null,null,null,null,null,null,null,null,null,null,null,null,null,null,null,null,null,{"$f":"IF(AND(MONTH($A$1:$A$1000)=MONTH(Plan1!$H$3),YEAR($A$1:$A$1000)=Plan1!$J$3),MAX(X$1:X556)+1,\"\")","v":""}]
[null,null,null,null,null,null,null,null,null,null,null,null,null,null,null,null,null,null,null,null,null,null,null,{"$f":"IF(AND(MONTH($A$1:$A$1000)=MONTH(Plan1!$H$3),YEAR($A$1:$A$1000)=Plan1!$J$3),MAX(X$1:X557)+1,\"\")","v":""}]
[null,null,null,null,null,null,null,null,null,null,null,null,null,null,null,null,null,null,null,null,null,null,null,{"$f":"IF(AND(MONTH($A$1:$A$1000)=MONTH(Plan1!$H$3),YEAR($A$1:$A$1000)=Plan1!$J$3),MAX(X$1:X558)+1,\"\")","v":""}]
[null,null,null,null,null,null,null,null,null,null,null,null,null,null,null,null,null,null,null,null,null,null,null,{"$f":"IF(AND(MONTH($A$1:$A$1000)=MONTH(Plan1!$H$3),YEAR($A$1:$A$1000)=Plan1!$J$3),MAX(X$1:X559)+1,\"\")","v":""}]
[null,null,null,null,null,null,null,null,null,null,null,null,null,null,null,null,null,null,null,null,null,null,null,{"$f":"IF(AND(MONTH($A$1:$A$1000)=MONTH(Plan1!$H$3),YEAR($A$1:$A$1000)=Plan1!$J$3),MAX(X$1:X560)+1,\"\")","v":""}]
[null,null,null,null,null,null,null,null,null,null,null,null,null,null,null,null,null,null,null,null,null,null,null,{"$f":"IF(AND(MONTH($A$1:$A$1000)=MONTH(Plan1!$H$3),YEAR($A$1:$A$1000)=Plan1!$J$3),MAX(X$1:X561)+1,\"\")","v":""}]
[null,null,null,null,null,null,null,null,null,null,null,null,null,null,null,null,null,null,null,null,null,null,null,{"$f":"IF(AND(MONTH($A$1:$A$1000)=MONTH(Plan1!$H$3),YEAR($A$1:$A$1000)=Plan1!$J$3),MAX(X$1:X562)+1,\"\")","v":""}]
[null,null,null,null,null,null,null,null,null,null,null,null,null,null,null,null,null,null,null,null,null,null,null,{"$f":"IF(AND(MONTH($A$1:$A$1000)=MONTH(Plan1!$H$3),YEAR($A$1:$A$1000)=Plan1!$J$3),MAX(X$1:X563)+1,\"\")","v":""}]
[null,null,null,null,null,null,null,null,null,null,null,null,null,null,null,null,null,null,null,null,null,null,null,{"$f":"IF(AND(MONTH($A$1:$A$1000)=MONTH(Plan1!$H$3),YEAR($A$1:$A$1000)=Plan1!$J$3),MAX(X$1:X564)+1,\"\")","v":""}]
[null,null,null,null,null,null,null,null,null,null,null,null,null,null,null,null,null,null,null,null,null,null,null,{"$f":"IF(AND(MONTH($A$1:$A$1000)=MONTH(Plan1!$H$3),YEAR($A$1:$A$1000)=Plan1!$J$3),MAX(X$1:X565)+1,\"\")","v":""}]
[null,null,null,null,null,null,null,null,null,null,null,null,null,null,null,null,null,null,null,null,null,null,null,{"$f":"IF(AND(MONTH($A$1:$A$1000)=MONTH(Plan1!$H$3),YEAR($A$1:$A$1000)=Plan1!$J$3),MAX(X$1:X566)+1,\"\")","v":""}]
[null,null,null,null,null,null,null,null,null,null,null,null,null,null,null,null,null,null,null,null,null,null,null,{"$f":"IF(AND(MONTH($A$1:$A$1000)=MONTH(Plan1!$H$3),YEAR($A$1:$A$1000)=Plan1!$J$3),MAX(X$1:X567)+1,\"\")","v":""}]
[null,null,null,null,null,null,null,null,null,null,null,null,null,null,null,null,null,null,null,null,null,null,null,{"$f":"IF(AND(MONTH($A$1:$A$1000)=MONTH(Plan1!$H$3),YEAR($A$1:$A$1000)=Plan1!$J$3),MAX(X$1:X568)+1,\"\")","v":""}]
[null,null,null,null,null,null,null,null,null,null,null,null,null,null,null,null,null,null,null,null,null,null,null,{"$f":"IF(AND(MONTH($A$1:$A$1000)=MONTH(Plan1!$H$3),YEAR($A$1:$A$1000)=Plan1!$J$3),MAX(X$1:X569)+1,\"\")","v":""}]
[null,null,null,null,null,null,null,null,null,null,null,null,null,null,null,null,null,null,null,null,null,null,null,{"$f":"IF(AND(MONTH($A$1:$A$1000)=MONTH(Plan1!$H$3),YEAR($A$1:$A$1000)=Plan1!$J$3),MAX(X$1:X570)+1,\"\")","v":""}]
[null,null,null,null,null,null,null,null,null,null,null,null,null,null,null,null,null,null,null,null,null,null,null,{"$f":"IF(AND(MONTH($A$1:$A$1000)=MONTH(Plan1!$H$3),YEAR($A$1:$A$1000)=Plan1!$J$3),MAX(X$1:X571)+1,\"\")","v":""}]
[null,null,null,null,null,null,null,null,null,null,null,null,null,null,null,null,null,null,null,null,null,null,null,{"$f":"IF(AND(MONTH($A$1:$A$1000)=MONTH(Plan1!$H$3),YEAR($A$1:$A$1000)=Plan1!$J$3),MAX(X$1:X572)+1,\"\")","v":""}]
[null,null,null,null,null,null,null,null,null,null,null,null,null,null,null,null,null,null,null,null,null,null,null,{"$f":"IF(AND(MONTH($A$1:$A$1000)=MONTH(Plan1!$H$3),YEAR($A$1:$A$1000)=Plan1!$J$3),MAX(X$1:X573)+1,\"\")","v":""}]
[null,null,null,null,null,null,null,null,null,null,null,null,null,null,null,null,null,null,null,null,null,null,null,{"$f":"IF(AND(MONTH($A$1:$A$1000)=MONTH(Plan1!$H$3),YEAR($A$1:$A$1000)=Plan1!$J$3),MAX(X$1:X574)+1,\"\")","v":""}]
[null,null,null,null,null,null,null,null,null,null,null,null,null,null,null,null,null,null,null,null,null,null,null,{"$f":"IF(AND(MONTH($A$1:$A$1000)=MONTH(Plan1!$H$3),YEAR($A$1:$A$1000)=Plan1!$J$3),MAX(X$1:X575)+1,\"\")","v":""}]
[null,null,null,null,null,null,null,null,null,null,null,null,null,null,null,null,null,null,null,null,null,null,null,{"$f":"IF(AND(MONTH($A$1:$A$1000)=MONTH(Plan1!$H$3),YEAR($A$1:$A$1000)=Plan1!$J$3),MAX(X$1:X576)+1,\"\")","v":""}]
[null,null,null,null,null,null,null,null,null,null,null,null,null,null,null,null,null,null,null,null,null,null,null,{"$f":"IF(AND(MONTH($A$1:$A$1000)=MONTH(Plan1!$H$3),YEAR($A$1:$A$1000)=Plan1!$J$3),MAX(X$1:X577)+1,\"\")","v":""}]
[null,null,null,null,null,null,null,null,null,null,null,null,null,null,null,null,null,null,null,null,null,null,null,{"$f":"IF(AND(MONTH($A$1:$A$1000)=MONTH(Plan1!$H$3),YEAR($A$1:$A$1000)=Plan1!$J$3),MAX(X$1:X578)+1,\"\")","v":""}]
[null,null,null,null,null,null,null,null,null,null,null,null,null,null,null,null,null,null,null,null,null,null,null,{"$f":"IF(AND(MONTH($A$1:$A$1000)=MONTH(Plan1!$H$3),YEAR($A$1:$A$1000)=Plan1!$J$3),MAX(X$1:X579)+1,\"\")","v":""}]
[null,null,null,null,null,null,null,null,null,null,null,null,null,null,null,null,null,null,null,null,null,null,null,{"$f":"IF(AND(MONTH($A$1:$A$1000)=MONTH(Plan1!$H$3),YEAR($A$1:$A$1000)=Plan1!$J$3),MAX(X$1:X580)+1,\"\")","v":""}]
[null,null,null,null,null,null,null,null,null,null,null,null,null,null,null,null,null,null,null,null,null,null,null,{"$f":"IF(AND(MONTH($A$1:$A$1000)=MONTH(Plan1!$H$3),YEAR($A$1:$A$1000)=Plan1!$J$3),MAX(X$1:X581)+1,\"\")","v":""}]
[null,null,null,null,null,null,null,null,null,null,null,null,null,null,null,null,null,null,null,null,null,null,null,{"$f":"IF(AND(MONTH($A$1:$A$1000)=MONTH(Plan1!$H$3),YEAR($A$1:$A$1000)=Plan1!$J$3),MAX(X$1:X582)+1,\"\")","v":""}]
[null,null,null,null,null,null,null,null,null,null,null,null,null,null,null,null,null,null,null,null,null,null,null,{"$f":"IF(AND(MONTH($A$1:$A$1000)=MONTH(Plan1!$H$3),YEAR($A$1:$A$1000)=Plan1!$J$3),MAX(X$1:X583)+1,\"\")","v":""}]
[null,null,null,null,null,null,null,null,null,null,null,null,null,null,null,null,null,null,null,null,null,null,null,{"$f":"IF(AND(MONTH($A$1:$A$1000)=MONTH(Plan1!$H$3),YEAR($A$1:$A$1000)=Plan1!$J$3),MAX(X$1:X584)+1,\"\")","v":""}]
[null,null,null,null,null,null,null,null,null,null,null,null,null,null,null,null,null,null,null,null,null,null,null,{"$f":"IF(AND(MONTH($A$1:$A$1000)=MONTH(Plan1!$H$3),YEAR($A$1:$A$1000)=Plan1!$J$3),MAX(X$1:X585)+1,\"\")","v":""}]
[null,null,null,null,null,null,null,null,null,null,null,null,null,null,null,null,null,null,null,null,null,null,null,{"$f":"IF(AND(MONTH($A$1:$A$1000)=MONTH(Plan1!$H$3),YEAR($A$1:$A$1000)=Plan1!$J$3),MAX(X$1:X586)+1,\"\")","v":""}]
[null,null,null,null,null,null,null,null,null,null,null,null,null,null,null,null,null,null,null,null,null,null,null,{"$f":"IF(AND(MONTH($A$1:$A$1000)=MONTH(Plan1!$H$3),YEAR($A$1:$A$1000)=Plan1!$J$3),MAX(X$1:X587)+1,\"\")","v":""}]
[null,null,null,null,null,null,null,null,null,null,null,null,null,null,null,null,null,null,null,null,null,null,null,{"$f":"IF(AND(MONTH($A$1:$A$1000)=MONTH(Plan1!$H$3),YEAR($A$1:$A$1000)=Plan1!$J$3),MAX(X$1:X588)+1,\"\")","v":""}]
[null,null,null,null,null,null,null,null,null,null,null,null,null,null,null,null,null,null,null,null,null,null,null,{"$f":"IF(AND(MONTH($A$1:$A$1000)=MONTH(Plan1!$H$3),YEAR($A$1:$A$1000)=Plan1!$J$3),MAX(X$1:X589)+1,\"\")","v":""}]
[null,null,null,null,null,null,null,null,null,null,null,null,null,null,null,null,null,null,null,null,null,null,null,{"$f":"IF(AND(MONTH($A$1:$A$1000)=MONTH(Plan1!$H$3),YEAR($A$1:$A$1000)=Plan1!$J$3),MAX(X$1:X590)+1,\"\")","v":""}]
[null,null,null,null,null,null,null,null,null,null,null,null,null,null,null,null,null,null,null,null,null,null,null,{"$f":"IF(AND(MONTH($A$1:$A$1000)=MONTH(Plan1!$H$3),YEAR($A$1:$A$1000)=Plan1!$J$3),MAX(X$1:X591)+1,\"\")","v":""}]
[null,null,null,null,null,null,null,null,null,null,null,null,null,null,null,null,null,null,null,null,null,null,null,{"$f":"IF(AND(MONTH($A$1:$A$1000)=MONTH(Plan1!$H$3),YEAR($A$1:$A$1000)=Plan1!$J$3),MAX(X$1:X592)+1,\"\")","v":""}]
[null,null,null,null,null,null,null,null,null,null,null,null,null,null,null,null,null,null,null,null,null,null,null,{"$f":"IF(AND(MONTH($A$1:$A$1000)=MONTH(Plan1!$H$3),YEAR($A$1:$A$1000)=Plan1!$J$3),MAX(X$1:X593)+1,\"\")","v":""}]
[null,null,null,null,null,null,null,null,null,null,null,null,null,null,null,null,null,null,null,null,null,null,null,{"$f":"IF(AND(MONTH($A$1:$A$1000)=MONTH(Plan1!$H$3),YEAR($A$1:$A$1000)=Plan1!$J$3),MAX(X$1:X594)+1,\"\")","v":""}]
[null,null,null,null,null,null,null,null,null,null,null,null,null,null,null,null,null,null,null,null,null,null,null,{"$f":"IF(AND(MONTH($A$1:$A$1000)=MONTH(Plan1!$H$3),YEAR($A$1:$A$1000)=Plan1!$J$3),MAX(X$1:X595)+1,\"\")","v":""}]
[null,null,null,null,null,null,null,null,null,null,null,null,null,null,null,null,null,null,null,null,null,null,null,{"$f":"IF(AND(MONTH($A$1:$A$1000)=MONTH(Plan1!$H$3),YEAR($A$1:$A$1000)=Plan1!$J$3),MAX(X$1:X596)+1,\"\")","v":""}]
[null,null,null,null,null,null,null,null,null,null,null,null,null,null,null,null,null,null,null,null,null,null,null,{"$f":"IF(AND(MONTH($A$1:$A$1000)=MONTH(Plan1!$H$3),YEAR($A$1:$A$1000)=Plan1!$J$3),MAX(X$1:X597)+1,\"\")","v":""}]
[null,null,null,null,null,null,null,null,null,null,null,null,null,null,null,null,null,null,null,null,null,null,null,{"$f":"IF(AND(MONTH($A$1:$A$1000)=MONTH(Plan1!$H$3),YEAR($A$1:$A$1000)=Plan1!$J$3),MAX(X$1:X598)+1,\"\")","v":""}]
[null,null,null,null,null,null,null,null,null,null,null,null,null,null,null,null,null,null,null,null,null,null,null,{"$f":"IF(AND(MONTH($A$1:$A$1000)=MONTH(Plan1!$H$3),YEAR($A$1:$A$1000)=Plan1!$J$3),MAX(X$1:X599)+1,\"\")","v":""}]
[null,null,null,null,null,null,null,null,null,null,null,null,null,null,null,null,null,null,null,null,null,null,null,{"$f":"IF(AND(MONTH($A$1:$A$1000)=MONTH(Plan1!$H$3),YEAR($A$1:$A$1000)=Plan1!$J$3),MAX(X$1:X600)+1,\"\")","v":""}]
[null,null,null,null,null,null,null,null,null,null,null,null,null,null,null,null,null,null,null,null,null,null,null,{"$f":"IF(AND(MONTH($A$1:$A$1000)=MONTH(Plan1!$H$3),YEAR($A$1:$A$1000)=Plan1!$J$3),MAX(X$1:X601)+1,\"\")","v":""}]
[null,null,null,null,null,null,null,null,null,null,null,null,null,null,null,null,null,null,null,null,null,null,null,{"$f":"IF(AND(MONTH($A$1:$A$1000)=MONTH(Plan1!$H$3),YEAR($A$1:$A$1000)=Plan1!$J$3),MAX(X$1:X602)+1,\"\")","v":""}]
[null,null,null,null,null,null,null,null,null,null,null,null,null,null,null,null,null,null,null,null,null,null,null,{"$f":"IF(AND(MONTH($A$1:$A$1000)=MONTH(Plan1!$H$3),YEAR($A$1:$A$1000)=Plan1!$J$3),MAX(X$1:X603)+1,\"\")","v":""}]
[null,null,null,null,null,null,null,null,null,null,null,null,null,null,null,null,null,null,null,null,null,null,null,{"$f":"IF(AND(MONTH($A$1:$A$1000)=MONTH(Plan1!$H$3),YEAR($A$1:$A$1000)=Plan1!$J$3),MAX(X$1:X604)+1,\"\")","v":""}]
[null,null,null,null,null,null,null,null,null,null,null,null,null,null,null,null,null,null,null,null,null,null,null,{"$f":"IF(AND(MONTH($A$1:$A$1000)=MONTH(Plan1!$H$3),YEAR($A$1:$A$1000)=Plan1!$J$3),MAX(X$1:X605)+1,\"\")","v":""}]
[null,null,null,null,null,null,null,null,null,null,null,null,null,null,null,null,null,null,null,null,null,null,null,{"$f":"IF(AND(MONTH($A$1:$A$1000)=MONTH(Plan1!$H$3),YEAR($A$1:$A$1000)=Plan1!$J$3),MAX(X$1:X606)+1,\"\")","v":""}]
[null,null,null,null,null,null,null,null,null,null,null,null,null,null,null,null,null,null,null,null,null,null,null,{"$f":"IF(AND(MONTH($A$1:$A$1000)=MONTH(Plan1!$H$3),YEAR($A$1:$A$1000)=Plan1!$J$3),MAX(X$1:X607)+1,\"\")","v":""}]
[null,null,null,null,null,null,null,null,null,null,null,null,null,null,null,null,null,null,null,null,null,null,null,{"$f":"IF(AND(MONTH($A$1:$A$1000)=MONTH(Plan1!$H$3),YEAR($A$1:$A$1000)=Plan1!$J$3),MAX(X$1:X608)+1,\"\")","v":""}]
[null,null,null,null,null,null,null,null,null,null,null,null,null,null,null,null,null,null,null,null,null,null,null,{"$f":"IF(AND(MONTH($A$1:$A$1000)=MONTH(Plan1!$H$3),YEAR($A$1:$A$1000)=Plan1!$J$3),MAX(X$1:X609)+1,\"\")","v":""}]
[null,null,null,null,null,null,null,null,null,null,null,null,null,null,null,null,null,null,null,null,null,null,null,{"$f":"IF(AND(MONTH($A$1:$A$1000)=MONTH(Plan1!$H$3),YEAR($A$1:$A$1000)=Plan1!$J$3),MAX(X$1:X610)+1,\"\")","v":""}]
[null,null,null,null,null,null,null,null,null,null,null,null,null,null,null,null,null,null,null,null,null,null,null,{"$f":"IF(AND(MONTH($A$1:$A$1000)=MONTH(Plan1!$H$3),YEAR($A$1:$A$1000)=Plan1!$J$3),MAX(X$1:X611)+1,\"\")","v":""}]
[null,null,null,null,null,null,null,null,null,null,null,null,null,null,null,null,null,null,null,null,null,null,null,{"$f":"IF(AND(MONTH($A$1:$A$1000)=MONTH(Plan1!$H$3),YEAR($A$1:$A$1000)=Plan1!$J$3),MAX(X$1:X612)+1,\"\")","v":""}]
[null,null,null,null,null,null,null,null,null,null,null,null,null,null,null,null,null,null,null,null,null,null,null,{"$f":"IF(AND(MONTH($A$1:$A$1000)=MONTH(Plan1!$H$3),YEAR($A$1:$A$1000)=Plan1!$J$3),MAX(X$1:X613)+1,\"\")","v":""}]
[null,null,null,null,null,null,null,null,null,null,null,null,null,null,null,null,null,null,null,null,null,null,null,{"$f":"IF(AND(MONTH($A$1:$A$1000)=MONTH(Plan1!$H$3),YEAR($A$1:$A$1000)=Plan1!$J$3),MAX(X$1:X614)+1,\"\")","v":""}]
[null,null,null,null,null,null,null,null,null,null,null,null,null,null,null,null,null,null,null,null,null,null,null,{"$f":"IF(AND(MONTH($A$1:$A$1000)=MONTH(Plan1!$H$3),YEAR($A$1:$A$1000)=Plan1!$J$3),MAX(X$1:X615)+1,\"\")","v":""}]
[null,null,null,null,null,null,null,null,null,null,null,null,null,null,null,null,null,null,null,null,null,null,null,{"$f":"IF(AND(MONTH($A$1:$A$1000)=MONTH(Plan1!$H$3),YEAR($A$1:$A$1000)=Plan1!$J$3),MAX(X$1:X616)+1,\"\")","v":""}]
[null,null,null,null,null,null,null,null,null,null,null,null,null,null,null,null,null,null,null,null,null,null,null,{"$f":"IF(AND(MONTH($A$1:$A$1000)=MONTH(Plan1!$H$3),YEAR($A$1:$A$1000)=Plan1!$J$3),MAX(X$1:X617)+1,\"\")","v":""}]
[null,null,null,null,null,null,null,null,null,null,null,null,null,null,null,null,null,null,null,null,null,null,null,{"$f":"IF(AND(MONTH($A$1:$A$1000)=MONTH(Plan1!$H$3),YEAR($A$1:$A$1000)=Plan1!$J$3),MAX(X$1:X618)+1,\"\")","v":""}]
[null,null,null,null,null,null,null,null,null,null,null,null,null,null,null,null,null,null,null,null,null,null,null,{"$f":"IF(AND(MONTH($A$1:$A$1000)=MONTH(Plan1!$H$3),YEAR($A$1:$A$1000)=Plan1!$J$3),MAX(X$1:X619)+1,\"\")","v":""}]
[null,null,null,null,null,null,null,null,null,null,null,null,null,null,null,null,null,null,null,null,null,null,null,{"$f":"IF(AND(MONTH($A$1:$A$1000)=MONTH(Plan1!$H$3),YEAR($A$1:$A$1000)=Plan1!$J$3),MAX(X$1:X620)+1,\"\")","v":""}]
[null,null,null,null,null,null,null,null,null,null,null,null,null,null,null,null,null,null,null,null,null,null,null,{"$f":"IF(AND(MONTH($A$1:$A$1000)=MONTH(Plan1!$H$3),YEAR($A$1:$A$1000)=Plan1!$J$3),MAX(X$1:X621)+1,\"\")","v":""}]
[null,null,null,null,null,null,null,null,null,null,null,null,null,null,null,null,null,null,null,null,null,null,null,{"$f":"IF(AND(MONTH($A$1:$A$1000)=MONTH(Plan1!$H$3),YEAR($A$1:$A$1000)=Plan1!$J$3),MAX(X$1:X622)+1,\"\")","v":""}]
[null,null,null,null,null,null,null,null,null,null,null,null,null,null,null,null,null,null,null,null,null,null,null,{"$f":"IF(AND(MONTH($A$1:$A$1000)=MONTH(Plan1!$H$3),YEAR($A$1:$A$1000)=Plan1!$J$3),MAX(X$1:X623)+1,\"\")","v":""}]
[null,null,null,null,null,null,null,null,null,null,null,null,null,null,null,null,null,null,null,null,null,null,null,{"$f":"IF(AND(MONTH($A$1:$A$1000)=MONTH(Plan1!$H$3),YEAR($A$1:$A$1000)=Plan1!$J$3),MAX(X$1:X624)+1,\"\")","v":""}]
[null,null,null,null,null,null,null,null,null,null,null,null,null,null,null,null,null,null,null,null,null,null,null,{"$f":"IF(AND(MONTH($A$1:$A$1000)=MONTH(Plan1!$H$3),YEAR($A$1:$A$1000)=Plan1!$J$3),MAX(X$1:X625)+1,\"\")","v":""}]
[null,null,null,null,null,null,null,null,null,null,null,null,null,null,null,null,null,null,null,null,null,null,null,{"$f":"IF(AND(MONTH($A$1:$A$1000)=MONTH(Plan1!$H$3),YEAR($A$1:$A$1000)=Plan1!$J$3),MAX(X$1:X626)+1,\"\")","v":""}]
[null,null,null,null,null,null,null,null,null,null,null,null,null,null,null,null,null,null,null,null,null,null,null,{"$f":"IF(AND(MONTH($A$1:$A$1000)=MONTH(Plan1!$H$3),YEAR($A$1:$A$1000)=Plan1!$J$3),MAX(X$1:X627)+1,\"\")","v":""}]
[null,null,null,null,null,null,null,null,null,null,null,null,null,null,null,null,null,null,null,null,null,null,null,{"$f":"IF(AND(MONTH($A$1:$A$1000)=MONTH(Plan1!$H$3),YEAR($A$1:$A$1000)=Plan1!$J$3),MAX(X$1:X628)+1,\"\")","v":""}]
[null,null,null,null,null,null,null,null,null,null,null,null,null,null,null,null,null,null,null,null,null,null,null,{"$f":"IF(AND(MONTH($A$1:$A$1000)=MONTH(Plan1!$H$3),YEAR($A$1:$A$1000)=Plan1!$J$3),MAX(X$1:X629)+1,\"\")","v":""}]
[null,null,null,null,null,null,null,null,null,null,null,null,null,null,null,null,null,null,null,null,null,null,null,{"$f":"IF(AND(MONTH($A$1:$A$1000)=MONTH(Plan1!$H$3),YEAR($A$1:$A$1000)=Plan1!$J$3),MAX(X$1:X630)+1,\"\")","v":""}]
[null,null,null,null,null,null,null,null,null,null,null,null,null,null,null,null,null,null,null,null,null,null,null,{"$f":"IF(AND(MONTH($A$1:$A$1000)=MONTH(Plan1!$H$3),YEAR($A$1:$A$1000)=Plan1!$J$3),MAX(X$1:X631)+1,\"\")","v":""}]
[null,null,null,null,null,null,null,null,null,null,null,null,null,null,null,null,null,null,null,null,null,null,null,{"$f":"IF(AND(MONTH($A$1:$A$1000)=MONTH(Plan1!$H$3),YEAR($A$1:$A$1000)=Plan1!$J$3),MAX(X$1:X632)+1,\"\")","v":""}]
[null,null,null,null,null,null,null,null,null,null,null,null,null,null,null,null,null,null,null,null,null,null,null,{"$f":"IF(AND(MONTH($A$1:$A$1000)=MONTH(Plan1!$H$3),YEAR($A$1:$A$1000)=Plan1!$J$3),MAX(X$1:X633)+1,\"\")","v":""}]
[null,null,null,null,null,null,null,null,null,null,null,null,null,null,null,null,null,null,null,null,null,null,null,{"$f":"IF(AND(MONTH($A$1:$A$1000)=MONTH(Plan1!$H$3),YEAR($A$1:$A$1000)=Plan1!$J$3),MAX(X$1:X634)+1,\"\")","v":""}]
[null,null,null,null,null,null,null,null,null,null,null,null,null,null,null,null,null,null,null,null,null,null,null,{"$f":"IF(AND(MONTH($A$1:$A$1000)=MONTH(Plan1!$H$3),YEAR($A$1:$A$1000)=Plan1!$J$3),MAX(X$1:X635)+1,\"\")","v":""}]
[null,null,null,null,null,null,null,null,null,null,null,null,null,null,null,null,null,null,null,null,null,null,null,{"$f":"IF(AND(MONTH($A$1:$A$1000)=MONTH(Plan1!$H$3),YEAR($A$1:$A$1000)=Plan1!$J$3),MAX(X$1:X636)+1,\"\")","v":""}]
[null,null,null,null,null,null,null,null,null,null,null,null,null,null,null,null,null,null,null,null,null,null,null,{"$f":"IF(AND(MONTH($A$1:$A$1000)=MONTH(Plan1!$H$3),YEAR($A$1:$A$1000)=Plan1!$J$3),MAX(X$1:X637)+1,\"\")","v":""}]
[null,null,null,null,null,null,null,null,null,null,null,null,null,null,null,null,null,null,null,null,null,null,null,{"$f":"IF(AND(MONTH($A$1:$A$1000)=MONTH(Plan1!$H$3),YEAR($A$1:$A$1000)=Plan1!$J$3),MAX(X$1:X638)+1,\"\")","v":""}]
[null,null,null,null,null,null,null,null,null,null,null,null,null,null,null,null,null,null,null,null,null,null,null,{"$f":"IF(AND(MONTH($A$1:$A$1000)=MONTH(Plan1!$H$3),YEAR($A$1:$A$1000)=Plan1!$J$3),MAX(X$1:X639)+1,\"\")","v":""}]
[null,null,null,null,null,null,null,null,null,null,null,null,null,null,null,null,null,null,null,null,null,null,null,{"$f":"IF(AND(MONTH($A$1:$A$1000)=MONTH(Plan1!$H$3),YEAR($A$1:$A$1000)=Plan1!$J$3),MAX(X$1:X640)+1,\"\")","v":""}]
[null,null,null,null,null,null,null,null,null,null,null,null,null,null,null,null,null,null,null,null,null,null,null,{"$f":"IF(AND(MONTH($A$1:$A$1000)=MONTH(Plan1!$H$3),YEAR($A$1:$A$1000)=Plan1!$J$3),MAX(X$1:X641)+1,\"\")","v":""}]
[null,null,null,null,null,null,null,null,null,null,null,null,null,null,null,null,null,null,null,null,null,null,null,{"$f":"IF(AND(MONTH($A$1:$A$1000)=MONTH(Plan1!$H$3),YEAR($A$1:$A$1000)=Plan1!$J$3),MAX(X$1:X642)+1,\"\")","v":""}]
[null,null,null,null,null,null,null,null,null,null,null,null,null,null,null,null,null,null,null,null,null,null,null,{"$f":"IF(AND(MONTH($A$1:$A$1000)=MONTH(Plan1!$H$3),YEAR($A$1:$A$1000)=Plan1!$J$3),MAX(X$1:X643)+1,\"\")","v":""}]
[null,null,null,null,null,null,null,null,null,null,null,null,null,null,null,null,null,null,null,null,null,null,null,{"$f":"IF(AND(MONTH($A$1:$A$1000)=MONTH(Plan1!$H$3),YEAR($A$1:$A$1000)=Plan1!$J$3),MAX(X$1:X644)+1,\"\")","v":""}]
[null,null,null,null,null,null,null,null,null,null,null,null,null,null,null,null,null,null,null,null,null,null,null,{"$f":"IF(AND(MONTH($A$1:$A$1000)=MONTH(Plan1!$H$3),YEAR($A$1:$A$1000)=Plan1!$J$3),MAX(X$1:X645)+1,\"\")","v":""}]
[null,null,null,null,null,null,null,null,null,null,null,null,null,null,null,null,null,null,null,null,null,null,null,{"$f":"IF(AND(MONTH($A$1:$A$1000)=MONTH(Plan1!$H$3),YEAR($A$1:$A$1000)=Plan1!$J$3),MAX(X$1:X646)+1,\"\")","v":""}]
[null,null,null,null,null,null,null,null,null,null,null,null,null,null,null,null,null,null,null,null,null,null,null,{"$f":"IF(AND(MONTH($A$1:$A$1000)=MONTH(Plan1!$H$3),YEAR($A$1:$A$1000)=Plan1!$J$3),MAX(X$1:X647)+1,\"\")","v":""}]
[null,null,null,null,null,null,null,null,null,null,null,null,null,null,null,null,null,null,null,null,null,null,null,{"$f":"IF(AND(MONTH($A$1:$A$1000)=MONTH(Plan1!$H$3),YEAR($A$1:$A$1000)=Plan1!$J$3),MAX(X$1:X648)+1,\"\")","v":""}]
[null,null,null,null,null,null,null,null,null,null,null,null,null,null,null,null,null,null,null,null,null,null,null,{"$f":"IF(AND(MONTH($A$1:$A$1000)=MONTH(Plan1!$H$3),YEAR($A$1:$A$1000)=Plan1!$J$3),MAX(X$1:X649)+1,\"\")","v":""}]
[null,null,null,null,null,null,null,null,null,null,null,null,null,null,null,null,null,null,null,null,null,null,null,{"$f":"IF(AND(MONTH($A$1:$A$1000)=MONTH(Plan1!$H$3),YEAR($A$1:$A$1000)=Plan1!$J$3),MAX(X$1:X650)+1,\"\")","v":""}]
[null,null,null,null,null,null,null,null,null,null,null,null,null,null,null,null,null,null,null,null,null,null,null,{"$f":"IF(AND(MONTH($A$1:$A$1000)=MONTH(Plan1!$H$3),YEAR($A$1:$A$1000)=Plan1!$J$3),MAX(X$1:X651)+1,\"\")","v":""}]
[null,null,null,null,null,null,null,null,null,null,null,null,null,null,null,null,null,null,null,null,null,null,null,{"$f":"IF(AND(MONTH($A$1:$A$1000)=MONTH(Plan1!$H$3),YEAR($A$1:$A$1000)=Plan1!$J$3),MAX(X$1:X652)+1,\"\")","v":""}]
[null,null,null,null,null,null,null,null,null,null,null,null,null,null,null,null,null,null,null,null,null,null,null,{"$f":"IF(AND(MONTH($A$1:$A$1000)=MONTH(Plan1!$H$3),YEAR($A$1:$A$1000)=Plan1!$J$3),MAX(X$1:X653)+1,\"\")","v":""}]
[null,null,null,null,null,null,null,null,null,null,null,null,null,null,null,null,null,null,null,null,null,null,null,{"$f":"IF(AND(MONTH($A$1:$A$1000)=MONTH(Plan1!$H$3),YEAR($A$1:$A$1000)=Plan1!$J$3),MAX(X$1:X654)+1,\"\")","v":""}]
[null,null,null,null,null,null,null,null,null,null,null,null,null,null,null,null,null,null,null,null,null,null,null,{"$f":"IF(AND(MONTH($A$1:$A$1000)=MONTH(Plan1!$H$3),YEAR($A$1:$A$1000)=Plan1!$J$3),MAX(X$1:X655)+1,\"\")","v":""}]
[null,null,null,null,null,null,null,null,null,null,null,null,null,null,null,null,null,null,null,null,null,null,null,{"$f":"IF(AND(MONTH($A$1:$A$1000)=MONTH(Plan1!$H$3),YEAR($A$1:$A$1000)=Plan1!$J$3),MAX(X$1:X656)+1,\"\")","v":""}]
[null,null,null,null,null,null,null,null,null,null,null,null,null,null,null,null,null,null,null,null,null,null,null,{"$f":"IF(AND(MONTH($A$1:$A$1000)=MONTH(Plan1!$H$3),YEAR($A$1:$A$1000)=Plan1!$J$3),MAX(X$1:X657)+1,\"\")","v":""}]
[null,null,null,null,null,null,null,null,null,null,null,null,null,null,null,null,null,null,null,null,null,null,null,{"$f":"IF(AND(MONTH($A$1:$A$1000)=MONTH(Plan1!$H$3),YEAR($A$1:$A$1000)=Plan1!$J$3),MAX(X$1:X658)+1,\"\")","v":""}]
[null,null,null,null,null,null,null,null,null,null,null,null,null,null,null,null,null,null,null,null,null,null,null,{"$f":"IF(AND(MONTH($A$1:$A$1000)=MONTH(Plan1!$H$3),YEAR($A$1:$A$1000)=Plan1!$J$3),MAX(X$1:X659)+1,\"\")","v":""}]
[null,null,null,null,null,null,null,null,null,null,null,null,null,null,null,null,null,null,null,null,null,null,null,{"$f":"IF(AND(MONTH($A$1:$A$1000)=MONTH(Plan1!$H$3),YEAR($A$1:$A$1000)=Plan1!$J$3),MAX(X$1:X660)+1,\"\")","v":""}]
[null,null,null,null,null,null,null,null,null,null,null,null,null,null,null,null,null,null,null,null,null,null,null,{"$f":"IF(AND(MONTH($A$1:$A$1000)=MONTH(Plan1!$H$3),YEAR($A$1:$A$1000)=Plan1!$J$3),MAX(X$1:X661)+1,\"\")","v":""}]
[null,null,null,null,null,null,null,null,null,null,null,null,null,null,null,null,null,null,null,null,null,null,null,{"$f":"IF(AND(MONTH($A$1:$A$1000)=MONTH(Plan1!$H$3),YEAR($A$1:$A$1000)=Plan1!$J$3),MAX(X$1:X662)+1,\"\")","v":""}]
[null,null,null,null,null,null,null,null,null,null,null,null,null,null,null,null,null,null,null,null,null,null,null,{"$f":"IF(AND(MONTH($A$1:$A$1000)=MONTH(Plan1!$H$3),YEAR($A$1:$A$1000)=Plan1!$J$3),MAX(X$1:X663)+1,\"\")","v":""}]
[null,null,null,null,null,null,null,null,null,null,null,null,null,null,null,null,null,null,null,null,null,null,null,{"$f":"IF(AND(MONTH($A$1:$A$1000)=MONTH(Plan1!$H$3),YEAR($A$1:$A$1000)=Plan1!$J$3),MAX(X$1:X664)+1,\"\")","v":""}]
[null,null,null,null,null,null,null,null,null,null,null,null,null,null,null,null,null,null,null,null,null,null,null,{"$f":"IF(AND(MONTH($A$1:$A$1000)=MONTH(Plan1!$H$3),YEAR($A$1:$A$1000)=Plan1!$J$3),MAX(X$1:X665)+1,\"\")","v":""}]
[null,null,null,null,null,null,null,null,null,null,null,null,null,null,null,null,null,null,null,null,null,null,null,{"$f":"IF(AND(MONTH($A$1:$A$1000)=MONTH(Plan1!$H$3),YEAR($A$1:$A$1000)=Plan1!$J$3),MAX(X$1:X666)+1,\"\")","v":""}]
[null,null,null,null,null,null,null,null,null,null,null,null,null,null,null,null,null,null,null,null,null,null,null,{"$f":"IF(AND(MONTH($A$1:$A$1000)=MONTH(Plan1!$H$3),YEAR($A$1:$A$1000)=Plan1!$J$3),MAX(X$1:X667)+1,\"\")","v":""}]
[null,null,null,null,null,null,null,null,null,null,null,null,null,null,null,null,null,null,null,null,null,null,null,{"$f":"IF(AND(MONTH($A$1:$A$1000)=MONTH(Plan1!$H$3),YEAR($A$1:$A$1000)=Plan1!$J$3),MAX(X$1:X668)+1,\"\")","v":""}]
[null,null,null,null,null,null,null,null,null,null,null,null,null,null,null,null,null,null,null,null,null,null,null,{"$f":"IF(AND(MONTH($A$1:$A$1000)=MONTH(Plan1!$H$3),YEAR($A$1:$A$1000)=Plan1!$J$3),MAX(X$1:X669)+1,\"\")","v":""}]
[null,null,null,null,null,null,null,null,null,null,null,null,null,null,null,null,null,null,null,null,null,null,null,{"$f":"IF(AND(MONTH($A$1:$A$1000)=MONTH(Plan1!$H$3),YEAR($A$1:$A$1000)=Plan1!$J$3),MAX(X$1:X670)+1,\"\")","v":""}]
[null,null,null,null,null,null,null,null,null,null,null,null,null,null,null,null,null,null,null,null,null,null,null,{"$f":"IF(AND(MONTH($A$1:$A$1000)=MONTH(Plan1!$H$3),YEAR($A$1:$A$1000)=Plan1!$J$3),MAX(X$1:X671)+1,\"\")","v":""}]
[null,null,null,null,null,null,null,null,null,null,null,null,null,null,null,null,null,null,null,null,null,null,null,{"$f":"IF(AND(MONTH($A$1:$A$1000)=MONTH(Plan1!$H$3),YEAR($A$1:$A$1000)=Plan1!$J$3),MAX(X$1:X672)+1,\"\")","v":""}]
[null,null,null,null,null,null,null,null,null,null,null,null,null,null,null,null,null,null,null,null,null,null,null,{"$f":"IF(AND(MONTH($A$1:$A$1000)=MONTH(Plan1!$H$3),YEAR($A$1:$A$1000)=Plan1!$J$3),MAX(X$1:X673)+1,\"\")","v":""}]
[null,null,null,null,null,null,null,null,null,null,null,null,null,null,null,null,null,null,null,null,null,null,null,{"$f":"IF(AND(MONTH($A$1:$A$1000)=MONTH(Plan1!$H$3),YEAR($A$1:$A$1000)=Plan1!$J$3),MAX(X$1:X674)+1,\"\")","v":""}]
[null,null,null,null,null,null,null,null,null,null,null,null,null,null,null,null,null,null,null,null,null,null,null,{"$f":"IF(AND(MONTH($A$1:$A$1000)=MONTH(Plan1!$H$3),YEAR($A$1:$A$1000)=Plan1!$J$3),MAX(X$1:X675)+1,\"\")","v":""}]
[null,null,null,null,null,null,null,null,null,null,null,null,null,null,null,null,null,null,null,null,null,null,null,{"$f":"IF(AND(MONTH($A$1:$A$1000)=MONTH(Plan1!$H$3),YEAR($A$1:$A$1000)=Plan1!$J$3),MAX(X$1:X676)+1,\"\")","v":""}]
[null,null,null,null,null,null,null,null,null,null,null,null,null,null,null,null,null,null,null,null,null,null,null,{"$f":"IF(AND(MONTH($A$1:$A$1000)=MONTH(Plan1!$H$3),YEAR($A$1:$A$1000)=Plan1!$J$3),MAX(X$1:X677)+1,\"\")","v":""}]
[null,null,null,null,null,null,null,null,null,null,null,null,null,null,null,null,null,null,null,null,null,null,null,{"$f":"IF(AND(MONTH($A$1:$A$1000)=MONTH(Plan1!$H$3),YEAR($A$1:$A$1000)=Plan1!$J$3),MAX(X$1:X678)+1,\"\")","v":""}]
[null,null,null,null,null,null,null,null,null,null,null,null,null,null,null,null,null,null,null,null,null,null,null,{"$f":"IF(AND(MONTH($A$1:$A$1000)=MONTH(Plan1!$H$3),YEAR($A$1:$A$1000)=Plan1!$J$3),MAX(X$1:X679)+1,\"\")","v":""}]
[null,null,null,null,null,null,null,null,null,null,null,null,null,null,null,null,null,null,null,null,null,null,null,{"$f":"IF(AND(MONTH($A$1:$A$1000)=MONTH(Plan1!$H$3),YEAR($A$1:$A$1000)=Plan1!$J$3),MAX(X$1:X680)+1,\"\")","v":""}]
[null,null,null,null,null,null,null,null,null,null,null,null,null,null,null,null,null,null,null,null,null,null,null,{"$f":"IF(AND(MONTH($A$1:$A$1000)=MONTH(Plan1!$H$3),YEAR($A$1:$A$1000)=Plan1!$J$3),MAX(X$1:X681)+1,\"\")","v":""}]
[null,null,null,null,null,null,null,null,null,null,null,null,null,null,null,null,null,null,null,null,null,null,null,{"$f":"IF(AND(MONTH($A$1:$A$1000)=MONTH(Plan1!$H$3),YEAR($A$1:$A$1000)=Plan1!$J$3),MAX(X$1:X682)+1,\"\")","v":""}]
[null,null,null,null,null,null,null,null,null,null,null,null,null,null,null,null,null,null,null,null,null,null,null,{"$f":"IF(AND(MONTH($A$1:$A$1000)=MONTH(Plan1!$H$3),YEAR($A$1:$A$1000)=Plan1!$J$3),MAX(X$1:X683)+1,\"\")","v":""}]
[null,null,null,null,null,null,null,null,null,null,null,null,null,null,null,null,null,null,null,null,null,null,null,{"$f":"IF(AND(MONTH($A$1:$A$1000)=MONTH(Plan1!$H$3),YEAR($A$1:$A$1000)=Plan1!$J$3),MAX(X$1:X684)+1,\"\")","v":""}]
[null,null,null,null,null,null,null,null,null,null,null,null,null,null,null,null,null,null,null,null,null,null,null,{"$f":"IF(AND(MONTH($A$1:$A$1000)=MONTH(Plan1!$H$3),YEAR($A$1:$A$1000)=Plan1!$J$3),MAX(X$1:X685)+1,\"\")","v":""}]
[null,null,null,null,null,null,null,null,null,null,null,null,null,null,null,null,null,null,null,null,null,null,null,{"$f":"IF(AND(MONTH($A$1:$A$1000)=MONTH(Plan1!$H$3),YEAR($A$1:$A$1000)=Plan1!$J$3),MAX(X$1:X686)+1,\"\")","v":""}]
[null,null,null,null,null,null,null,null,null,null,null,null,null,null,null,null,null,null,null,null,null,null,null,{"$f":"IF(AND(MONTH($A$1:$A$1000)=MONTH(Plan1!$H$3),YEAR($A$1:$A$1000)=Plan1!$J$3),MAX(X$1:X687)+1,\"\")","v":""}]
[null,null,null,null,null,null,null,null,null,null,null,null,null,null,null,null,null,null,null,null,null,null,null,{"$f":"IF(AND(MONTH($A$1:$A$1000)=MONTH(Plan1!$H$3),YEAR($A$1:$A$1000)=Plan1!$J$3),MAX(X$1:X688)+1,\"\")","v":""}]
[null,null,null,null,null,null,null,null,null,null,null,null,null,null,null,null,null,null,null,null,null,null,null,{"$f":"IF(AND(MONTH($A$1:$A$1000)=MONTH(Plan1!$H$3),YEAR($A$1:$A$1000)=Plan1!$J$3),MAX(X$1:X689)+1,\"\")","v":""}]
[null,null,null,null,null,null,null,null,null,null,null,null,null,null,null,null,null,null,null,null,null,null,null,{"$f":"IF(AND(MONTH($A$1:$A$1000)=MONTH(Plan1!$H$3),YEAR($A$1:$A$1000)=Plan1!$J$3),MAX(X$1:X690)+1,\"\")","v":""}]
[null,null,null,null,null,null,null,null,null,null,null,null,null,null,null,null,null,null,null,null,null,null,null,{"$f":"IF(AND(MONTH($A$1:$A$1000)=MONTH(Plan1!$H$3),YEAR($A$1:$A$1000)=Plan1!$J$3),MAX(X$1:X691)+1,\"\")","v":""}]
[null,null,null,null,null,null,null,null,null,null,null,null,null,null,null,null,null,null,null,null,null,null,null,{"$f":"IF(AND(MONTH($A$1:$A$1000)=MONTH(Plan1!$H$3),YEAR($A$1:$A$1000)=Plan1!$J$3),MAX(X$1:X692)+1,\"\")","v":""}]
[null,null,null,null,null,null,null,null,null,null,null,null,null,null,null,null,null,null,null,null,null,null,null,{"$f":"IF(AND(MONTH($A$1:$A$1000)=MONTH(Plan1!$H$3),YEAR($A$1:$A$1000)=Plan1!$J$3),MAX(X$1:X693)+1,\"\")","v":""}]
[null,null,null,null,null,null,null,null,null,null,null,null,null,null,null,null,null,null,null,null,null,null,null,{"$f":"IF(AND(MONTH($A$1:$A$1000)=MONTH(Plan1!$H$3),YEAR($A$1:$A$1000)=Plan1!$J$3),MAX(X$1:X694)+1,\"\")","v":""}]
[null,null,null,null,null,null,null,null,null,null,null,null,null,null,null,null,null,null,null,null,null,null,null,{"$f":"IF(AND(MONTH($A$1:$A$1000)=MONTH(Plan1!$H$3),YEAR($A$1:$A$1000)=Plan1!$J$3),MAX(X$1:X695)+1,\"\")","v":""}]
[null,null,null,null,null,null,null,null,null,null,null,null,null,null,null,null,null,null,null,null,null,null,null,{"$f":"IF(AND(MONTH($A$1:$A$1000)=MONTH(Plan1!$H$3),YEAR($A$1:$A$1000)=Plan1!$J$3),MAX(X$1:X696)+1,\"\")","v":""}]
[null,null,null,null,null,null,null,null,null,null,null,null,null,null,null,null,null,null,null,null,null,null,null,{"$f":"IF(AND(MONTH($A$1:$A$1000)=MONTH(Plan1!$H$3),YEAR($A$1:$A$1000)=Plan1!$J$3),MAX(X$1:X697)+1,\"\")","v":""}]
[null,null,null,null,null,null,null,null,null,null,null,null,null,null,null,null,null,null,null,null,null,null,null,{"$f":"IF(AND(MONTH($A$1:$A$1000)=MONTH(Plan1!$H$3),YEAR($A$1:$A$1000)=Plan1!$J$3),MAX(X$1:X698)+1,\"\")","v":""}]
[null,null,null,null,null,null,null,null,null,null,null,null,null,null,null,null,null,null,null,null,null,null,null,{"$f":"IF(AND(MONTH($A$1:$A$1000)=MONTH(Plan1!$H$3),YEAR($A$1:$A$1000)=Plan1!$J$3),MAX(X$1:X699)+1,\"\")","v":""}]
[null,null,null,null,null,null,null,null,null,null,null,null,null,null,null,null,null,null,null,null,null,null,null,{"$f":"IF(AND(MONTH($A$1:$A$1000)=MONTH(Plan1!$H$3),YEAR($A$1:$A$1000)=Plan1!$J$3),MAX(X$1:X700)+1,\"\")","v":""}]
[null,null,null,null,null,null,null,null,null,null,null,null,null,null,null,null,null,null,null,null,null,null,null,{"$f":"IF(AND(MONTH($A$1:$A$1000)=MONTH(Plan1!$H$3),YEAR($A$1:$A$1000)=Plan1!$J$3),MAX(X$1:X701)+1,\"\")","v":""}]
[null,null,null,null,null,null,null,null,null,null,null,null,null,null,null,null,null,null,null,null,null,null,null,{"$f":"IF(AND(MONTH($A$1:$A$1000)=MONTH(Plan1!$H$3),YEAR($A$1:$A$1000)=Plan1!$J$3),MAX(X$1:X702)+1,\"\")","v":""}]
[null,null,null,null,null,null,null,null,null,null,null,null,null,null,null,null,null,null,null,null,null,null,null,{"$f":"IF(AND(MONTH($A$1:$A$1000)=MONTH(Plan1!$H$3),YEAR($A$1:$A$1000)=Plan1!$J$3),MAX(X$1:X703)+1,\"\")","v":""}]
[null,null,null,null,null,null,null,null,null,null,null,null,null,null,null,null,null,null,null,null,null,null,null,{"$f":"IF(AND(MONTH($A$1:$A$1000)=MONTH(Plan1!$H$3),YEAR($A$1:$A$1000)=Plan1!$J$3),MAX(X$1:X704)+1,\"\")","v":""}]
[null,null,null,null,null,null,null,null,null,null,null,null,null,null,null,null,null,null,null,null,null,null,null,{"$f":"IF(AND(MONTH($A$1:$A$1000)=MONTH(Plan1!$H$3),YEAR($A$1:$A$1000)=Plan1!$J$3),MAX(X$1:X705)+1,\"\")","v":""}]
[null,null,null,null,null,null,null,null,null,null,null,null,null,null,null,null,null,null,null,null,null,null,null,{"$f":"IF(AND(MONTH($A$1:$A$1000)=MONTH(Plan1!$H$3),YEAR($A$1:$A$1000)=Plan1!$J$3),MAX(X$1:X706)+1,\"\")","v":""}]
[null,null,null,null,null,null,null,null,null,null,null,null,null,null,null,null,null,null,null,null,null,null,null,{"$f":"IF(AND(MONTH($A$1:$A$1000)=MONTH(Plan1!$H$3),YEAR($A$1:$A$1000)=Plan1!$J$3),MAX(X$1:X707)+1,\"\")","v":""}]
[null,null,null,null,null,null,null,null,null,null,null,null,null,null,null,null,null,null,null,null,null,null,null,{"$f":"IF(AND(MONTH($A$1:$A$1000)=MONTH(Plan1!$H$3),YEAR($A$1:$A$1000)=Plan1!$J$3),MAX(X$1:X708)+1,\"\")","v":""}]
[null,null,null,null,null,null,null,null,null,null,null,null,null,null,null,null,null,null,null,null,null,null,null,{"$f":"IF(AND(MONTH($A$1:$A$1000)=MONTH(Plan1!$H$3),YEAR($A$1:$A$1000)=Plan1!$J$3),MAX(X$1:X709)+1,\"\")","v":""}]
[null,null,null,null,null,null,null,null,null,null,null,null,null,null,null,null,null,null,null,null,null,null,null,{"$f":"IF(AND(MONTH($A$1:$A$1000)=MONTH(Plan1!$H$3),YEAR($A$1:$A$1000)=Plan1!$J$3),MAX(X$1:X710)+1,\"\")","v":""}]
[null,null,null,null,null,null,null,null,null,null,null,null,null,null,null,null,null,null,null,null,null,null,null,{"$f":"IF(AND(MONTH($A$1:$A$1000)=MONTH(Plan1!$H$3),YEAR($A$1:$A$1000)=Plan1!$J$3),MAX(X$1:X711)+1,\"\")","v":""}]
[null,null,null,null,null,null,null,null,null,null,null,null,null,null,null,null,null,null,null,null,null,null,null,{"$f":"IF(AND(MONTH($A$1:$A$1000)=MONTH(Plan1!$H$3),YEAR($A$1:$A$1000)=Plan1!$J$3),MAX(X$1:X712)+1,\"\")","v":""}]
[null,null,null,null,null,null,null,null,null,null,null,null,null,null,null,null,null,null,null,null,null,null,null,{"$f":"IF(AND(MONTH($A$1:$A$1000)=MONTH(Plan1!$H$3),YEAR($A$1:$A$1000)=Plan1!$J$3),MAX(X$1:X713)+1,\"\")","v":""}]
[null,null,null,null,null,null,null,null,null,null,null,null,null,null,null,null,null,null,null,null,null,null,null,{"$f":"IF(AND(MONTH($A$1:$A$1000)=MONTH(Plan1!$H$3),YEAR($A$1:$A$1000)=Plan1!$J$3),MAX(X$1:X714)+1,\"\")","v":""}]
[null,null,null,null,null,null,null,null,null,null,null,null,null,null,null,null,null,null,null,null,null,null,null,{"$f":"IF(AND(MONTH($A$1:$A$1000)=MONTH(Plan1!$H$3),YEAR($A$1:$A$1000)=Plan1!$J$3),MAX(X$1:X715)+1,\"\")","v":""}]
[null,null,null,null,null,null,null,null,null,null,null,null,null,null,null,null,null,null,null,null,null,null,null,{"$f":"IF(AND(MONTH($A$1:$A$1000)=MONTH(Plan1!$H$3),YEAR($A$1:$A$1000)=Plan1!$J$3),MAX(X$1:X716)+1,\"\")","v":""}]
[null,null,null,null,null,null,null,null,null,null,null,null,null,null,null,null,null,null,null,null,null,null,null,{"$f":"IF(AND(MONTH($A$1:$A$1000)=MONTH(Plan1!$H$3),YEAR($A$1:$A$1000)=Plan1!$J$3),MAX(X$1:X717)+1,\"\")","v":""}]
[null,null,null,null,null,null,null,null,null,null,null,null,null,null,null,null,null,null,null,null,null,null,null,{"$f":"IF(AND(MONTH($A$1:$A$1000)=MONTH(Plan1!$H$3),YEAR($A$1:$A$1000)=Plan1!$J$3),MAX(X$1:X718)+1,\"\")","v":""}]
[null,null,null,null,null,null,null,null,null,null,null,null,null,null,null,null,null,null,null,null,null,null,null,{"$f":"IF(AND(MONTH($A$1:$A$1000)=MONTH(Plan1!$H$3),YEAR($A$1:$A$1000)=Plan1!$J$3),MAX(X$1:X719)+1,\"\")","v":""}]
[null,null,null,null,null,null,null,null,null,null,null,null,null,null,null,null,null,null,null,null,null,null,null,{"$f":"IF(AND(MONTH($A$1:$A$1000)=MONTH(Plan1!$H$3),YEAR($A$1:$A$1000)=Plan1!$J$3),MAX(X$1:X720)+1,\"\")","v":""}]
[null,null,null,null,null,null,null,null,null,null,null,null,null,null,null,null,null,null,null,null,null,null,null,{"$f":"IF(AND(MONTH($A$1:$A$1000)=MONTH(Plan1!$H$3),YEAR($A$1:$A$1000)=Plan1!$J$3),MAX(X$1:X721)+1,\"\")","v":""}]
[null,null,null,null,null,null,null,null,null,null,null,null,null,null,null,null,null,null,null,null,null,null,null,{"$f":"IF(AND(MONTH($A$1:$A$1000)=MONTH(Plan1!$H$3),YEAR($A$1:$A$1000)=Plan1!$J$3),MAX(X$1:X722)+1,\"\")","v":""}]
[null,null,null,null,null,null,null,null,null,null,null,null,null,null,null,null,null,null,null,null,null,null,null,{"$f":"IF(AND(MONTH($A$1:$A$1000)=MONTH(Plan1!$H$3),YEAR($A$1:$A$1000)=Plan1!$J$3),MAX(X$1:X723)+1,\"\")","v":""}]
[null,null,null,null,null,null,null,null,null,null,null,null,null,null,null,null,null,null,null,null,null,null,null,{"$f":"IF(AND(MONTH($A$1:$A$1000)=MONTH(Plan1!$H$3),YEAR($A$1:$A$1000)=Plan1!$J$3),MAX(X$1:X724)+1,\"\")","v":""}]
[null,null,null,null,null,null,null,null,null,null,null,null,null,null,null,null,null,null,null,null,null,null,null,{"$f":"IF(AND(MONTH($A$1:$A$1000)=MONTH(Plan1!$H$3),YEAR($A$1:$A$1000)=Plan1!$J$3),MAX(X$1:X725)+1,\"\")","v":""}]
[null,null,null,null,null,null,null,null,null,null,null,null,null,null,null,null,null,null,null,null,null,null,null,{"$f":"IF(AND(MONTH($A$1:$A$1000)=MONTH(Plan1!$H$3),YEAR($A$1:$A$1000)=Plan1!$J$3),MAX(X$1:X726)+1,\"\")","v":""}]
[null,null,null,null,null,null,null,null,null,null,null,null,null,null,null,null,null,null,null,null,null,null,null,{"$f":"IF(AND(MONTH($A$1:$A$1000)=MONTH(Plan1!$H$3),YEAR($A$1:$A$1000)=Plan1!$J$3),MAX(X$1:X727)+1,\"\")","v":""}]
[null,null,null,null,null,null,null,null,null,null,null,null,null,null,null,null,null,null,null,null,null,null,null,{"$f":"IF(AND(MONTH($A$1:$A$1000)=MONTH(Plan1!$H$3),YEAR($A$1:$A$1000)=Plan1!$J$3),MAX(X$1:X728)+1,\"\")","v":""}]
[null,null,null,null,null,null,null,null,null,null,null,null,null,null,null,null,null,null,null,null,null,null,null,{"$f":"IF(AND(MONTH($A$1:$A$1000)=MONTH(Plan1!$H$3),YEAR($A$1:$A$1000)=Plan1!$J$3),MAX(X$1:X729)+1,\"\")","v":""}]
[null,null,null,null,null,null,null,null,null,null,null,null,null,null,null,null,null,null,null,null,null,null,null,{"$f":"IF(AND(MONTH($A$1:$A$1000)=MONTH(Plan1!$H$3),YEAR($A$1:$A$1000)=Plan1!$J$3),MAX(X$1:X730)+1,\"\")","v":""}]
[null,null,null,null,null,null,null,null,null,null,null,null,null,null,null,null,null,null,null,null,null,null,null,{"$f":"IF(AND(MONTH($A$1:$A$1000)=MONTH(Plan1!$H$3),YEAR($A$1:$A$1000)=Plan1!$J$3),MAX(X$1:X731)+1,\"\")","v":""}]
[null,null,null,null,null,null,null,null,null,null,null,null,null,null,null,null,null,null,null,null,null,null,null,{"$f":"IF(AND(MONTH($A$1:$A$1000)=MONTH(Plan1!$H$3),YEAR($A$1:$A$1000)=Plan1!$J$3),MAX(X$1:X732)+1,\"\")","v":""}]
[null,null,null,null,null,null,null,null,null,null,null,null,null,null,null,null,null,null,null,null,null,null,null,{"$f":"IF(AND(MONTH($A$1:$A$1000)=MONTH(Plan1!$H$3),YEAR($A$1:$A$1000)=Plan1!$J$3),MAX(X$1:X733)+1,\"\")","v":""}]
[null,null,null,null,null,null,null,null,null,null,null,null,null,null,null,null,null,null,null,null,null,null,null,{"$f":"IF(AND(MONTH($A$1:$A$1000)=MONTH(Plan1!$H$3),YEAR($A$1:$A$1000)=Plan1!$J$3),MAX(X$1:X734)+1,\"\")","v":""}]
[null,null,null,null,null,null,null,null,null,null,null,null,null,null,null,null,null,null,null,null,null,null,null,{"$f":"IF(AND(MONTH($A$1:$A$1000)=MONTH(Plan1!$H$3),YEAR($A$1:$A$1000)=Plan1!$J$3),MAX(X$1:X735)+1,\"\")","v":""}]
[null,null,null,null,null,null,null,null,null,null,null,null,null,null,null,null,null,null,null,null,null,null,null,{"$f":"IF(AND(MONTH($A$1:$A$1000)=MONTH(Plan1!$H$3),YEAR($A$1:$A$1000)=Plan1!$J$3),MAX(X$1:X736)+1,\"\")","v":""}]
[null,null,null,null,null,null,null,null,null,null,null,null,null,null,null,null,null,null,null,null,null,null,null,{"$f":"IF(AND(MONTH($A$1:$A$1000)=MONTH(Plan1!$H$3),YEAR($A$1:$A$1000)=Plan1!$J$3),MAX(X$1:X737)+1,\"\")","v":""}]
[null,null,null,null,null,null,null,null,null,null,null,null,null,null,null,null,null,null,null,null,null,null,null,{"$f":"IF(AND(MONTH($A$1:$A$1000)=MONTH(Plan1!$H$3),YEAR($A$1:$A$1000)=Plan1!$J$3),MAX(X$1:X738)+1,\"\")","v":""}]
[null,null,null,null,null,null,null,null,null,null,null,null,null,null,null,null,null,null,null,null,null,null,null,{"$f":"IF(AND(MONTH($A$1:$A$1000)=MONTH(Plan1!$H$3),YEAR($A$1:$A$1000)=Plan1!$J$3),MAX(X$1:X739)+1,\"\")","v":""}]
[null,null,null,null,null,null,null,null,null,null,null,null,null,null,null,null,null,null,null,null,null,null,null,{"$f":"IF(AND(MONTH($A$1:$A$1000)=MONTH(Plan1!$H$3),YEAR($A$1:$A$1000)=Plan1!$J$3),MAX(X$1:X740)+1,\"\")","v":""}]
[null,null,null,null,null,null,null,null,null,null,null,null,null,null,null,null,null,null,null,null,null,null,null,{"$f":"IF(AND(MONTH($A$1:$A$1000)=MONTH(Plan1!$H$3),YEAR($A$1:$A$1000)=Plan1!$J$3),MAX(X$1:X741)+1,\"\")","v":""}]
[null,null,null,null,null,null,null,null,null,null,null,null,null,null,null,null,null,null,null,null,null,null,null,{"$f":"IF(AND(MONTH($A$1:$A$1000)=MONTH(Plan1!$H$3),YEAR($A$1:$A$1000)=Plan1!$J$3),MAX(X$1:X742)+1,\"\")","v":""}]
[null,null,null,null,null,null,null,null,null,null,null,null,null,null,null,null,null,null,null,null,null,null,null,{"$f":"IF(AND(MONTH($A$1:$A$1000)=MONTH(Plan1!$H$3),YEAR($A$1:$A$1000)=Plan1!$J$3),MAX(X$1:X743)+1,\"\")","v":""}]
[null,null,null,null,null,null,null,null,null,null,null,null,null,null,null,null,null,null,null,null,null,null,null,{"$f":"IF(AND(MONTH($A$1:$A$1000)=MONTH(Plan1!$H$3),YEAR($A$1:$A$1000)=Plan1!$J$3),MAX(X$1:X744)+1,\"\")","v":""}]
[null,null,null,null,null,null,null,null,null,null,null,null,null,null,null,null,null,null,null,null,null,null,null,{"$f":"IF(AND(MONTH($A$1:$A$1000)=MONTH(Plan1!$H$3),YEAR($A$1:$A$1000)=Plan1!$J$3),MAX(X$1:X745)+1,\"\")","v":""}]
[null,null,null,null,null,null,null,null,null,null,null,null,null,null,null,null,null,null,null,null,null,null,null,{"$f":"IF(AND(MONTH($A$1:$A$1000)=MONTH(Plan1!$H$3),YEAR($A$1:$A$1000)=Plan1!$J$3),MAX(X$1:X746)+1,\"\")","v":""}]
[null,null,null,null,null,null,null,null,null,null,null,null,null,null,null,null,null,null,null,null,null,null,null,{"$f":"IF(AND(MONTH($A$1:$A$1000)=MONTH(Plan1!$H$3),YEAR($A$1:$A$1000)=Plan1!$J$3),MAX(X$1:X747)+1,\"\")","v":""}]
[null,null,null,null,null,null,null,null,null,null,null,null,null,null,null,null,null,null,null,null,null,null,null,{"$f":"IF(AND(MONTH($A$1:$A$1000)=MONTH(Plan1!$H$3),YEAR($A$1:$A$1000)=Plan1!$J$3),MAX(X$1:X748)+1,\"\")","v":""}]
[null,null,null,null,null,null,null,null,null,null,null,null,null,null,null,null,null,null,null,null,null,null,null,{"$f":"IF(AND(MONTH($A$1:$A$1000)=MONTH(Plan1!$H$3),YEAR($A$1:$A$1000)=Plan1!$J$3),MAX(X$1:X749)+1,\"\")","v":""}]
[null,null,null,null,null,null,null,null,null,null,null,null,null,null,null,null,null,null,null,null,null,null,null,{"$f":"IF(AND(MONTH($A$1:$A$1000)=MONTH(Plan1!$H$3),YEAR($A$1:$A$1000)=Plan1!$J$3),MAX(X$1:X750)+1,\"\")","v":""}]
[null,null,null,null,null,null,null,null,null,null,null,null,null,null,null,null,null,null,null,null,null,null,null,{"$f":"IF(AND(MONTH($A$1:$A$1000)=MONTH(Plan1!$H$3),YEAR($A$1:$A$1000)=Plan1!$J$3),MAX(X$1:X751)+1,\"\")","v":""}]
[null,null,null,null,null,null,null,null,null,null,null,null,null,null,null,null,null,null,null,null,null,null,null,{"$f":"IF(AND(MONTH($A$1:$A$1000)=MONTH(Plan1!$H$3),YEAR($A$1:$A$1000)=Plan1!$J$3),MAX(X$1:X752)+1,\"\")","v":""}]
[null,null,null,null,null,null,null,null,null,null,null,null,null,null,null,null,null,null,null,null,null,null,null,{"$f":"IF(AND(MONTH($A$1:$A$1000)=MONTH(Plan1!$H$3),YEAR($A$1:$A$1000)=Plan1!$J$3),MAX(X$1:X753)+1,\"\")","v":""}]
[null,null,null,null,null,null,null,null,null,null,null,null,null,null,null,null,null,null,null,null,null,null,null,{"$f":"IF(AND(MONTH($A$1:$A$1000)=MONTH(Plan1!$H$3),YEAR($A$1:$A$1000)=Plan1!$J$3),MAX(X$1:X754)+1,\"\")","v":""}]
[null,null,null,null,null,null,null,null,null,null,null,null,null,null,null,null,null,null,null,null,null,null,null,{"$f":"IF(AND(MONTH($A$1:$A$1000)=MONTH(Plan1!$H$3),YEAR($A$1:$A$1000)=Plan1!$J$3),MAX(X$1:X755)+1,\"\")","v":""}]
[null,null,null,null,null,null,null,null,null,null,null,null,null,null,null,null,null,null,null,null,null,null,null,{"$f":"IF(AND(MONTH($A$1:$A$1000)=MONTH(Plan1!$H$3),YEAR($A$1:$A$1000)=Plan1!$J$3),MAX(X$1:X756)+1,\"\")","v":""}]
[null,null,null,null,null,null,null,null,null,null,null,null,null,null,null,null,null,null,null,null,null,null,null,{"$f":"IF(AND(MONTH($A$1:$A$1000)=MONTH(Plan1!$H$3),YEAR($A$1:$A$1000)=Plan1!$J$3),MAX(X$1:X757)+1,\"\")","v":""}]
[null,null,null,null,null,null,null,null,null,null,null,null,null,null,null,null,null,null,null,null,null,null,null,{"$f":"IF(AND(MONTH($A$1:$A$1000)=MONTH(Plan1!$H$3),YEAR($A$1:$A$1000)=Plan1!$J$3),MAX(X$1:X758)+1,\"\")","v":""}]
[null,null,null,null,null,null,null,null,null,null,null,null,null,null,null,null,null,null,null,null,null,null,null,{"$f":"IF(AND(MONTH($A$1:$A$1000)=MONTH(Plan1!$H$3),YEAR($A$1:$A$1000)=Plan1!$J$3),MAX(X$1:X759)+1,\"\")","v":""}]
[null,null,null,null,null,null,null,null,null,null,null,null,null,null,null,null,null,null,null,null,null,null,null,{"$f":"IF(AND(MONTH($A$1:$A$1000)=MONTH(Plan1!$H$3),YEAR($A$1:$A$1000)=Plan1!$J$3),MAX(X$1:X760)+1,\"\")","v":""}]
[null,null,null,null,null,null,null,null,null,null,null,null,null,null,null,null,null,null,null,null,null,null,null,{"$f":"IF(AND(MONTH($A$1:$A$1000)=MONTH(Plan1!$H$3),YEAR($A$1:$A$1000)=Plan1!$J$3),MAX(X$1:X761)+1,\"\")","v":""}]
[null,null,null,null,null,null,null,null,null,null,null,null,null,null,null,null,null,null,null,null,null,null,null,{"$f":"IF(AND(MONTH($A$1:$A$1000)=MONTH(Plan1!$H$3),YEAR($A$1:$A$1000)=Plan1!$J$3),MAX(X$1:X762)+1,\"\")","v":""}]
[null,null,null,null,null,null,null,null,null,null,null,null,null,null,null,null,null,null,null,null,null,null,null,{"$f":"IF(AND(MONTH($A$1:$A$1000)=MONTH(Plan1!$H$3),YEAR($A$1:$A$1000)=Plan1!$J$3),MAX(X$1:X763)+1,\"\")","v":""}]
[null,null,null,null,null,null,null,null,null,null,null,null,null,null,null,null,null,null,null,null,null,null,null,{"$f":"IF(AND(MONTH($A$1:$A$1000)=MONTH(Plan1!$H$3),YEAR($A$1:$A$1000)=Plan1!$J$3),MAX(X$1:X764)+1,\"\")","v":""}]
[null,null,null,null,null,null,null,null,null,null,null,null,null,null,null,null,null,null,null,null,null,null,null,{"$f":"IF(AND(MONTH($A$1:$A$1000)=MONTH(Plan1!$H$3),YEAR($A$1:$A$1000)=Plan1!$J$3),MAX(X$1:X765)+1,\"\")","v":""}]
[null,null,null,null,null,null,null,null,null,null,null,null,null,null,null,null,null,null,null,null,null,null,null,{"$f":"IF(AND(MONTH($A$1:$A$1000)=MONTH(Plan1!$H$3),YEAR($A$1:$A$1000)=Plan1!$J$3),MAX(X$1:X766)+1,\"\")","v":""}]
[null,null,null,null,null,null,null,null,null,null,null,null,null,null,null,null,null,null,null,null,null,null,null,{"$f":"IF(AND(MONTH($A$1:$A$1000)=MONTH(Plan1!$H$3),YEAR($A$1:$A$1000)=Plan1!$J$3),MAX(X$1:X767)+1,\"\")","v":""}]
[null,null,null,null,null,null,null,null,null,null,null,null,null,null,null,null,null,null,null,null,null,null,null,{"$f":"IF(AND(MONTH($A$1:$A$1000)=MONTH(Plan1!$H$3),YEAR($A$1:$A$1000)=Plan1!$J$3),MAX(X$1:X768)+1,\"\")","v":""}]
[null,null,null,null,null,null,null,null,null,null,null,null,null,null,null,null,null,null,null,null,null,null,null,{"$f":"IF(AND(MONTH($A$1:$A$1000)=MONTH(Plan1!$H$3),YEAR($A$1:$A$1000)=Plan1!$J$3),MAX(X$1:X769)+1,\"\")","v":""}]
[null,null,null,null,null,null,null,null,null,null,null,null,null,null,null,null,null,null,null,null,null,null,null,{"$f":"IF(AND(MONTH($A$1:$A$1000)=MONTH(Plan1!$H$3),YEAR($A$1:$A$1000)=Plan1!$J$3),MAX(X$1:X770)+1,\"\")","v":""}]
[null,null,null,null,null,null,null,null,null,null,null,null,null,null,null,null,null,null,null,null,null,null,null,{"$f":"IF(AND(MONTH($A$1:$A$1000)=MONTH(Plan1!$H$3),YEAR($A$1:$A$1000)=Plan1!$J$3),MAX(X$1:X771)+1,\"\")","v":""}]
[null,null,null,null,null,null,null,null,null,null,null,null,null,null,null,null,null,null,null,null,null,null,null,{"$f":"IF(AND(MONTH($A$1:$A$1000)=MONTH(Plan1!$H$3),YEAR($A$1:$A$1000)=Plan1!$J$3),MAX(X$1:X772)+1,\"\")","v":""}]
[null,null,null,null,null,null,null,null,null,null,null,null,null,null,null,null,null,null,null,null,null,null,null,{"$f":"IF(AND(MONTH($A$1:$A$1000)=MONTH(Plan1!$H$3),YEAR($A$1:$A$1000)=Plan1!$J$3),MAX(X$1:X773)+1,\"\")","v":""}]
[null,null,null,null,null,null,null,null,null,null,null,null,null,null,null,null,null,null,null,null,null,null,null,{"$f":"IF(AND(MONTH($A$1:$A$1000)=MONTH(Plan1!$H$3),YEAR($A$1:$A$1000)=Plan1!$J$3),MAX(X$1:X774)+1,\"\")","v":""}]
[null,null,null,null,null,null,null,null,null,null,null,null,null,null,null,null,null,null,null,null,null,null,null,{"$f":"IF(AND(MONTH($A$1:$A$1000)=MONTH(Plan1!$H$3),YEAR($A$1:$A$1000)=Plan1!$J$3),MAX(X$1:X775)+1,\"\")","v":""}]
[null,null,null,null,null,null,null,null,null,null,null,null,null,null,null,null,null,null,null,null,null,null,null,{"$f":"IF(AND(MONTH($A$1:$A$1000)=MONTH(Plan1!$H$3),YEAR($A$1:$A$1000)=Plan1!$J$3),MAX(X$1:X776)+1,\"\")","v":""}]
[null,null,null,null,null,null,null,null,null,null,null,null,null,null,null,null,null,null,null,null,null,null,null,{"$f":"IF(AND(MONTH($A$1:$A$1000)=MONTH(Plan1!$H$3),YEAR($A$1:$A$1000)=Plan1!$J$3),MAX(X$1:X777)+1,\"\")","v":""}]
[null,null,null,null,null,null,null,null,null,null,null,null,null,null,null,null,null,null,null,null,null,null,null,{"$f":"IF(AND(MONTH($A$1:$A$1000)=MONTH(Plan1!$H$3),YEAR($A$1:$A$1000)=Plan1!$J$3),MAX(X$1:X778)+1,\"\")","v":""}]
[null,null,null,null,null,null,null,null,null,null,null,null,null,null,null,null,null,null,null,null,null,null,null,{"$f":"IF(AND(MONTH($A$1:$A$1000)=MONTH(Plan1!$H$3),YEAR($A$1:$A$1000)=Plan1!$J$3),MAX(X$1:X779)+1,\"\")","v":""}]
[null,null,null,null,null,null,null,null,null,null,null,null,null,null,null,null,null,null,null,null,null,null,null,{"$f":"IF(AND(MONTH($A$1:$A$1000)=MONTH(Plan1!$H$3),YEAR($A$1:$A$1000)=Plan1!$J$3),MAX(X$1:X780)+1,\"\")","v":""}]
[null,null,null,null,null,null,null,null,null,null,null,null,null,null,null,null,null,null,null,null,null,null,null,{"$f":"IF(AND(MONTH($A$1:$A$1000)=MONTH(Plan1!$H$3),YEAR($A$1:$A$1000)=Plan1!$J$3),MAX(X$1:X781)+1,\"\")","v":""}]
[null,null,null,null,null,null,null,null,null,null,null,null,null,null,null,null,null,null,null,null,null,null,null,{"$f":"IF(AND(MONTH($A$1:$A$1000)=MONTH(Plan1!$H$3),YEAR($A$1:$A$1000)=Plan1!$J$3),MAX(X$1:X782)+1,\"\")","v":""}]
[null,null,null,null,null,null,null,null,null,null,null,null,null,null,null,null,null,null,null,null,null,null,null,{"$f":"IF(AND(MONTH($A$1:$A$1000)=MONTH(Plan1!$H$3),YEAR($A$1:$A$1000)=Plan1!$J$3),MAX(X$1:X783)+1,\"\")","v":""}]
[null,null,null,null,null,null,null,null,null,null,null,null,null,null,null,null,null,null,null,null,null,null,null,{"$f":"IF(AND(MONTH($A$1:$A$1000)=MONTH(Plan1!$H$3),YEAR($A$1:$A$1000)=Plan1!$J$3),MAX(X$1:X784)+1,\"\")","v":""}]
[null,null,null,null,null,null,null,null,null,null,null,null,null,null,null,null,null,null,null,null,null,null,null,{"$f":"IF(AND(MONTH($A$1:$A$1000)=MONTH(Plan1!$H$3),YEAR($A$1:$A$1000)=Plan1!$J$3),MAX(X$1:X785)+1,\"\")","v":""}]
[null,null,null,null,null,null,null,null,null,null,null,null,null,null,null,null,null,null,null,null,null,null,null,{"$f":"IF(AND(MONTH($A$1:$A$1000)=MONTH(Plan1!$H$3),YEAR($A$1:$A$1000)=Plan1!$J$3),MAX(X$1:X786)+1,\"\")","v":""}]
[null,null,null,null,null,null,null,null,null,null,null,null,null,null,null,null,null,null,null,null,null,null,null,{"$f":"IF(AND(MONTH($A$1:$A$1000)=MONTH(Plan1!$H$3),YEAR($A$1:$A$1000)=Plan1!$J$3),MAX(X$1:X787)+1,\"\")","v":""}]
[null,null,null,null,null,null,null,null,null,null,null,null,null,null,null,null,null,null,null,null,null,null,null,{"$f":"IF(AND(MONTH($A$1:$A$1000)=MONTH(Plan1!$H$3),YEAR($A$1:$A$1000)=Plan1!$J$3),MAX(X$1:X788)+1,\"\")","v":""}]
[null,null,null,null,null,null,null,null,null,null,null,null,null,null,null,null,null,null,null,null,null,null,null,{"$f":"IF(AND(MONTH($A$1:$A$1000)=MONTH(Plan1!$H$3),YEAR($A$1:$A$1000)=Plan1!$J$3),MAX(X$1:X789)+1,\"\")","v":""}]
[null,null,null,null,null,null,null,null,null,null,null,null,null,null,null,null,null,null,null,null,null,null,null,{"$f":"IF(AND(MONTH($A$1:$A$1000)=MONTH(Plan1!$H$3),YEAR($A$1:$A$1000)=Plan1!$J$3),MAX(X$1:X790)+1,\"\")","v":""}]
[null,null,null,null,null,null,null,null,null,null,null,null,null,null,null,null,null,null,null,null,null,null,null,{"$f":"IF(AND(MONTH($A$1:$A$1000)=MONTH(Plan1!$H$3),YEAR($A$1:$A$1000)=Plan1!$J$3),MAX(X$1:X791)+1,\"\")","v":""}]
[null,null,null,null,null,null,null,null,null,null,null,null,null,null,null,null,null,null,null,null,null,null,null,{"$f":"IF(AND(MONTH($A$1:$A$1000)=MONTH(Plan1!$H$3),YEAR($A$1:$A$1000)=Plan1!$J$3),MAX(X$1:X792)+1,\"\")","v":""}]
[null,null,null,null,null,null,null,null,null,null,null,null,null,null,null,null,null,null,null,null,null,null,null,{"$f":"IF(AND(MONTH($A$1:$A$1000)=MONTH(Plan1!$H$3),YEAR($A$1:$A$1000)=Plan1!$J$3),MAX(X$1:X793)+1,\"\")","v":""}]
[null,null,null,null,null,null,null,null,null,null,null,null,null,null,null,null,null,null,null,null,null,null,null,{"$f":"IF(AND(MONTH($A$1:$A$1000)=MONTH(Plan1!$H$3),YEAR($A$1:$A$1000)=Plan1!$J$3),MAX(X$1:X794)+1,\"\")","v":""}]
[null,null,null,null,null,null,null,null,null,null,null,null,null,null,null,null,null,null,null,null,null,null,null,{"$f":"IF(AND(MONTH($A$1:$A$1000)=MONTH(Plan1!$H$3),YEAR($A$1:$A$1000)=Plan1!$J$3),MAX(X$1:X795)+1,\"\")","v":""}]
[null,null,null,null,null,null,null,null,null,null,null,null,null,null,null,null,null,null,null,null,null,null,null,{"$f":"IF(AND(MONTH($A$1:$A$1000)=MONTH(Plan1!$H$3),YEAR($A$1:$A$1000)=Plan1!$J$3),MAX(X$1:X796)+1,\"\")","v":""}]
[null,null,null,null,null,null,null,null,null,null,null,null,null,null,null,null,null,null,null,null,null,null,null,{"$f":"IF(AND(MONTH($A$1:$A$1000)=MONTH(Plan1!$H$3),YEAR($A$1:$A$1000)=Plan1!$J$3),MAX(X$1:X797)+1,\"\")","v":""}]
[null,null,null,null,null,null,null,null,null,null,null,null,null,null,null,null,null,null,null,null,null,null,null,{"$f":"IF(AND(MONTH($A$1:$A$1000)=MONTH(Plan1!$H$3),YEAR($A$1:$A$1000)=Plan1!$J$3),MAX(X$1:X798)+1,\"\")","v":""}]
[null,null,null,null,null,null,null,null,null,null,null,null,null,null,null,null,null,null,null,null,null,null,null,{"$f":"IF(AND(MONTH($A$1:$A$1000)=MONTH(Plan1!$H$3),YEAR($A$1:$A$1000)=Plan1!$J$3),MAX(X$1:X799)+1,\"\")","v":""}]
[null,null,null,null,null,null,null,null,null,null,null,null,null,null,null,null,null,null,null,null,null,null,null,{"$f":"IF(AND(MONTH($A$1:$A$1000)=MONTH(Plan1!$H$3),YEAR($A$1:$A$1000)=Plan1!$J$3),MAX(X$1:X800)+1,\"\")","v":""}]
[null,null,null,null,null,null,null,null,null,null,null,null,null,null,null,null,null,null,null,null,null,null,null,{"$f":"IF(AND(MONTH($A$1:$A$1000)=MONTH(Plan1!$H$3),YEAR($A$1:$A$1000)=Plan1!$J$3),MAX(X$1:X801)+1,\"\")","v":""}]
[null,null,null,null,null,null,null,null,null,null,null,null,null,null,null,null,null,null,null,null,null,null,null,{"$f":"IF(AND(MONTH($A$1:$A$1000)=MONTH(Plan1!$H$3),YEAR($A$1:$A$1000)=Plan1!$J$3),MAX(X$1:X802)+1,\"\")","v":""}]
[null,null,null,null,null,null,null,null,null,null,null,null,null,null,null,null,null,null,null,null,null,null,null,{"$f":"IF(AND(MONTH($A$1:$A$1000)=MONTH(Plan1!$H$3),YEAR($A$1:$A$1000)=Plan1!$J$3),MAX(X$1:X803)+1,\"\")","v":""}]
[null,null,null,null,null,null,null,null,null,null,null,null,null,null,null,null,null,null,null,null,null,null,null,{"$f":"IF(AND(MONTH($A$1:$A$1000)=MONTH(Plan1!$H$3),YEAR($A$1:$A$1000)=Plan1!$J$3),MAX(X$1:X804)+1,\"\")","v":""}]
[null,null,null,null,null,null,null,null,null,null,null,null,null,null,null,null,null,null,null,null,null,null,null,{"$f":"IF(AND(MONTH($A$1:$A$1000)=MONTH(Plan1!$H$3),YEAR($A$1:$A$1000)=Plan1!$J$3),MAX(X$1:X805)+1,\"\")","v":""}]
[null,null,null,null,null,null,null,null,null,null,null,null,null,null,null,null,null,null,null,null,null,null,null,{"$f":"IF(AND(MONTH($A$1:$A$1000)=MONTH(Plan1!$H$3),YEAR($A$1:$A$1000)=Plan1!$J$3),MAX(X$1:X806)+1,\"\")","v":""}]
[null,null,null,null,null,null,null,null,null,null,null,null,null,null,null,null,null,null,null,null,null,null,null,{"$f":"IF(AND(MONTH($A$1:$A$1000)=MONTH(Plan1!$H$3),YEAR($A$1:$A$1000)=Plan1!$J$3),MAX(X$1:X807)+1,\"\")","v":""}]
[null,null,null,null,null,null,null,null,null,null,null,null,null,null,null,null,null,null,null,null,null,null,null,{"$f":"IF(AND(MONTH($A$1:$A$1000)=MONTH(Plan1!$H$3),YEAR($A$1:$A$1000)=Plan1!$J$3),MAX(X$1:X808)+1,\"\")","v":""}]
[null,null,null,null,null,null,null,null,null,null,null,null,null,null,null,null,null,null,null,null,null,null,null,{"$f":"IF(AND(MONTH($A$1:$A$1000)=MONTH(Plan1!$H$3),YEAR($A$1:$A$1000)=Plan1!$J$3),MAX(X$1:X809)+1,\"\")","v":""}]
[null,null,null,null,null,null,null,null,null,null,null,null,null,null,null,null,null,null,null,null,null,null,null,{"$f":"IF(AND(MONTH($A$1:$A$1000)=MONTH(Plan1!$H$3),YEAR($A$1:$A$1000)=Plan1!$J$3),MAX(X$1:X810)+1,\"\")","v":""}]
[null,null,null,null,null,null,null,null,null,null,null,null,null,null,null,null,null,null,null,null,null,null,null,{"$f":"IF(AND(MONTH($A$1:$A$1000)=MONTH(Plan1!$H$3),YEAR($A$1:$A$1000)=Plan1!$J$3),MAX(X$1:X811)+1,\"\")","v":""}]
[null,null,null,null,null,null,null,null,null,null,null,null,null,null,null,null,null,null,null,null,null,null,null,{"$f":"IF(AND(MONTH($A$1:$A$1000)=MONTH(Plan1!$H$3),YEAR($A$1:$A$1000)=Plan1!$J$3),MAX(X$1:X812)+1,\"\")","v":""}]
[null,null,null,null,null,null,null,null,null,null,null,null,null,null,null,null,null,null,null,null,null,null,null,{"$f":"IF(AND(MONTH($A$1:$A$1000)=MONTH(Plan1!$H$3),YEAR($A$1:$A$1000)=Plan1!$J$3),MAX(X$1:X813)+1,\"\")","v":""}]
[null,null,null,null,null,null,null,null,null,null,null,null,null,null,null,null,null,null,null,null,null,null,null,{"$f":"IF(AND(MONTH($A$1:$A$1000)=MONTH(Plan1!$H$3),YEAR($A$1:$A$1000)=Plan1!$J$3),MAX(X$1:X814)+1,\"\")","v":""}]
[null,null,null,null,null,null,null,null,null,null,null,null,null,null,null,null,null,null,null,null,null,null,null,{"$f":"IF(AND(MONTH($A$1:$A$1000)=MONTH(Plan1!$H$3),YEAR($A$1:$A$1000)=Plan1!$J$3),MAX(X$1:X815)+1,\"\")","v":""}]
[null,null,null,null,null,null,null,null,null,null,null,null,null,null,null,null,null,null,null,null,null,null,null,{"$f":"IF(AND(MONTH($A$1:$A$1000)=MONTH(Plan1!$H$3),YEAR($A$1:$A$1000)=Plan1!$J$3),MAX(X$1:X816)+1,\"\")","v":""}]
[null,null,null,null,null,null,null,null,null,null,null,null,null,null,null,null,null,null,null,null,null,null,null,{"$f":"IF(AND(MONTH($A$1:$A$1000)=MONTH(Plan1!$H$3),YEAR($A$1:$A$1000)=Plan1!$J$3),MAX(X$1:X817)+1,\"\")","v":""}]
[null,null,null,null,null,null,null,null,null,null,null,null,null,null,null,null,null,null,null,null,null,null,null,{"$f":"IF(AND(MONTH($A$1:$A$1000)=MONTH(Plan1!$H$3),YEAR($A$1:$A$1000)=Plan1!$J$3),MAX(X$1:X818)+1,\"\")","v":""}]
[null,null,null,null,null,null,null,null,null,null,null,null,null,null,null,null,null,null,null,null,null,null,null,{"$f":"IF(AND(MONTH($A$1:$A$1000)=MONTH(Plan1!$H$3),YEAR($A$1:$A$1000)=Plan1!$J$3),MAX(X$1:X819)+1,\"\")","v":""}]
[null,null,null,null,null,null,null,null,null,null,null,null,null,null,null,null,null,null,null,null,null,null,null,{"$f":"IF(AND(MONTH($A$1:$A$1000)=MONTH(Plan1!$H$3),YEAR($A$1:$A$1000)=Plan1!$J$3),MAX(X$1:X820)+1,\"\")","v":""}]
[null,null,null,null,null,null,null,null,null,null,null,null,null,null,null,null,null,null,null,null,null,null,null,{"$f":"IF(AND(MONTH($A$1:$A$1000)=MONTH(Plan1!$H$3),YEAR($A$1:$A$1000)=Plan1!$J$3),MAX(X$1:X821)+1,\"\")","v":""}]
[null,null,null,null,null,null,null,null,null,null,null,null,null,null,null,null,null,null,null,null,null,null,null,{"$f":"IF(AND(MONTH($A$1:$A$1000)=MONTH(Plan1!$H$3),YEAR($A$1:$A$1000)=Plan1!$J$3),MAX(X$1:X822)+1,\"\")","v":""}]
[null,null,null,null,null,null,null,null,null,null,null,null,null,null,null,null,null,null,null,null,null,null,null,{"$f":"IF(AND(MONTH($A$1:$A$1000)=MONTH(Plan1!$H$3),YEAR($A$1:$A$1000)=Plan1!$J$3),MAX(X$1:X823)+1,\"\")","v":""}]
[null,null,null,null,null,null,null,null,null,null,null,null,null,null,null,null,null,null,null,null,null,null,null,{"$f":"IF(AND(MONTH($A$1:$A$1000)=MONTH(Plan1!$H$3),YEAR($A$1:$A$1000)=Plan1!$J$3),MAX(X$1:X824)+1,\"\")","v":""}]
[null,null,null,null,null,null,null,null,null,null,null,null,null,null,null,null,null,null,null,null,null,null,null,{"$f":"IF(AND(MONTH($A$1:$A$1000)=MONTH(Plan1!$H$3),YEAR($A$1:$A$1000)=Plan1!$J$3),MAX(X$1:X825)+1,\"\")","v":""}]
[null,null,null,null,null,null,null,null,null,null,null,null,null,null,null,null,null,null,null,null,null,null,null,{"$f":"IF(AND(MONTH($A$1:$A$1000)=MONTH(Plan1!$H$3),YEAR($A$1:$A$1000)=Plan1!$J$3),MAX(X$1:X826)+1,\"\")","v":""}]
[null,null,null,null,null,null,null,null,null,null,null,null,null,null,null,null,null,null,null,null,null,null,null,{"$f":"IF(AND(MONTH($A$1:$A$1000)=MONTH(Plan1!$H$3),YEAR($A$1:$A$1000)=Plan1!$J$3),MAX(X$1:X827)+1,\"\")","v":""}]
[null,null,null,null,null,null,null,null,null,null,null,null,null,null,null,null,null,null,null,null,null,null,null,{"$f":"IF(AND(MONTH($A$1:$A$1000)=MONTH(Plan1!$H$3),YEAR($A$1:$A$1000)=Plan1!$J$3),MAX(X$1:X828)+1,\"\")","v":""}]
[null,null,null,null,null,null,null,null,null,null,null,null,null,null,null,null,null,null,null,null,null,null,null,{"$f":"IF(AND(MONTH($A$1:$A$1000)=MONTH(Plan1!$H$3),YEAR($A$1:$A$1000)=Plan1!$J$3),MAX(X$1:X829)+1,\"\")","v":""}]
[null,null,null,null,null,null,null,null,null,null,null,null,null,null,null,null,null,null,null,null,null,null,null,{"$f":"IF(AND(MONTH($A$1:$A$1000)=MONTH(Plan1!$H$3),YEAR($A$1:$A$1000)=Plan1!$J$3),MAX(X$1:X830)+1,\"\")","v":""}]
[null,null,null,null,null,null,null,null,null,null,null,null,null,null,null,null,null,null,null,null,null,null,null,{"$f":"IF(AND(MONTH($A$1:$A$1000)=MONTH(Plan1!$H$3),YEAR($A$1:$A$1000)=Plan1!$J$3),MAX(X$1:X831)+1,\"\")","v":""}]
[null,null,null,null,null,null,null,null,null,null,null,null,null,null,null,null,null,null,null,null,null,null,null,{"$f":"IF(AND(MONTH($A$1:$A$1000)=MONTH(Plan1!$H$3),YEAR($A$1:$A$1000)=Plan1!$J$3),MAX(X$1:X832)+1,\"\")","v":""}]
[null,null,null,null,null,null,null,null,null,null,null,null,null,null,null,null,null,null,null,null,null,null,null,{"$f":"IF(AND(MONTH($A$1:$A$1000)=MONTH(Plan1!$H$3),YEAR($A$1:$A$1000)=Plan1!$J$3),MAX(X$1:X833)+1,\"\")","v":""}]
[null,null,null,null,null,null,null,null,null,null,null,null,null,null,null,null,null,null,null,null,null,null,null,{"$f":"IF(AND(MONTH($A$1:$A$1000)=MONTH(Plan1!$H$3),YEAR($A$1:$A$1000)=Plan1!$J$3),MAX(X$1:X834)+1,\"\")","v":""}]
[null,null,null,null,null,null,null,null,null,null,null,null,null,null,null,null,null,null,null,null,null,null,null,{"$f":"IF(AND(MONTH($A$1:$A$1000)=MONTH(Plan1!$H$3),YEAR($A$1:$A$1000)=Plan1!$J$3),MAX(X$1:X835)+1,\"\")","v":""}]
[null,null,null,null,null,null,null,null,null,null,null,null,null,null,null,null,null,null,null,null,null,null,null,{"$f":"IF(AND(MONTH($A$1:$A$1000)=MONTH(Plan1!$H$3),YEAR($A$1:$A$1000)=Plan1!$J$3),MAX(X$1:X836)+1,\"\")","v":""}]
[null,null,null,null,null,null,null,null,null,null,null,null,null,null,null,null,null,null,null,null,null,null,null,{"$f":"IF(AND(MONTH($A$1:$A$1000)=MONTH(Plan1!$H$3),YEAR($A$1:$A$1000)=Plan1!$J$3),MAX(X$1:X837)+1,\"\")","v":""}]
[null,null,null,null,null,null,null,null,null,null,null,null,null,null,null,null,null,null,null,null,null,null,null,{"$f":"IF(AND(MONTH($A$1:$A$1000)=MONTH(Plan1!$H$3),YEAR($A$1:$A$1000)=Plan1!$J$3),MAX(X$1:X838)+1,\"\")","v":""}]
[null,null,null,null,null,null,null,null,null,null,null,null,null,null,null,null,null,null,null,null,null,null,null,{"$f":"IF(AND(MONTH($A$1:$A$1000)=MONTH(Plan1!$H$3),YEAR($A$1:$A$1000)=Plan1!$J$3),MAX(X$1:X839)+1,\"\")","v":""}]
[null,null,null,null,null,null,null,null,null,null,null,null,null,null,null,null,null,null,null,null,null,null,null,{"$f":"IF(AND(MONTH($A$1:$A$1000)=MONTH(Plan1!$H$3),YEAR($A$1:$A$1000)=Plan1!$J$3),MAX(X$1:X840)+1,\"\")","v":""}]
[null,null,null,null,null,null,null,null,null,null,null,null,null,null,null,null,null,null,null,null,null,null,null,{"$f":"IF(AND(MONTH($A$1:$A$1000)=MONTH(Plan1!$H$3),YEAR($A$1:$A$1000)=Plan1!$J$3),MAX(X$1:X841)+1,\"\")","v":""}]
[null,null,null,null,null,null,null,null,null,null,null,null,null,null,null,null,null,null,null,null,null,null,null,{"$f":"IF(AND(MONTH($A$1:$A$1000)=MONTH(Plan1!$H$3),YEAR($A$1:$A$1000)=Plan1!$J$3),MAX(X$1:X842)+1,\"\")","v":""}]
[null,null,null,null,null,null,null,null,null,null,null,null,null,null,null,null,null,null,null,null,null,null,null,{"$f":"IF(AND(MONTH($A$1:$A$1000)=MONTH(Plan1!$H$3),YEAR($A$1:$A$1000)=Plan1!$J$3),MAX(X$1:X843)+1,\"\")","v":""}]
[null,null,null,null,null,null,null,null,null,null,null,null,null,null,null,null,null,null,null,null,null,null,null,{"$f":"IF(AND(MONTH($A$1:$A$1000)=MONTH(Plan1!$H$3),YEAR($A$1:$A$1000)=Plan1!$J$3),MAX(X$1:X844)+1,\"\")","v":""}]
[null,null,null,null,null,null,null,null,null,null,null,null,null,null,null,null,null,null,null,null,null,null,null,{"$f":"IF(AND(MONTH($A$1:$A$1000)=MONTH(Plan1!$H$3),YEAR($A$1:$A$1000)=Plan1!$J$3),MAX(X$1:X845)+1,\"\")","v":""}]
[null,null,null,null,null,null,null,null,null,null,null,null,null,null,null,null,null,null,null,null,null,null,null,{"$f":"IF(AND(MONTH($A$1:$A$1000)=MONTH(Plan1!$H$3),YEAR($A$1:$A$1000)=Plan1!$J$3),MAX(X$1:X846)+1,\"\")","v":""}]
[null,null,null,null,null,null,null,null,null,null,null,null,null,null,null,null,null,null,null,null,null,null,null,{"$f":"IF(AND(MONTH($A$1:$A$1000)=MONTH(Plan1!$H$3),YEAR($A$1:$A$1000)=Plan1!$J$3),MAX(X$1:X847)+1,\"\")","v":""}]
[null,null,null,null,null,null,null,null,null,null,null,null,null,null,null,null,null,null,null,null,null,null,null,{"$f":"IF(AND(MONTH($A$1:$A$1000)=MONTH(Plan1!$H$3),YEAR($A$1:$A$1000)=Plan1!$J$3),MAX(X$1:X848)+1,\"\")","v":""}]
[null,null,null,null,null,null,null,null,null,null,null,null,null,null,null,null,null,null,null,null,null,null,null,{"$f":"IF(AND(MONTH($A$1:$A$1000)=MONTH(Plan1!$H$3),YEAR($A$1:$A$1000)=Plan1!$J$3),MAX(X$1:X849)+1,\"\")","v":""}]
[null,null,null,null,null,null,null,null,null,null,null,null,null,null,null,null,null,null,null,null,null,null,null,{"$f":"IF(AND(MONTH($A$1:$A$1000)=MONTH(Plan1!$H$3),YEAR($A$1:$A$1000)=Plan1!$J$3),MAX(X$1:X850)+1,\"\")","v":""}]
[null,null,null,null,null,null,null,null,null,null,null,null,null,null,null,null,null,null,null,null,null,null,null,{"$f":"IF(AND(MONTH($A$1:$A$1000)=MONTH(Plan1!$H$3),YEAR($A$1:$A$1000)=Plan1!$J$3),MAX(X$1:X851)+1,\"\")","v":""}]
[null,null,null,null,null,null,null,null,null,null,null,null,null,null,null,null,null,null,null,null,null,null,null,{"$f":"IF(AND(MONTH($A$1:$A$1000)=MONTH(Plan1!$H$3),YEAR($A$1:$A$1000)=Plan1!$J$3),MAX(X$1:X852)+1,\"\")","v":""}]
[null,null,null,null,null,null,null,null,null,null,null,null,null,null,null,null,null,null,null,null,null,null,null,{"$f":"IF(AND(MONTH($A$1:$A$1000)=MONTH(Plan1!$H$3),YEAR($A$1:$A$1000)=Plan1!$J$3),MAX(X$1:X853)+1,\"\")","v":""}]
[null,null,null,null,null,null,null,null,null,null,null,null,null,null,null,null,null,null,null,null,null,null,null,{"$f":"IF(AND(MONTH($A$1:$A$1000)=MONTH(Plan1!$H$3),YEAR($A$1:$A$1000)=Plan1!$J$3),MAX(X$1:X854)+1,\"\")","v":""}]
[null,null,null,null,null,null,null,null,null,null,null,null,null,null,null,null,null,null,null,null,null,null,null,{"$f":"IF(AND(MONTH($A$1:$A$1000)=MONTH(Plan1!$H$3),YEAR($A$1:$A$1000)=Plan1!$J$3),MAX(X$1:X855)+1,\"\")","v":""}]
[null,null,null,null,null,null,null,null,null,null,null,null,null,null,null,null,null,null,null,null,null,null,null,{"$f":"IF(AND(MONTH($A$1:$A$1000)=MONTH(Plan1!$H$3),YEAR($A$1:$A$1000)=Plan1!$J$3),MAX(X$1:X856)+1,\"\")","v":""}]
[null,null,null,null,null,null,null,null,null,null,null,null,null,null,null,null,null,null,null,null,null,null,null,{"$f":"IF(AND(MONTH($A$1:$A$1000)=MONTH(Plan1!$H$3),YEAR($A$1:$A$1000)=Plan1!$J$3),MAX(X$1:X857)+1,\"\")","v":""}]
[null,null,null,null,null,null,null,null,null,null,null,null,null,null,null,null,null,null,null,null,null,null,null,{"$f":"IF(AND(MONTH($A$1:$A$1000)=MONTH(Plan1!$H$3),YEAR($A$1:$A$1000)=Plan1!$J$3),MAX(X$1:X858)+1,\"\")","v":""}]
[null,null,null,null,null,null,null,null,null,null,null,null,null,null,null,null,null,null,null,null,null,null,null,{"$f":"IF(AND(MONTH($A$1:$A$1000)=MONTH(Plan1!$H$3),YEAR($A$1:$A$1000)=Plan1!$J$3),MAX(X$1:X859)+1,\"\")","v":""}]
[null,null,null,null,null,null,null,null,null,null,null,null,null,null,null,null,null,null,null,null,null,null,null,{"$f":"IF(AND(MONTH($A$1:$A$1000)=MONTH(Plan1!$H$3),YEAR($A$1:$A$1000)=Plan1!$J$3),MAX(X$1:X860)+1,\"\")","v":""}]
[null,null,null,null,null,null,null,null,null,null,null,null,null,null,null,null,null,null,null,null,null,null,null,{"$f":"IF(AND(MONTH($A$1:$A$1000)=MONTH(Plan1!$H$3),YEAR($A$1:$A$1000)=Plan1!$J$3),MAX(X$1:X861)+1,\"\")","v":""}]
[null,null,null,null,null,null,null,null,null,null,null,null,null,null,null,null,null,null,null,null,null,null,null,{"$f":"IF(AND(MONTH($A$1:$A$1000)=MONTH(Plan1!$H$3),YEAR($A$1:$A$1000)=Plan1!$J$3),MAX(X$1:X862)+1,\"\")","v":""}]
[null,null,null,null,null,null,null,null,null,null,null,null,null,null,null,null,null,null,null,null,null,null,null,{"$f":"IF(AND(MONTH($A$1:$A$1000)=MONTH(Plan1!$H$3),YEAR($A$1:$A$1000)=Plan1!$J$3),MAX(X$1:X863)+1,\"\")","v":""}]
[null,null,null,null,null,null,null,null,null,null,null,null,null,null,null,null,null,null,null,null,null,null,null,{"$f":"IF(AND(MONTH($A$1:$A$1000)=MONTH(Plan1!$H$3),YEAR($A$1:$A$1000)=Plan1!$J$3),MAX(X$1:X864)+1,\"\")","v":""}]
[null,null,null,null,null,null,null,null,null,null,null,null,null,null,null,null,null,null,null,null,null,null,null,{"$f":"IF(AND(MONTH($A$1:$A$1000)=MONTH(Plan1!$H$3),YEAR($A$1:$A$1000)=Plan1!$J$3),MAX(X$1:X865)+1,\"\")","v":""}]
[null,null,null,null,null,null,null,null,null,null,null,null,null,null,null,null,null,null,null,null,null,null,null,{"$f":"IF(AND(MONTH($A$1:$A$1000)=MONTH(Plan1!$H$3),YEAR($A$1:$A$1000)=Plan1!$J$3),MAX(X$1:X866)+1,\"\")","v":""}]
[null,null,null,null,null,null,null,null,null,null,null,null,null,null,null,null,null,null,null,null,null,null,null,{"$f":"IF(AND(MONTH($A$1:$A$1000)=MONTH(Plan1!$H$3),YEAR($A$1:$A$1000)=Plan1!$J$3),MAX(X$1:X867)+1,\"\")","v":""}]
[null,null,null,null,null,null,null,null,null,null,null,null,null,null,null,null,null,null,null,null,null,null,null,{"$f":"IF(AND(MONTH($A$1:$A$1000)=MONTH(Plan1!$H$3),YEAR($A$1:$A$1000)=Plan1!$J$3),MAX(X$1:X868)+1,\"\")","v":""}]
[null,null,null,null,null,null,null,null,null,null,null,null,null,null,null,null,null,null,null,null,null,null,null,{"$f":"IF(AND(MONTH($A$1:$A$1000)=MONTH(Plan1!$H$3),YEAR($A$1:$A$1000)=Plan1!$J$3),MAX(X$1:X869)+1,\"\")","v":""}]
[null,null,null,null,null,null,null,null,null,null,null,null,null,null,null,null,null,null,null,null,null,null,null,{"$f":"IF(AND(MONTH($A$1:$A$1000)=MONTH(Plan1!$H$3),YEAR($A$1:$A$1000)=Plan1!$J$3),MAX(X$1:X870)+1,\"\")","v":""}]
[null,null,null,null,null,null,null,null,null,null,null,null,null,null,null,null,null,null,null,null,null,null,null,{"$f":"IF(AND(MONTH($A$1:$A$1000)=MONTH(Plan1!$H$3),YEAR($A$1:$A$1000)=Plan1!$J$3),MAX(X$1:X871)+1,\"\")","v":""}]
[null,null,null,null,null,null,null,null,null,null,null,null,null,null,null,null,null,null,null,null,null,null,null,{"$f":"IF(AND(MONTH($A$1:$A$1000)=MONTH(Plan1!$H$3),YEAR($A$1:$A$1000)=Plan1!$J$3),MAX(X$1:X872)+1,\"\")","v":""}]
[null,null,null,null,null,null,null,null,null,null,null,null,null,null,null,null,null,null,null,null,null,null,null,{"$f":"IF(AND(MONTH($A$1:$A$1000)=MONTH(Plan1!$H$3),YEAR($A$1:$A$1000)=Plan1!$J$3),MAX(X$1:X873)+1,\"\")","v":""}]
[null,null,null,null,null,null,null,null,null,null,null,null,null,null,null,null,null,null,null,null,null,null,null,{"$f":"IF(AND(MONTH($A$1:$A$1000)=MONTH(Plan1!$H$3),YEAR($A$1:$A$1000)=Plan1!$J$3),MAX(X$1:X874)+1,\"\")","v":""}]
[null,null,null,null,null,null,null,null,null,null,null,null,null,null,null,null,null,null,null,null,null,null,null,{"$f":"IF(AND(MONTH($A$1:$A$1000)=MONTH(Plan1!$H$3),YEAR($A$1:$A$1000)=Plan1!$J$3),MAX(X$1:X875)+1,\"\")","v":""}]
[null,null,null,null,null,null,null,null,null,null,null,null,null,null,null,null,null,null,null,null,null,null,null,{"$f":"IF(AND(MONTH($A$1:$A$1000)=MONTH(Plan1!$H$3),YEAR($A$1:$A$1000)=Plan1!$J$3),MAX(X$1:X876)+1,\"\")","v":""}]
[null,null,null,null,null,null,null,null,null,null,null,null,null,null,null,null,null,null,null,null,null,null,null,{"$f":"IF(AND(MONTH($A$1:$A$1000)=MONTH(Plan1!$H$3),YEAR($A$1:$A$1000)=Plan1!$J$3),MAX(X$1:X877)+1,\"\")","v":""}]
[null,null,null,null,null,null,null,null,null,null,null,null,null,null,null,null,null,null,null,null,null,null,null,{"$f":"IF(AND(MONTH($A$1:$A$1000)=MONTH(Plan1!$H$3),YEAR($A$1:$A$1000)=Plan1!$J$3),MAX(X$1:X878)+1,\"\")","v":""}]
[null,null,null,null,null,null,null,null,null,null,null,null,null,null,null,null,null,null,null,null,null,null,null,{"$f":"IF(AND(MONTH($A$1:$A$1000)=MONTH(Plan1!$H$3),YEAR($A$1:$A$1000)=Plan1!$J$3),MAX(X$1:X879)+1,\"\")","v":""}]
[null,null,null,null,null,null,null,null,null,null,null,null,null,null,null,null,null,null,null,null,null,null,null,{"$f":"IF(AND(MONTH($A$1:$A$1000)=MONTH(Plan1!$H$3),YEAR($A$1:$A$1000)=Plan1!$J$3),MAX(X$1:X880)+1,\"\")","v":""}]
[null,null,null,null,null,null,null,null,null,null,null,null,null,null,null,null,null,null,null,null,null,null,null,{"$f":"IF(AND(MONTH($A$1:$A$1000)=MONTH(Plan1!$H$3),YEAR($A$1:$A$1000)=Plan1!$J$3),MAX(X$1:X881)+1,\"\")","v":""}]
[null,null,null,null,null,null,null,null,null,null,null,null,null,null,null,null,null,null,null,null,null,null,null,{"$f":"IF(AND(MONTH($A$1:$A$1000)=MONTH(Plan1!$H$3),YEAR($A$1:$A$1000)=Plan1!$J$3),MAX(X$1:X882)+1,\"\")","v":""}]
[null,null,null,null,null,null,null,null,null,null,null,null,null,null,null,null,null,null,null,null,null,null,null,{"$f":"IF(AND(MONTH($A$1:$A$1000)=MONTH(Plan1!$H$3),YEAR($A$1:$A$1000)=Plan1!$J$3),MAX(X$1:X883)+1,\"\")","v":""}]
[null,null,null,null,null,null,null,null,null,null,null,null,null,null,null,null,null,null,null,null,null,null,null,{"$f":"IF(AND(MONTH($A$1:$A$1000)=MONTH(Plan1!$H$3),YEAR($A$1:$A$1000)=Plan1!$J$3),MAX(X$1:X884)+1,\"\")","v":""}]
[null,null,null,null,null,null,null,null,null,null,null,null,null,null,null,null,null,null,null,null,null,null,null,{"$f":"IF(AND(MONTH($A$1:$A$1000)=MONTH(Plan1!$H$3),YEAR($A$1:$A$1000)=Plan1!$J$3),MAX(X$1:X885)+1,\"\")","v":""}]
[null,null,null,null,null,null,null,null,null,null,null,null,null,null,null,null,null,null,null,null,null,null,null,{"$f":"IF(AND(MONTH($A$1:$A$1000)=MONTH(Plan1!$H$3),YEAR($A$1:$A$1000)=Plan1!$J$3),MAX(X$1:X886)+1,\"\")","v":""}]
[null,null,null,null,null,null,null,null,null,null,null,null,null,null,null,null,null,null,null,null,null,null,null,{"$f":"IF(AND(MONTH($A$1:$A$1000)=MONTH(Plan1!$H$3),YEAR($A$1:$A$1000)=Plan1!$J$3),MAX(X$1:X887)+1,\"\")","v":""}]
[null,null,null,null,null,null,null,null,null,null,null,null,null,null,null,null,null,null,null,null,null,null,null,{"$f":"IF(AND(MONTH($A$1:$A$1000)=MONTH(Plan1!$H$3),YEAR($A$1:$A$1000)=Plan1!$J$3),MAX(X$1:X888)+1,\"\")","v":""}]
[null,null,null,null,null,null,null,null,null,null,null,null,null,null,null,null,null,null,null,null,null,null,null,{"$f":"IF(AND(MONTH($A$1:$A$1000)=MONTH(Plan1!$H$3),YEAR($A$1:$A$1000)=Plan1!$J$3),MAX(X$1:X889)+1,\"\")","v":""}]
[null,null,null,null,null,null,null,null,null,null,null,null,null,null,null,null,null,null,null,null,null,null,null,{"$f":"IF(AND(MONTH($A$1:$A$1000)=MONTH(Plan1!$H$3),YEAR($A$1:$A$1000)=Plan1!$J$3),MAX(X$1:X890)+1,\"\")","v":""}]
[null,null,null,null,null,null,null,null,null,null,null,null,null,null,null,null,null,null,null,null,null,null,null,{"$f":"IF(AND(MONTH($A$1:$A$1000)=MONTH(Plan1!$H$3),YEAR($A$1:$A$1000)=Plan1!$J$3),MAX(X$1:X891)+1,\"\")","v":""}]
[null,null,null,null,null,null,null,null,null,null,null,null,null,null,null,null,null,null,null,null,null,null,null,{"$f":"IF(AND(MONTH($A$1:$A$1000)=MONTH(Plan1!$H$3),YEAR($A$1:$A$1000)=Plan1!$J$3),MAX(X$1:X892)+1,\"\")","v":""}]
[null,null,null,null,null,null,null,null,null,null,null,null,null,null,null,null,null,null,null,null,null,null,null,{"$f":"IF(AND(MONTH($A$1:$A$1000)=MONTH(Plan1!$H$3),YEAR($A$1:$A$1000)=Plan1!$J$3),MAX(X$1:X893)+1,\"\")","v":""}]
[null,null,null,null,null,null,null,null,null,null,null,null,null,null,null,null,null,null,null,null,null,null,null,{"$f":"IF(AND(MONTH($A$1:$A$1000)=MONTH(Plan1!$H$3),YEAR($A$1:$A$1000)=Plan1!$J$3),MAX(X$1:X894)+1,\"\")","v":""}]
[null,null,null,null,null,null,null,null,null,null,null,null,null,null,null,null,null,null,null,null,null,null,null,{"$f":"IF(AND(MONTH($A$1:$A$1000)=MONTH(Plan1!$H$3),YEAR($A$1:$A$1000)=Plan1!$J$3),MAX(X$1:X895)+1,\"\")","v":""}]
[null,null,null,null,null,null,null,null,null,null,null,null,null,null,null,null,null,null,null,null,null,null,null,{"$f":"IF(AND(MONTH($A$1:$A$1000)=MONTH(Plan1!$H$3),YEAR($A$1:$A$1000)=Plan1!$J$3),MAX(X$1:X896)+1,\"\")","v":""}]
[null,null,null,null,null,null,null,null,null,null,null,null,null,null,null,null,null,null,null,null,null,null,null,{"$f":"IF(AND(MONTH($A$1:$A$1000)=MONTH(Plan1!$H$3),YEAR($A$1:$A$1000)=Plan1!$J$3),MAX(X$1:X897)+1,\"\")","v":""}]
[null,null,null,null,null,null,null,null,null,null,null,null,null,null,null,null,null,null,null,null,null,null,null,{"$f":"IF(AND(MONTH($A$1:$A$1000)=MONTH(Plan1!$H$3),YEAR($A$1:$A$1000)=Plan1!$J$3),MAX(X$1:X898)+1,\"\")","v":""}]
[null,null,null,null,null,null,null,null,null,null,null,null,null,null,null,null,null,null,null,null,null,null,null,{"$f":"IF(AND(MONTH($A$1:$A$1000)=MONTH(Plan1!$H$3),YEAR($A$1:$A$1000)=Plan1!$J$3),MAX(X$1:X899)+1,\"\")","v":""}]
[null,null,null,null,null,null,null,null,null,null,null,null,null,null,null,null,null,null,null,null,null,null,null,{"$f":"IF(AND(MONTH($A$1:$A$1000)=MONTH(Plan1!$H$3),YEAR($A$1:$A$1000)=Plan1!$J$3),MAX(X$1:X900)+1,\"\")","v":""}]
[null,null,null,null,null,null,null,null,null,null,null,null,null,null,null,null,null,null,null,null,null,null,null,{"$f":"IF(AND(MONTH($A$1:$A$1000)=MONTH(Plan1!$H$3),YEAR($A$1:$A$1000)=Plan1!$J$3),MAX(X$1:X901)+1,\"\")","v":""}]
[null,null,null,null,null,null,null,null,null,null,null,null,null,null,null,null,null,null,null,null,null,null,null,{"$f":"IF(AND(MONTH($A$1:$A$1000)=MONTH(Plan1!$H$3),YEAR($A$1:$A$1000)=Plan1!$J$3),MAX(X$1:X902)+1,\"\")","v":""}]
[null,null,null,null,null,null,null,null,null,null,null,null,null,null,null,null,null,null,null,null,null,null,null,{"$f":"IF(AND(MONTH($A$1:$A$1000)=MONTH(Plan1!$H$3),YEAR($A$1:$A$1000)=Plan1!$J$3),MAX(X$1:X903)+1,\"\")","v":""}]
[null,null,null,null,null,null,null,null,null,null,null,null,null,null,null,null,null,null,null,null,null,null,null,{"$f":"IF(AND(MONTH($A$1:$A$1000)=MONTH(Plan1!$H$3),YEAR($A$1:$A$1000)=Plan1!$J$3),MAX(X$1:X904)+1,\"\")","v":""}]
[null,null,null,null,null,null,null,null,null,null,null,null,null,null,null,null,null,null,null,null,null,null,null,{"$f":"IF(AND(MONTH($A$1:$A$1000)=MONTH(Plan1!$H$3),YEAR($A$1:$A$1000)=Plan1!$J$3),MAX(X$1:X905)+1,\"\")","v":""}]
[null,null,null,null,null,null,null,null,null,null,null,null,null,null,null,null,null,null,null,null,null,null,null,{"$f":"IF(AND(MONTH($A$1:$A$1000)=MONTH(Plan1!$H$3),YEAR($A$1:$A$1000)=Plan1!$J$3),MAX(X$1:X906)+1,\"\")","v":""}]
[null,null,null,null,null,null,null,null,null,null,null,null,null,null,null,null,null,null,null,null,null,null,null,{"$f":"IF(AND(MONTH($A$1:$A$1000)=MONTH(Plan1!$H$3),YEAR($A$1:$A$1000)=Plan1!$J$3),MAX(X$1:X907)+1,\"\")","v":""}]
[null,null,null,null,null,null,null,null,null,null,null,null,null,null,null,null,null,null,null,null,null,null,null,{"$f":"IF(AND(MONTH($A$1:$A$1000)=MONTH(Plan1!$H$3),YEAR($A$1:$A$1000)=Plan1!$J$3),MAX(X$1:X908)+1,\"\")","v":""}]
[null,null,null,null,null,null,null,null,null,null,null,null,null,null,null,null,null,null,null,null,null,null,null,{"$f":"IF(AND(MONTH($A$1:$A$1000)=MONTH(Plan1!$H$3),YEAR($A$1:$A$1000)=Plan1!$J$3),MAX(X$1:X909)+1,\"\")","v":""}]
[null,null,null,null,null,null,null,null,null,null,null,null,null,null,null,null,null,null,null,null,null,null,null,{"$f":"IF(AND(MONTH($A$1:$A$1000)=MONTH(Plan1!$H$3),YEAR($A$1:$A$1000)=Plan1!$J$3),MAX(X$1:X910)+1,\"\")","v":""}]
[null,null,null,null,null,null,null,null,null,null,null,null,null,null,null,null,null,null,null,null,null,null,null,{"$f":"IF(AND(MONTH($A$1:$A$1000)=MONTH(Plan1!$H$3),YEAR($A$1:$A$1000)=Plan1!$J$3),MAX(X$1:X911)+1,\"\")","v":""}]
[null,null,null,null,null,null,null,null,null,null,null,null,null,null,null,null,null,null,null,null,null,null,null,{"$f":"IF(AND(MONTH($A$1:$A$1000)=MONTH(Plan1!$H$3),YEAR($A$1:$A$1000)=Plan1!$J$3),MAX(X$1:X912)+1,\"\")","v":""}]
[null,null,null,null,null,null,null,null,null,null,null,null,null,null,null,null,null,null,null,null,null,null,null,{"$f":"IF(AND(MONTH($A$1:$A$1000)=MONTH(Plan1!$H$3),YEAR($A$1:$A$1000)=Plan1!$J$3),MAX(X$1:X913)+1,\"\")","v":""}]
[null,null,null,null,null,null,null,null,null,null,null,null,null,null,null,null,null,null,null,null,null,null,null,{"$f":"IF(AND(MONTH($A$1:$A$1000)=MONTH(Plan1!$H$3),YEAR($A$1:$A$1000)=Plan1!$J$3),MAX(X$1:X914)+1,\"\")","v":""}]
[null,null,null,null,null,null,null,null,null,null,null,null,null,null,null,null,null,null,null,null,null,null,null,{"$f":"IF(AND(MONTH($A$1:$A$1000)=MONTH(Plan1!$H$3),YEAR($A$1:$A$1000)=Plan1!$J$3),MAX(X$1:X915)+1,\"\")","v":""}]
[null,null,null,null,null,null,null,null,null,null,null,null,null,null,null,null,null,null,null,null,null,null,null,{"$f":"IF(AND(MONTH($A$1:$A$1000)=MONTH(Plan1!$H$3),YEAR($A$1:$A$1000)=Plan1!$J$3),MAX(X$1:X916)+1,\"\")","v":""}]
[null,null,null,null,null,null,null,null,null,null,null,null,null,null,null,null,null,null,null,null,null,null,null,{"$f":"IF(AND(MONTH($A$1:$A$1000)=MONTH(Plan1!$H$3),YEAR($A$1:$A$1000)=Plan1!$J$3),MAX(X$1:X917)+1,\"\")","v":""}]
[null,null,null,null,null,null,null,null,null,null,null,null,null,null,null,null,null,null,null,null,null,null,null,{"$f":"IF(AND(MONTH($A$1:$A$1000)=MONTH(Plan1!$H$3),YEAR($A$1:$A$1000)=Plan1!$J$3),MAX(X$1:X918)+1,\"\")","v":""}]
[null,null,null,null,null,null,null,null,null,null,null,null,null,null,null,null,null,null,null,null,null,null,null,{"$f":"IF(AND(MONTH($A$1:$A$1000)=MONTH(Plan1!$H$3),YEAR($A$1:$A$1000)=Plan1!$J$3),MAX(X$1:X919)+1,\"\")","v":""}]
[null,null,null,null,null,null,null,null,null,null,null,null,null,null,null,null,null,null,null,null,null,null,null,{"$f":"IF(AND(MONTH($A$1:$A$1000)=MONTH(Plan1!$H$3),YEAR($A$1:$A$1000)=Plan1!$J$3),MAX(X$1:X920)+1,\"\")","v":""}]
[null,null,null,null,null,null,null,null,null,null,null,null,null,null,null,null,null,null,null,null,null,null,null,{"$f":"IF(AND(MONTH($A$1:$A$1000)=MONTH(Plan1!$H$3),YEAR($A$1:$A$1000)=Plan1!$J$3),MAX(X$1:X921)+1,\"\")","v":""}]
[null,null,null,null,null,null,null,null,null,null,null,null,null,null,null,null,null,null,null,null,null,null,null,{"$f":"IF(AND(MONTH($A$1:$A$1000)=MONTH(Plan1!$H$3),YEAR($A$1:$A$1000)=Plan1!$J$3),MAX(X$1:X922)+1,\"\")","v":""}]
[null,null,null,null,null,null,null,null,null,null,null,null,null,null,null,null,null,null,null,null,null,null,null,{"$f":"IF(AND(MONTH($A$1:$A$1000)=MONTH(Plan1!$H$3),YEAR($A$1:$A$1000)=Plan1!$J$3),MAX(X$1:X923)+1,\"\")","v":""}]
[null,null,null,null,null,null,null,null,null,null,null,null,null,null,null,null,null,null,null,null,null,null,null,{"$f":"IF(AND(MONTH($A$1:$A$1000)=MONTH(Plan1!$H$3),YEAR($A$1:$A$1000)=Plan1!$J$3),MAX(X$1:X924)+1,\"\")","v":""}]
[null,null,null,null,null,null,null,null,null,null,null,null,null,null,null,null,null,null,null,null,null,null,null,{"$f":"IF(AND(MONTH($A$1:$A$1000)=MONTH(Plan1!$H$3),YEAR($A$1:$A$1000)=Plan1!$J$3),MAX(X$1:X925)+1,\"\")","v":""}]
[null,null,null,null,null,null,null,null,null,null,null,null,null,null,null,null,null,null,null,null,null,null,null,{"$f":"IF(AND(MONTH($A$1:$A$1000)=MONTH(Plan1!$H$3),YEAR($A$1:$A$1000)=Plan1!$J$3),MAX(X$1:X926)+1,\"\")","v":""}]
[null,null,null,null,null,null,null,null,null,null,null,null,null,null,null,null,null,null,null,null,null,null,null,{"$f":"IF(AND(MONTH($A$1:$A$1000)=MONTH(Plan1!$H$3),YEAR($A$1:$A$1000)=Plan1!$J$3),MAX(X$1:X927)+1,\"\")","v":""}]
[null,null,null,null,null,null,null,null,null,null,null,null,null,null,null,null,null,null,null,null,null,null,null,{"$f":"IF(AND(MONTH($A$1:$A$1000)=MONTH(Plan1!$H$3),YEAR($A$1:$A$1000)=Plan1!$J$3),MAX(X$1:X928)+1,\"\")","v":""}]
[null,null,null,null,null,null,null,null,null,null,null,null,null,null,null,null,null,null,null,null,null,null,null,{"$f":"IF(AND(MONTH($A$1:$A$1000)=MONTH(Plan1!$H$3),YEAR($A$1:$A$1000)=Plan1!$J$3),MAX(X$1:X929)+1,\"\")","v":""}]
[null,null,null,null,null,null,null,null,null,null,null,null,null,null,null,null,null,null,null,null,null,null,null,{"$f":"IF(AND(MONTH($A$1:$A$1000)=MONTH(Plan1!$H$3),YEAR($A$1:$A$1000)=Plan1!$J$3),MAX(X$1:X930)+1,\"\")","v":""}]
[null,null,null,null,null,null,null,null,null,null,null,null,null,null,null,null,null,null,null,null,null,null,null,{"$f":"IF(AND(MONTH($A$1:$A$1000)=MONTH(Plan1!$H$3),YEAR($A$1:$A$1000)=Plan1!$J$3),MAX(X$1:X931)+1,\"\")","v":""}]
[null,null,null,null,null,null,null,null,null,null,null,null,null,null,null,null,null,null,null,null,null,null,null,{"$f":"IF(AND(MONTH($A$1:$A$1000)=MONTH(Plan1!$H$3),YEAR($A$1:$A$1000)=Plan1!$J$3),MAX(X$1:X932)+1,\"\")","v":""}]
[null,null,null,null,null,null,null,null,null,null,null,null,null,null,null,null,null,null,null,null,null,null,null,{"$f":"IF(AND(MONTH($A$1:$A$1000)=MONTH(Plan1!$H$3),YEAR($A$1:$A$1000)=Plan1!$J$3),MAX(X$1:X933)+1,\"\")","v":""}]
[null,null,null,null,null,null,null,null,null,null,null,null,null,null,null,null,null,null,null,null,null,null,null,{"$f":"IF(AND(MONTH($A$1:$A$1000)=MONTH(Plan1!$H$3),YEAR($A$1:$A$1000)=Plan1!$J$3),MAX(X$1:X934)+1,\"\")","v":""}]
[null,null,null,null,null,null,null,null,null,null,null,null,null,null,null,null,null,null,null,null,null,null,null,{"$f":"IF(AND(MONTH($A$1:$A$1000)=MONTH(Plan1!$H$3),YEAR($A$1:$A$1000)=Plan1!$J$3),MAX(X$1:X935)+1,\"\")","v":""}]
[null,null,null,null,null,null,null,null,null,null,null,null,null,null,null,null,null,null,null,null,null,null,null,{"$f":"IF(AND(MONTH($A$1:$A$1000)=MONTH(Plan1!$H$3),YEAR($A$1:$A$1000)=Plan1!$J$3),MAX(X$1:X936)+1,\"\")","v":""}]
[null,null,null,null,null,null,null,null,null,null,null,null,null,null,null,null,null,null,null,null,null,null,null,{"$f":"IF(AND(MONTH($A$1:$A$1000)=MONTH(Plan1!$H$3),YEAR($A$1:$A$1000)=Plan1!$J$3),MAX(X$1:X937)+1,\"\")","v":""}]
[null,null,null,null,null,null,null,null,null,null,null,null,null,null,null,null,null,null,null,null,null,null,null,{"$f":"IF(AND(MONTH($A$1:$A$1000)=MONTH(Plan1!$H$3),YEAR($A$1:$A$1000)=Plan1!$J$3),MAX(X$1:X938)+1,\"\")","v":""}]
[null,null,null,null,null,null,null,null,null,null,null,null,null,null,null,null,null,null,null,null,null,null,null,{"$f":"IF(AND(MONTH($A$1:$A$1000)=MONTH(Plan1!$H$3),YEAR($A$1:$A$1000)=Plan1!$J$3),MAX(X$1:X939)+1,\"\")","v":""}]
[null,null,null,null,null,null,null,null,null,null,null,null,null,null,null,null,null,null,null,null,null,null,null,{"$f":"IF(AND(MONTH($A$1:$A$1000)=MONTH(Plan1!$H$3),YEAR($A$1:$A$1000)=Plan1!$J$3),MAX(X$1:X940)+1,\"\")","v":""}]
[null,null,null,null,null,null,null,null,null,null,null,null,null,null,null,null,null,null,null,null,null,null,null,{"$f":"IF(AND(MONTH($A$1:$A$1000)=MONTH(Plan1!$H$3),YEAR($A$1:$A$1000)=Plan1!$J$3),MAX(X$1:X941)+1,\"\")","v":""}]
[null,null,null,null,null,null,null,null,null,null,null,null,null,null,null,null,null,null,null,null,null,null,null,{"$f":"IF(AND(MONTH($A$1:$A$1000)=MONTH(Plan1!$H$3),YEAR($A$1:$A$1000)=Plan1!$J$3),MAX(X$1:X942)+1,\"\")","v":""}]
[null,null,null,null,null,null,null,null,null,null,null,null,null,null,null,null,null,null,null,null,null,null,null,{"$f":"IF(AND(MONTH($A$1:$A$1000)=MONTH(Plan1!$H$3),YEAR($A$1:$A$1000)=Plan1!$J$3),MAX(X$1:X943)+1,\"\")","v":""}]
[null,null,null,null,null,null,null,null,null,null,null,null,null,null,null,null,null,null,null,null,null,null,null,{"$f":"IF(AND(MONTH($A$1:$A$1000)=MONTH(Plan1!$H$3),YEAR($A$1:$A$1000)=Plan1!$J$3),MAX(X$1:X944)+1,\"\")","v":""}]
[null,null,null,null,null,null,null,null,null,null,null,null,null,null,null,null,null,null,null,null,null,null,null,{"$f":"IF(AND(MONTH($A$1:$A$1000)=MONTH(Plan1!$H$3),YEAR($A$1:$A$1000)=Plan1!$J$3),MAX(X$1:X945)+1,\"\")","v":""}]
[null,null,null,null,null,null,null,null,null,null,null,null,null,null,null,null,null,null,null,null,null,null,null,{"$f":"IF(AND(MONTH($A$1:$A$1000)=MONTH(Plan1!$H$3),YEAR($A$1:$A$1000)=Plan1!$J$3),MAX(X$1:X946)+1,\"\")","v":""}]
[null,null,null,null,null,null,null,null,null,null,null,null,null,null,null,null,null,null,null,null,null,null,null,{"$f":"IF(AND(MONTH($A$1:$A$1000)=MONTH(Plan1!$H$3),YEAR($A$1:$A$1000)=Plan1!$J$3),MAX(X$1:X947)+1,\"\")","v":""}]
[null,null,null,null,null,null,null,null,null,null,null,null,null,null,null,null,null,null,null,null,null,null,null,{"$f":"IF(AND(MONTH($A$1:$A$1000)=MONTH(Plan1!$H$3),YEAR($A$1:$A$1000)=Plan1!$J$3),MAX(X$1:X948)+1,\"\")","v":""}]
[null,null,null,null,null,null,null,null,null,null,null,null,null,null,null,null,null,null,null,null,null,null,null,{"$f":"IF(AND(MONTH($A$1:$A$1000)=MONTH(Plan1!$H$3),YEAR($A$1:$A$1000)=Plan1!$J$3),MAX(X$1:X949)+1,\"\")","v":""}]
[null,null,null,null,null,null,null,null,null,null,null,null,null,null,null,null,null,null,null,null,null,null,null,{"$f":"IF(AND(MONTH($A$1:$A$1000)=MONTH(Plan1!$H$3),YEAR($A$1:$A$1000)=Plan1!$J$3),MAX(X$1:X950)+1,\"\")","v":""}]
[null,null,null,null,null,null,null,null,null,null,null,null,null,null,null,null,null,null,null,null,null,null,null,{"$f":"IF(AND(MONTH($A$1:$A$1000)=MONTH(Plan1!$H$3),YEAR($A$1:$A$1000)=Plan1!$J$3),MAX(X$1:X951)+1,\"\")","v":""}]
[null,null,null,null,null,null,null,null,null,null,null,null,null,null,null,null,null,null,null,null,null,null,null,{"$f":"IF(AND(MONTH($A$1:$A$1000)=MONTH(Plan1!$H$3),YEAR($A$1:$A$1000)=Plan1!$J$3),MAX(X$1:X952)+1,\"\")","v":""}]
[null,null,null,null,null,null,null,null,null,null,null,null,null,null,null,null,null,null,null,null,null,null,null,{"$f":"IF(AND(MONTH($A$1:$A$1000)=MONTH(Plan1!$H$3),YEAR($A$1:$A$1000)=Plan1!$J$3),MAX(X$1:X953)+1,\"\")","v":""}]
[null,null,null,null,null,null,null,null,null,null,null,null,null,null,null,null,null,null,null,null,null,null,null,{"$f":"IF(AND(MONTH($A$1:$A$1000)=MONTH(Plan1!$H$3),YEAR($A$1:$A$1000)=Plan1!$J$3),MAX(X$1:X954)+1,\"\")","v":""}]
[null,null,null,null,null,null,null,null,null,null,null,null,null,null,null,null,null,null,null,null,null,null,null,{"$f":"IF(AND(MONTH($A$1:$A$1000)=MONTH(Plan1!$H$3),YEAR($A$1:$A$1000)=Plan1!$J$3),MAX(X$1:X955)+1,\"\")","v":""}]
[null,null,null,null,null,null,null,null,null,null,null,null,null,null,null,null,null,null,null,null,null,null,null,{"$f":"IF(AND(MONTH($A$1:$A$1000)=MONTH(Plan1!$H$3),YEAR($A$1:$A$1000)=Plan1!$J$3),MAX(X$1:X956)+1,\"\")","v":""}]
[null,null,null,null,null,null,null,null,null,null,null,null,null,null,null,null,null,null,null,null,null,null,null,{"$f":"IF(AND(MONTH($A$1:$A$1000)=MONTH(Plan1!$H$3),YEAR($A$1:$A$1000)=Plan1!$J$3),MAX(X$1:X957)+1,\"\")","v":""}]
[null,null,null,null,null,null,null,null,null,null,null,null,null,null,null,null,null,null,null,null,null,null,null,{"$f":"IF(AND(MONTH($A$1:$A$1000)=MONTH(Plan1!$H$3),YEAR($A$1:$A$1000)=Plan1!$J$3),MAX(X$1:X958)+1,\"\")","v":""}]
[null,null,null,null,null,null,null,null,null,null,null,null,null,null,null,null,null,null,null,null,null,null,null,{"$f":"IF(AND(MONTH($A$1:$A$1000)=MONTH(Plan1!$H$3),YEAR($A$1:$A$1000)=Plan1!$J$3),MAX(X$1:X959)+1,\"\")","v":""}]
[null,null,null,null,null,null,null,null,null,null,null,null,null,null,null,null,null,null,null,null,null,null,null,{"$f":"IF(AND(MONTH($A$1:$A$1000)=MONTH(Plan1!$H$3),YEAR($A$1:$A$1000)=Plan1!$J$3),MAX(X$1:X960)+1,\"\")","v":""}]
[null,null,null,null,null,null,null,null,null,null,null,null,null,null,null,null,null,null,null,null,null,null,null,{"$f":"IF(AND(MONTH($A$1:$A$1000)=MONTH(Plan1!$H$3),YEAR($A$1:$A$1000)=Plan1!$J$3),MAX(X$1:X961)+1,\"\")","v":""}]
[null,null,null,null,null,null,null,null,null,null,null,null,null,null,null,null,null,null,null,null,null,null,null,{"$f":"IF(AND(MONTH($A$1:$A$1000)=MONTH(Plan1!$H$3),YEAR($A$1:$A$1000)=Plan1!$J$3),MAX(X$1:X962)+1,\"\")","v":""}]
[null,null,null,null,null,null,null,null,null,null,null,null,null,null,null,null,null,null,null,null,null,null,null,{"$f":"IF(AND(MONTH($A$1:$A$1000)=MONTH(Plan1!$H$3),YEAR($A$1:$A$1000)=Plan1!$J$3),MAX(X$1:X963)+1,\"\")","v":""}]
[null,null,null,null,null,null,null,null,null,null,null,null,null,null,null,null,null,null,null,null,null,null,null,{"$f":"IF(AND(MONTH($A$1:$A$1000)=MONTH(Plan1!$H$3),YEAR($A$1:$A$1000)=Plan1!$J$3),MAX(X$1:X964)+1,\"\")","v":""}]
[null,null,null,null,null,null,null,null,null,null,null,null,null,null,null,null,null,null,null,null,null,null,null,{"$f":"IF(AND(MONTH($A$1:$A$1000)=MONTH(Plan1!$H$3),YEAR($A$1:$A$1000)=Plan1!$J$3),MAX(X$1:X965)+1,\"\")","v":""}]
[null,null,null,null,null,null,null,null,null,null,null,null,null,null,null,null,null,null,null,null,null,null,null,{"$f":"IF(AND(MONTH($A$1:$A$1000)=MONTH(Plan1!$H$3),YEAR($A$1:$A$1000)=Plan1!$J$3),MAX(X$1:X966)+1,\"\")","v":""}]
[null,null,null,null,null,null,null,null,null,null,null,null,null,null,null,null,null,null,null,null,null,null,null,{"$f":"IF(AND(MONTH($A$1:$A$1000)=MONTH(Plan1!$H$3),YEAR($A$1:$A$1000)=Plan1!$J$3),MAX(X$1:X967)+1,\"\")","v":""}]
[null,null,null,null,null,null,null,null,null,null,null,null,null,null,null,null,null,null,null,null,null,null,null,{"$f":"IF(AND(MONTH($A$1:$A$1000)=MONTH(Plan1!$H$3),YEAR($A$1:$A$1000)=Plan1!$J$3),MAX(X$1:X968)+1,\"\")","v":""}]
[null,null,null,null,null,null,null,null,null,null,null,null,null,null,null,null,null,null,null,null,null,null,null,{"$f":"IF(AND(MONTH($A$1:$A$1000)=MONTH(Plan1!$H$3),YEAR($A$1:$A$1000)=Plan1!$J$3),MAX(X$1:X969)+1,\"\")","v":""}]
[null,null,null,null,null,null,null,null,null,null,null,null,null,null,null,null,null,null,null,null,null,null,null,{"$f":"IF(AND(MONTH($A$1:$A$1000)=MONTH(Plan1!$H$3),YEAR($A$1:$A$1000)=Plan1!$J$3),MAX(X$1:X970)+1,\"\")","v":""}]
[null,null,null,null,null,null,null,null,null,null,null,null,null,null,null,null,null,null,null,null,null,null,null,{"$f":"IF(AND(MONTH($A$1:$A$1000)=MONTH(Plan1!$H$3),YEAR($A$1:$A$1000)=Plan1!$J$3),MAX(X$1:X971)+1,\"\")","v":""}]
[null,null,null,null,null,null,null,null,null,null,null,null,null,null,null,null,null,null,null,null,null,null,null,{"$f":"IF(AND(MONTH($A$1:$A$1000)=MONTH(Plan1!$H$3),YEAR($A$1:$A$1000)=Plan1!$J$3),MAX(X$1:X972)+1,\"\")","v":""}]
[null,null,null,null,null,null,null,null,null,null,null,null,null,null,null,null,null,null,null,null,null,null,null,{"$f":"IF(AND(MONTH($A$1:$A$1000)=MONTH(Plan1!$H$3),YEAR($A$1:$A$1000)=Plan1!$J$3),MAX(X$1:X973)+1,\"\")","v":""}]
[null,null,null,null,null,null,null,null,null,null,null,null,null,null,null,null,null,null,null,null,null,null,null,{"$f":"IF(AND(MONTH($A$1:$A$1000)=MONTH(Plan1!$H$3),YEAR($A$1:$A$1000)=Plan1!$J$3),MAX(X$1:X974)+1,\"\")","v":""}]
[null,null,null,null,null,null,null,null,null,null,null,null,null,null,null,null,null,null,null,null,null,null,null,{"$f":"IF(AND(MONTH($A$1:$A$1000)=MONTH(Plan1!$H$3),YEAR($A$1:$A$1000)=Plan1!$J$3),MAX(X$1:X975)+1,\"\")","v":""}]
[null,null,null,null,null,null,null,null,null,null,null,null,null,null,null,null,null,null,null,null,null,null,null,{"$f":"IF(AND(MONTH($A$1:$A$1000)=MONTH(Plan1!$H$3),YEAR($A$1:$A$1000)=Plan1!$J$3),MAX(X$1:X976)+1,\"\")","v":""}]
[null,null,null,null,null,null,null,null,null,null,null,null,null,null,null,null,null,null,null,null,null,null,null,{"$f":"IF(AND(MONTH($A$1:$A$1000)=MONTH(Plan1!$H$3),YEAR($A$1:$A$1000)=Plan1!$J$3),MAX(X$1:X977)+1,\"\")","v":""}]
[null,null,null,null,null,null,null,null,null,null,null,null,null,null,null,null,null,null,null,null,null,null,null,{"$f":"IF(AND(MONTH($A$1:$A$1000)=MONTH(Plan1!$H$3),YEAR($A$1:$A$1000)=Plan1!$J$3),MAX(X$1:X978)+1,\"\")","v":""}]
[null,null,null,null,null,null,null,null,null,null,null,null,null,null,null,null,null,null,null,null,null,null,null,{"$f":"IF(AND(MONTH($A$1:$A$1000)=MONTH(Plan1!$H$3),YEAR($A$1:$A$1000)=Plan1!$J$3),MAX(X$1:X979)+1,\"\")","v":""}]
[null,null,null,null,null,null,null,null,null,null,null,null,null,null,null,null,null,null,null,null,null,null,null,{"$f":"IF(AND(MONTH($A$1:$A$1000)=MONTH(Plan1!$H$3),YEAR($A$1:$A$1000)=Plan1!$J$3),MAX(X$1:X980)+1,\"\")","v":""}]
[null,null,null,null,null,null,null,null,null,null,null,null,null,null,null,null,null,null,null,null,null,null,null,{"$f":"IF(AND(MONTH($A$1:$A$1000)=MONTH(Plan1!$H$3),YEAR($A$1:$A$1000)=Plan1!$J$3),MAX(X$1:X981)+1,\"\")","v":""}]
[null,null,null,null,null,null,null,null,null,null,null,null,null,null,null,null,null,null,null,null,null,null,null,{"$f":"IF(AND(MONTH($A$1:$A$1000)=MONTH(Plan1!$H$3),YEAR($A$1:$A$1000)=Plan1!$J$3),MAX(X$1:X982)+1,\"\")","v":""}]
[null,null,null,null,null,null,null,null,null,null,null,null,null,null,null,null,null,null,null,null,null,null,null,{"$f":"IF(AND(MONTH($A$1:$A$1000)=MONTH(Plan1!$H$3),YEAR($A$1:$A$1000)=Plan1!$J$3),MAX(X$1:X983)+1,\"\")","v":""}]
[null,null,null,null,null,null,null,null,null,null,null,null,null,null,null,null,null,null,null,null,null,null,null,{"$f":"IF(AND(MONTH($A$1:$A$1000)=MONTH(Plan1!$H$3),YEAR($A$1:$A$1000)=Plan1!$J$3),MAX(X$1:X984)+1,\"\")","v":""}]
[null,null,null,null,null,null,null,null,null,null,null,null,null,null,null,null,null,null,null,null,null,null,null,{"$f":"IF(AND(MONTH($A$1:$A$1000)=MONTH(Plan1!$H$3),YEAR($A$1:$A$1000)=Plan1!$J$3),MAX(X$1:X985)+1,\"\")","v":""}]
[null,null,null,null,null,null,null,null,null,null,null,null,null,null,null,null,null,null,null,null,null,null,null,{"$f":"IF(AND(MONTH($A$1:$A$1000)=MONTH(Plan1!$H$3),YEAR($A$1:$A$1000)=Plan1!$J$3),MAX(X$1:X986)+1,\"\")","v":""}]
[null,null,null,null,null,null,null,null,null,null,null,null,null,null,null,null,null,null,null,null,null,null,null,{"$f":"IF(AND(MONTH($A$1:$A$1000)=MONTH(Plan1!$H$3),YEAR($A$1:$A$1000)=Plan1!$J$3),MAX(X$1:X987)+1,\"\")","v":""}]
[null,null,null,null,null,null,null,null,null,null,null,null,null,null,null,null,null,null,null,null,null,null,null,{"$f":"IF(AND(MONTH($A$1:$A$1000)=MONTH(Plan1!$H$3),YEAR($A$1:$A$1000)=Plan1!$J$3),MAX(X$1:X988)+1,\"\")","v":""}]
[null,null,null,null,null,null,null,null,null,null,null,null,null,null,null,null,null,null,null,null,null,null,null,{"$f":"IF(AND(MONTH($A$1:$A$1000)=MONTH(Plan1!$H$3),YEAR($A$1:$A$1000)=Plan1!$J$3),MAX(X$1:X989)+1,\"\")","v":""}]
[null,null,null,null,null,null,null,null,null,null,null,null,null,null,null,null,null,null,null,null,null,null,null,{"$f":"IF(AND(MONTH($A$1:$A$1000)=MONTH(Plan1!$H$3),YEAR($A$1:$A$1000)=Plan1!$J$3),MAX(X$1:X990)+1,\"\")","v":""}]
[null,null,null,null,null,null,null,null,null,null,null,null,null,null,null,null,null,null,null,null,null,null,null,{"$f":"IF(AND(MONTH($A$1:$A$1000)=MONTH(Plan1!$H$3),YEAR($A$1:$A$1000)=Plan1!$J$3),MAX(X$1:X991)+1,\"\")","v":""}]
[null,null,null,null,null,null,null,null,null,null,null,null,null,null,null,null,null,null,null,null,null,null,null,{"$f":"IF(AND(MONTH($A$1:$A$1000)=MONTH(Plan1!$H$3),YEAR($A$1:$A$1000)=Plan1!$J$3),MAX(X$1:X992)+1,\"\")","v":""}]
[null,null,null,null,null,null,null,null,null,null,null,null,null,null,null,null,null,null,null,null,null,null,null,{"$f":"IF(AND(MONTH($A$1:$A$1000)=MONTH(Plan1!$H$3),YEAR($A$1:$A$1000)=Plan1!$J$3),MAX(X$1:X993)+1,\"\")","v":""}]
[null,null,null,null,null,null,null,null,null,null,null,null,null,null,null,null,null,null,null,null,null,null,null,{"$f":"IF(AND(MONTH($A$1:$A$1000)=MONTH(Plan1!$H$3),YEAR($A$1:$A$1000)=Plan1!$J$3),MAX(X$1:X994)+1,\"\")","v":""}]
[null,null,null,null,null,null,null,null,null,null,null,null,null,null,null,null,null,null,null,null,null,null,null,{"$f":"IF(AND(MONTH($A$1:$A$1000)=MONTH(Plan1!$H$3),YEAR($A$1:$A$1000)=Plan1!$J$3),MAX(X$1:X995)+1,\"\")","v":""}]
[null,null,null,null,null,null,null,null,null,null,null,null,null,null,null,null,null,null,null,null,null,null,null,{"$f":"IF(AND(MONTH($A$1:$A$1000)=MONTH(Plan1!$H$3),YEAR($A$1:$A$1000)=Plan1!$J$3),MAX(X$1:X996)+1,\"\")","v":""}]
[null,null,null,null,null,null,null,null,null,null,null,null,null,null,null,null,null,null,null,null,null,null,null,{"$f":"IF(AND(MONTH($A$1:$A$1000)=MONTH(Plan1!$H$3),YEAR($A$1:$A$1000)=Plan1!$J$3),MAX(X$1:X997)+1,\"\")","v":""}]
[null,null,null,null,null,null,null,null,null,null,null,null,null,null,null,null,null,null,null,null,null,null,null,{"$f":"IF(AND(MONTH($A$1:$A$1000)=MONTH(Plan1!$H$3),YEAR($A$1:$A$1000)=Plan1!$J$3),MAX(X$1:X998)+1,\"\")","v":""}]
[null,null,null,null,null,null,null,null,null,null,null,null,null,null,null,null,null,null,null,null,null,null,null,{"$f":"IF(AND(MONTH($A$1:$A$1000)=MONTH(Plan1!$H$3),YEAR($A$1:$A$1000)=Plan1!$J$3),MAX(X$1:X999)+1,\"\")","v":""}]